Workbook

Sheet סיכום
A7: לכבוד:
A8: מועצה מקומית להבים.
A9: מר ניר כהן - מהנדס התשתיות מ"מ להבים.
A11: הנדון: | B11: דוח הפעלה | C11: =Table!A2 -> מט"ש נובמבר 2024
A12: נתונים עיקריים:
A13: סה"כ מ"ק שפכים מ"ק/חודש | D13: =ספיקות!E39 -> 41436
A14: ממוצע מ"ק שפכים יומי מ"ק/יום | D14: =ספיקות!E40 -> 1381.2
A15: סה"כ מ"ק קולחין שניוני לסינון מ"ק/חודש | D15: =ספיקות!F39 -> 26875
A16: ממוצע מ"ק קולחין לסינון יומי מ"ק/יום | D16: =ספיקות!F40 -> 895.8333333
A17: סה"כ מ"ק קולחין שלישוני מ"ק/חודש | D17: =ספיקות!H39 -> 26875
A18: ממוצע מ"ק קולחין שלישוני יומי מ"ק/יום | D18: =ספיקות!H40 -> 895.8333333
A19: סה"כ לחיוב מ"ק/חודש | D19: =ספיקות!J39 -> 41436
A20: ממוצע מ"ק לחיוב מ"ק/יום | D20: =ספיקות!J40 -> 1381.2
A22: איכות שפכים:
A23: צח"ב מג"ל | D23: ='איכות שפכים'!C39 -> 396
A24: צח"כ מג"ל | D24: ='איכות שפכים'!D39 -> 928
A25: מוצקים מרחפים מג"ל | D25: ='איכות שפכים'!E39 -> 376.5
A26: חנקן קלדהל מג"ל | D26: ='איכות שפכים'!J39 -> 70
A27: שומנים מג"ל | D27: ='איכות שפכים'!G39 -> 159.5
A28: כלורידים מג"ל | D28: ='איכות שפכים'!H39 -> 0
A29: זרחן כללי | D29: ='איכות שפכים'!I39 -> 6.4
A31: איכות קולחין שניוני:
A32: צח"ב מג"ל | D32: ='קולחין שניוני'!C39 -> 5
A33: צח"כ מג"ל | D33: ='קולחין שניוני'!D39 -> 25
A34: מוצקים מרחפים מג"ל | D34: ='קולחין שניוני'!E39 -> 5
A35: חנקן אמוניאקלי מג"ל | D35: ='קולחין שניוני'!F39 -> 
A36: חנקן כללי מג"ל | D36: ='קולחין שניוני'!G39 -> 5.9
A37: זרחן כללי | D37: ='קולחין שניוני'!H39 -> 5.2
A39: איכות קולחין שלישוני:
A40: צח"ב מג"ל | D40: ='קולחין שלישוני'!D39 -> 5
A41: צח"כ מג"ל | D41: ='קולחין שלישוני'!E39 -> 26.5
A42: מוצקים מרחפים מג"ל | D42: ='קולחין שלישוני'!F39 -> 5
A43: קולי צואתי תא מגע | D43: ='קולחין שלישוני'!C39 -> 1
A44: חנקן אמוניאקלי מג"ל | D44: ='קולחין שלישוני'!I39 -> 4.1775
A46: יחידת טיפול 1:
A47: מוצקים מרחפים (MLSS) מג"ל | D47: ='יחידת טיפול '!C39 -> 
A48: מוצקים נדיפים (MLVSS) מג"ל | D48: ='יחידת טיפול '!D39 -> 
A49: שיקוע 30 דק' | D49: ='יחידת טיפול '!E39 -> 
A50: SVI מ"ל / גר' | D50: ='יחידת טיפול '!F39 -> 
A53: יחידת טיפול 2:
A54: מוצקים מרחפים (MLSS) מג"ל | D54: ='יחידת טיפול '!K39 -> 
A55: מוצקים נדיפים (MLVSS) מג"ל | D55: ='יחידת טיפול '!L39 -> 
A56: שיקוע 30 דק' | D56: ='יחידת טיפול '!M39 -> 374.5
A57: SVI מ"ל / גר' | D57: ='יחידת טיפול '!N39 -> 
A59: נתוני אנרגיה ובוצה:
A60: צריכת חשמל לחודש, קוט''ש | D60: ='עומסי שפכים וצריכת אנרגיה'!O39 -> 45180
A61: צריכת חשמל ממוצע ליום קוט"ש | D61: ='עומסי שפכים וצריכת אנרגיה'!O40 -> 1506
A62: צריכת חשמל סגולית ממוצעת קוט"ש/מ"ק | D62: ='עומסי שפכים וצריכת אנרגיה'!P39 -> 1.090356212
A63: צריכת חשמל לק"ג צח"ב קוט"ש/ק"ג | D63: ='עומסי שפכים וצריכת אנרגיה'!Q40 -> 3.306186431
A64: צריכת מים שפירים, מ''ק לחודש | D64: =ספיקות!L39 -> 5
A65: יובש בוצה סחוטה | D65: ='טיפול וסילוק בוצה'!I40 -> 18
A66: כמות בוצה לפינוי, טון לחודש | D66: ='טיפול וסילוק בוצה'!R39 -> 24.8
A68: הערות תפעול:
A69: תאריך | B69: הערות תפעול ואחזקה
A70: =Table!A7 -> 2024-11-01 | B70: =IF(Table!CT7<>"",Table!CT7,"") -> שטיפת מתקו כניסה כולל ערבוב , נקיון כללי במבנה משרדים ומסביב לחדר גנרטור , | C70: =IF(Table!J117<>"",Table!J117,"") ->  | D70: =IF(Table!K117<>"",Table!K117,"") ->  | E70: =IF(Table!L117<>"",Table!L117,"") ->  | F70: =IF(Table!M117<>"",Table!M117,"") -> 
A71: =Table!A8 -> 2024-11-02 | B71: =IF(Table!CT8<>"",Table!CT8,"") ->  | C71: =IF(Table!J118<>"",Table!J118,"") ->  | D71: =IF(Table!K118<>"",Table!K118,"") ->  | E71: =IF(Table!L118<>"",Table!L118,"") ->  | F71: =IF(Table!M118<>"",Table!M118,"") -> 
A72: =Table!A9 -> 2024-11-03 | B72: =IF(Table!CT9<>"",Table!CT9,"") -> נקיון כללי בכל המתקן חניה בכניסה חניה קדמית חניה אחורית וכבישים , כיסוח דשא איסוף אשפה , | C72: =IF(Table!J119<>"",Table!J119,"") ->  | D72: =IF(Table!K119<>"",Table!K119,"") ->  | E72: =IF(Table!L119<>"",Table!L119,"") ->  | F72: =IF(Table!M119<>"",Table!M119,"") -> 
A73: =Table!A10 -> 2024-11-04 | B73: =IF(Table!CT10<>"",Table!CT10,"") -> הפעלת מתקן בוצה שטיפה בסיום , טיפול שבועי מדחסי סינון ובוצה נקיוז מים בדיקת שמן וניקוי פילטר , | C73: =IF(Table!J120<>"",Table!J120,"") ->  | D73: =IF(Table!K120<>"",Table!K120,"") ->  | E73: =IF(Table!L120<>"",Table!L120,"") ->  | F73: =IF(Table!M120<>"",Table!M120,"") -> 
A74: =Table!A11 -> 2024-11-05 | B74: =IF(Table!CT11<>"",Table!CT11,"") -> הפעלת מתקן בוצה שטיפה בסיום , שטיפת כבישים ליד מתקן בוצה ומתקן כניסה , הכנת קוגולונט כמות 200 ליטר , | C74: =IF(Table!J121<>"",Table!J121,"") ->  | D74: =IF(Table!K121<>"",Table!K121,"") ->  | E74: =IF(Table!L121<>"",Table!L121,"") ->  | F74: =IF(Table!M121<>"",Table!M121,"") -> 
A75: =Table!A12 -> 2024-11-06 | B75: =IF(Table!CT12<>"",Table!CT12,"") -> הפעלת מתקן בוצה שטיפה בסיום , הארכת צינור קולחים 4\3 ב 30 מטר כדי לשטוף בכל מקום במתקן , | C75: =IF(Table!J122<>"",Table!J122,"") ->  | D75: =IF(Table!K122<>"",Table!K122,"") ->  | E75: =IF(Table!L122<>"",Table!L122,"") ->  | F75: =IF(Table!M122<>"",Table!M122,"") -> 
A76: =Table!A13 -> 2024-11-07 | B76: =IF(Table!CT13<>"",Table!CT13,"") -> הפעלת מתקן בוצה ושטיפה בסיום , החלפת 2 מטפים מזנק 2," וגלגלון לא תקין לקראת ביקורת שנתית ציוד כיבוי אש מטללטין , | C76: =IF(Table!J123<>"",Table!J123,"") ->  | D76: =IF(Table!K123<>"",Table!K123,"") ->  | E76: =IF(Table!L123<>"",Table!L123,"") ->  | F76: =IF(Table!M123<>"",Table!M123,"") -> 
A77: =Table!A14 -> 2024-11-08 | B77: =IF(Table!CT14<>"",Table!CT14,"") -> הפעלת מתקן בוצה מילוי מכולה 32 מ"ק שטיפה יסודית בסיום , שטיפת מתקו כניסה , | C77: =IF(Table!J124<>"",Table!J124,"") ->  | D77: =IF(Table!K124<>"",Table!K124,"") ->  | E77: =IF(Table!L124<>"",Table!L124,"") ->  | F77: =IF(Table!M124<>"",Table!M124,"") -> 
A78: =Table!A15 -> 2024-11-09 | B78: =IF(Table!CT15<>"",Table!CT15,"") ->  | C78: =IF(Table!J125<>"",Table!J125,"") ->  | D78: =IF(Table!K125<>"",Table!K125,"") ->  | E78: =IF(Table!L125<>"",Table!L125,"") ->  | F78: =IF(Table!M125<>"",Table!M125,"") -> 
A79: =Table!A16 -> 2024-11-10 | B79: =IF(Table!CT16<>"",Table!CT16,"") -> ניקוי וכיול מדי חמצן מומס בריאקטורים , בדיקת רצועות ושמן לכל המפוחים והמשאבות במתקן תהליך , | C79: =IF(Table!J126<>"",Table!J126,"") ->  | D79: =IF(Table!K126<>"",Table!K126,"") ->  | E79: =IF(Table!L126<>"",Table!L126,"") ->  | F79: =IF(Table!M126<>"",Table!M126,"") -> 
A80: =Table!A17 -> 2024-11-11 | B80: =IF(Table!CT17<>"",Table!CT17,"") -> שחרור סתימה בצנרת דיגום כלור ועכירות וכיול מדי עכירות כניסה ויציאה , בכנת קוגולנט כמות 200 ליטר , | C80: =IF(Table!J127<>"",Table!J127,"") ->  | D80: =IF(Table!K127<>"",Table!K127,"") ->  | E80: =IF(Table!L127<>"",Table!L127,"") ->  | F80: =IF(Table!M127<>"",Table!M127,"") -> 
A81: =Table!A18 -> 2024-11-12 | B81: =IF(Table!CT18<>"",Table!CT18,"") -> פינוי מכולת בוצה לקומוסטאור בבקעה , טיפול שבועי מדחסי סינון ובוצה נקיוז מים בדיקת שמן וניקוי פילטר , | C81: =IF(Table!J128<>"",Table!J128,"") ->  | D81: =IF(Table!K128<>"",Table!K128,"") ->  | E81: =IF(Table!L128<>"",Table!L128,"") ->  | F81: =IF(Table!M128<>"",Table!M128,"") -> 
A82: =Table!A19 -> 2024-11-13 | B82: =IF(Table!CT19<>"",Table!CT19,"") -> פינוי מכולת גרוסת לדודאים , הפעלה יזומה גנרטור חירום למשך 10 דקות , שטיפת מתקן כניסה , | C82: =IF(Table!J129<>"",Table!J129,"") ->  | D82: =IF(Table!K129<>"",Table!K129,"") ->  | E82: =IF(Table!L129<>"",Table!L129,"") ->  | F82: =IF(Table!M129<>"",Table!M129,"") -> 
A83: =Table!A20 -> 2024-11-14 | B83: =IF(Table!CT20<>"",Table!CT20,"") -> סידור תקלה ברז יציאה מסנן מס 3 לא נפתח סולונוייד תקוע , נקיון כללי בחוות כימיקלים ושטיפת מאצרות , | C83: =IF(Table!J130<>"",Table!J130,"") ->  | D83: =IF(Table!K130<>"",Table!K130,"") ->  | E83: =IF(Table!L130<>"",Table!L130,"") ->  | F83: =IF(Table!M130<>"",Table!M130,"") -> 
A84: =Table!A21 -> 2024-11-15 | B84: =IF(Table!CT21<>"",Table!CT21,"") -> שטיפת מתקו כניסה כולל ערבוב , נקיון כללי במבנה משרדים ומסביב לחדר גנרטור , | C84: =IF(Table!J131<>"",Table!J131,"") ->  | D84: =IF(Table!K131<>"",Table!K131,"") ->  | E84: =IF(Table!L131<>"",Table!L131,"") ->  | F84: =IF(Table!M131<>"",Table!M131,"") -> 
A85: =Table!A22 -> 2024-11-16 | B85: =IF(Table!CT22<>"",Table!CT22,"") ->  | C85: =IF(Table!J132<>"",Table!J132,"") ->  | D85: =IF(Table!K132<>"",Table!K132,"") ->  | E85: =IF(Table!L132<>"",Table!L132,"") ->  | F85: =IF(Table!M132<>"",Table!M132,"") -> 
A86: =Table!A23 -> 2024-11-17 | B86: =IF(Table!CT23<>"",Table!CT23,"") -> התקנת וחיבור טיימר לשער חשמלי כדי שיעשה ריסט בלילה ולא יתקע השער כפי שקורה היום , חיבור פנס תאורת חוץ ליד השער מתקן כניסה , | C86: =IF(Table!J133<>"",Table!J133,"") ->  | D86: =IF(Table!K133<>"",Table!K133,"") ->  | E86: =IF(Table!L133<>"",Table!L133,"") ->  | F86: =IF(Table!M133<>"",Table!M133,"") -> 
A87: =Table!A24 -> 2024-11-18 | B87: =IF(Table!CT24<>"",Table!CT24,"") -> העברת אביזרי הרמה לברנע לביוקורת חצי שנתית , בדיקת רצועות ושמן לכל המפוחים והמשאבות במתקן תהליך | C87: =IF(Table!J134<>"",Table!J134,"") ->  | D87: =IF(Table!K134<>"",Table!K134,"") ->  | E87: =IF(Table!L134<>"",Table!L134,"") ->  | F87: =IF(Table!M134<>"",Table!M134,"") -> 
A88: =Table!A25 -> 2024-11-19 | B88: =IF(Table!CT25<>"",Table!CT25,"") -> טיפול שבועי מדחסי סינון ובוצה נקיוז מים בדיקת שמן וניקוי פילטר , שטיפת מתקו כניסה כולל ערבוב , | C88: =IF(Table!J135<>"",Table!J135,"") ->  | D88: =IF(Table!K135<>"",Table!K135,"") ->  | E88: =IF(Table!L135<>"",Table!L135,"") ->  | F88: =IF(Table!M135<>"",Table!M135,"") -> 
A89: =Table!A26 -> 2024-11-20 | B89: =IF(Table!CT26<>"",Table!CT26,"") -> ניקוי וכיול מדי חמצן מומס בריאקטורים , שחרור סתימה בצנרת דיגום כלור ועכירות וכיול מדי עכירות כניסה ויציאה | C89: =IF(Table!J136<>"",Table!J136,"") ->  | D89: =IF(Table!K136<>"",Table!K136,"") ->  | E89: =IF(Table!L136<>"",Table!L136,"") ->  | F89: =IF(Table!M136<>"",Table!M136,"") -> 
A90: =Table!A27 -> 2024-11-21 | B90: =IF(Table!CT27<>"",Table!CT27,"") -> טיפול תוקפתי בממיין חול ריקון הוצאת סמרטוטים ושטיפה יסודית , הפעלה יזומה גנרטור חירום למשך 10 דקות | C90: =IF(Table!J137<>"",Table!J137,"") ->  | D90: =IF(Table!K137<>"",Table!K137,"") ->  | E90: =IF(Table!L137<>"",Table!L137,"") ->  | F90: =IF(Table!M137<>"",Table!M137,"") -> 
A91: =Table!A28 -> 2024-11-22 | B91: =IF(Table!CT28<>"",Table!CT28,"") -> שטיפת מתקו כניסה כולל ערבוב , נקיון כללי במבנה משרדים ומסביב לחדר גנרטור , | C91: =IF(Table!J138<>"",Table!J138,"") ->  | D91: =IF(Table!K138<>"",Table!K138,"") ->  | E91: =IF(Table!L138<>"",Table!L138,"") ->  | F91: =IF(Table!M138<>"",Table!M138,"") -> 
A92: =Table!A29 -> 2024-11-23 | B92: =IF(Table!CT29<>"",Table!CT29,"") ->  | C92: =IF(Table!J139<>"",Table!J139,"") ->  | D92: =IF(Table!K139<>"",Table!K139,"") ->  | E92: =IF(Table!L139<>"",Table!L139,"") ->  | F92: =IF(Table!M139<>"",Table!M139,"") -> 
A93: =Table!A30 -> 2024-11-24 | B93: =IF(Table!CT30<>"",Table!CT30,"") -> החלפת ארון כיבוי אש 2 אידרנטים 2" וברז 1" שלא נמצאו תקינים בביקורת שנתית ציוד כיבוי אש מטלטלין , | C93: =IF(Table!J140<>"",Table!J140,"") ->  | D93: =IF(Table!K140<>"",Table!K140,"") ->  | E93: =IF(Table!L140<>"",Table!L140,"") ->  | F93: =IF(Table!M140<>"",Table!M140,"") -> 
A94: =Table!A31 -> 2024-11-25 | B94: =IF(Table!CT31<>"",Table!CT31,"") -> בדיקת רצועות ושמן לכל המפוחים והמשאבות במתקן תהליך, כיסוח דשא איסוף אשפה , שטיפת מתקן כניסה , | C94: =IF(Table!J141<>"",Table!J141,"") ->  | D94: =IF(Table!K141<>"",Table!K141,"") ->  | E94: =IF(Table!L141<>"",Table!L141,"") ->  | F94: =IF(Table!M141<>"",Table!M141,"") -> 
A95: =Table!A32 -> 2024-11-26 | B95: =IF(Table!CT32<>"",Table!CT32,"") -> ניקוי וכיול מדי חמצן מומס בריאקטורים , שחרור סתימה בצנרת דיגום כלור ועכירות וכיול מדי עכירות כניסה ויציאה | C95: =IF(Table!J142<>"",Table!J142,"") ->  | D95: =IF(Table!K142<>"",Table!K142,"") ->  | E95: =IF(Table!L142<>"",Table!L142,"") ->  | F95: =IF(Table!M142<>"",Table!M142,"") -> 
A96: =Table!A33 -> 2024-11-27 | B96: =IF(Table!CT33<>"",Table!CT33,"") -> טיפול שבועי מדחסי סינון ובוצה נקיוז מים בדיקת שמן וניקוי פילטר , שטיפת מתקו כניסה כולל ערבוב , | C96: =IF(Table!J143<>"",Table!J143,"") ->  | D96: =IF(Table!K143<>"",Table!K143,"") ->  | E96: =IF(Table!L143<>"",Table!L143,"") ->  | F96: =IF(Table!M143<>"",Table!M143,"") -> 
A97: =Table!A34 -> 2024-11-28 | B97: =IF(Table!CT34<>"",Table!CT34,"") -> סידור תקלה צינור הזרקת כלור השקיה השתחרר כלור נשפך לתוך המאצרה שאיבת הכלור שנשפך לתוך המיכל ושטיפת מאצרה , | C97: =IF(Table!J144<>"",Table!J144,"") ->  | D97: =IF(Table!K144<>"",Table!K144,"") ->  | E97: =IF(Table!L144<>"",Table!L144,"") ->  | F97: =IF(Table!M144<>"",Table!M144,"") -> 
A98: =Table!A35 -> 2024-11-29 | B98: =IF(Table!CT35<>"",Table!CT35,"") -> 5 | C98: =IF(Table!J145<>"",Table!J145,"") ->  | D98: =IF(Table!K145<>"",Table!K145,"") ->  | E98: =IF(Table!L145<>"",Table!L145,"") ->  | F98: =IF(Table!M145<>"",Table!M145,"") -> 
A99: =Table!A36 -> 2024-11-30 | B99: =IF(Table!CT36<>"",Table!CT36,"") ->  | C99: =IF(Table!J146<>"",Table!J146,"") ->  | D99: =IF(Table!K146<>"",Table!K146,"") ->  | E99: =IF(Table!L146<>"",Table!L146,"") ->  | F99: =IF(Table!M146<>"",Table!M146,"") -> 
A100: =Table!A37 -> 2024-12-01 | C100: =IF(Table!J147<>"",Table!J147,"") ->  | D100: =IF(Table!K147<>"",Table!K147,"") ->  | E100: =IF(Table!L147<>"",Table!L147,"") ->  | F100: =IF(Table!M147<>"",Table!M147,"") -> 
E104: בכבוד רב,
E105: אלקטרה גרינטק בע"מ

Sheet ספיקות
A2: =סיכום!C11 -> מט"ש נובמבר 2024 | E2: נתוני תפעול - גליון 1 - ספיקות
D3: ספיקות
A4: יחידת פעולה | D4: שפכים | F4: סינון | G4: קולחין שלישוני-השקיה | I4: הפרש | J4: חיוב | K4: מים שפירים | M4: בוצה יבשה
A5: תאריך | B5: יום בשבוע | C5: מזג אויר | D5: ספיקה יומית מצטברת | E5: ספיקה יומית | F5: ספיקה יומית | G5: ספיקה יומית מצטברת | H5: ספיקה יומית | I5: ספיקה יומית | J5: ספיקה יומית | K5: ספיקה יומית מצטברת | L5: ספיקה יומית | M5: ספיקה יומית מצטברת | N5: ספיקה יומית
E6: מ"ק/יום | F6: מ"ק/יום | H6: מ"ק/יום | I6: מ"ק/יום | J6: מ"ק/יום | L6: מ"ק/יום | N6: מ"ק/יום
A7: =IF(Table!A7<>"",Table!A7,"") -> 2024-11-01 | B7: =IF(Table!A7<>"",Table!A7,"") -> 2024-11-01 | C7: =IF(Table!C7=1,"חם מאוד",IF(Table!C7=2,"חם",IF(Table!C7=3,"מעונן",IF(Table!C7=4,"גשום",IF(Table!C7=5,"גשום מאוד",""))))) -> חם | D7: =IF(Table!D7<>"",Table!D7,"") -> 8234433 | E7: =IF(AND(D8<>"",D7<>""),D8-D7, "") -> 1526 | F7: =IF(Table!F7<>"",Table!F7,"") -> 732 | G7: =IF(Table!G7<>"",Table!G7,"") -> 61933 | H7: =IF(AND(G8<>"",G7<>""),G8-G7, "") -> 732 | I7: =IF(AND(H7<>"",F7<>""),F7-H7, "") -> 0 | J7: =IF(AND(E7<>"",I7<>""),E7-I7, "") -> 1526 | K7: =IF(Table!I7<>"",Table!I7,"") -> 479 | L7: =IF(AND(K8<>"",K7<>""),K8-K7, "") -> 0 | M7: =IF(Table!CE7<>"",Table!CE7,"") -> 10330 | N7: =IF(AND(M8<>"",M7<>""),M8-M7, "") -> 0
A8: =IF(Table!A8<>"",Table!A8,"") -> 2024-11-02 | B8: =IF(Table!A8<>"",Table!A8,"") -> 2024-11-02 | C8: =IF(Table!C8=1,"חם מאוד",IF(Table!C8=2,"חם",IF(Table!C8=3,"מעונן",IF(Table!C8=4,"גשום",IF(Table!C8=5,"גשום מאוד",""))))) -> חם | D8: =IF(Table!D8<>"",Table!D8,"") -> 8235959 | E8: =IF(AND(D9<>"",D8<>""),D9-D8, "") -> 1440 | F8: =IF(Table!F8<>"",Table!F8,"") -> 0 | G8: =IF(Table!G8<>"",Table!G8,"") -> 62665 | H8: =IF(AND(G9<>"",G8<>""),G9-G8, "") -> 0 | I8: =IF(AND(H8<>"",F8<>""),F8-H8, "") -> 0 | J8: =IF(AND(E8<>"",I8<>""),E8-I8, "") -> 1440 | K8: =IF(Table!I8<>"",Table!I8,"") -> 479 | L8: =IF(AND(K9<>"",K8<>""),K9-K8, "") -> 0 | M8: =IF(Table!CE8<>"",Table!CE8,"") -> 10330 | N8: =IF(AND(M9<>"",M8<>""),M9-M8, "") -> 0
A9: =IF(Table!A9<>"",Table!A9,"") -> 2024-11-03 | B9: =IF(Table!A9<>"",Table!A9,"") -> 2024-11-03 | C9: =IF(Table!C9=1,"חם מאוד",IF(Table!C9=2,"חם",IF(Table!C9=3,"מעונן",IF(Table!C9=4,"גשום",IF(Table!C9=5,"גשום מאוד",""))))) -> חם | D9: =IF(Table!D9<>"",Table!D9,"") -> 8237399 | E9: 1555 | F9: =IF(Table!F9<>"",Table!F9,"") -> 1425 | G9: =IF(Table!G9<>"",Table!G9,"") -> 62665 | H9: 1425 | I9: 0 | J9: 1555 | K9: =IF(Table!I9<>"",Table!I9,"") -> 479 | L9: 0 | M9: =IF(Table!CE9<>"",Table!CE9,"") -> 10330 | N9: 0
A10: =IF(Table!A10<>"",Table!A10,"") -> 2024-11-04 | B10: =IF(Table!A10<>"",Table!A10,"") -> 2024-11-04 | C10: =IF(Table!C10=1,"חם מאוד",IF(Table!C10=2,"חם",IF(Table!C10=3,"נאה",IF(Table!C10=4,"גשום",IF(Table!C10=5,"גשום מאוד",""))))) -> חם | D10: =IF(Table!D10<>"",Table!D10,"") -> 8238954 | E10: 1457 | F10: =IF(Table!F10<>"",Table!F10,"") -> 1360 | G10: =IF(Table!G10<>"",Table!G10,"") -> 64090 | H10: 1360 | I10: 0 | J10: 1457 | K10: =IF(Table!I10<>"",Table!I10,"") -> 479 | L10: 0 | M10: =IF(Table!CE10<>"",Table!CE10,"") -> 10330 | N10: 41
A11: =IF(Table!A11<>"",Table!A11,"") -> 2024-11-05 | B11: =IF(Table!A11<>"",Table!A11,"") -> 2024-11-05 | C11: =IF(Table!C11=1,"חם מאוד",IF(Table!C11=2,"חם",IF(Table!C11=3,"נאה",IF(Table!C11=4,"גשום",IF(Table!C11=5,"גשום מאוד",""))))) -> חם | D11: =IF(Table!D11<>"",Table!D11,"") -> 8240411 | E11: 1480 | F11: =IF(Table!F11<>"",Table!F11,"") -> 1517 | G11: =IF(Table!G11<>"",Table!G11,"") -> 65450 | H11: 1517 | I11: 0 | J11: 1480 | K11: =IF(Table!I11<>"",Table!I11,"") -> 479 | L11: 0 | M11: =IF(Table!CE11<>"",Table!CE11,"") -> 10371 | N11: 47
A12: =IF(Table!A12<>"",Table!A12,"") -> 2024-11-06 | B12: =IF(Table!A12<>"",Table!A12,"") -> 2024-11-06 | C12: =IF(Table!C12=1,"חם מאוד",IF(Table!C12=2,"חם",IF(Table!C12=3,"נאה",IF(Table!C12=4,"גשום",IF(Table!C12=5,"גשום מאוד",""))))) -> חם | D12: =IF(Table!D12<>"",Table!D12,"") -> 8241891 | E12: 1470 | F12: =IF(Table!F12<>"",Table!F12,"") -> 1321 | G12: =IF(Table!G12<>"",Table!G12,"") -> 66967 | H12: 1321 | I12: 0 | J12: 1470 | K12: =IF(Table!I12<>"",Table!I12,"") -> 479 | L12: 0 | M12: =IF(Table!CE12<>"",Table!CE12,"") -> 10418 | N12: 45
A13: =IF(Table!A13<>"",Table!A13,"") -> 2024-11-07 | B13: =IF(Table!A13<>"",Table!A13,"") -> 2024-11-07 | C13: =IF(Table!C13=1,"חם מאוד",IF(Table!C13=2,"חם",IF(Table!C13=3,"נאה",IF(Table!C13=4,"גשום",IF(Table!C13=5,"גשום מאוד",""))))) -> חם | D13: =IF(Table!D13<>"",Table!D13,"") -> 8243361 | E13: 1504 | F13: =IF(Table!F13<>"",Table!F13,"") -> 1599 | G13: =IF(Table!G13<>"",Table!G13,"") -> 68288 | H13: 1599 | I13: 0 | J13: 1504 | K13: =IF(Table!I13<>"",Table!I13,"") -> 479 | L13: 0 | M13: =IF(Table!CE13<>"",Table!CE13,"") -> 10463 | N13: 48
A14: =IF(Table!A14<>"",Table!A14,"") -> 2024-11-08 | B14: =IF(Table!A14<>"",Table!A14,"") -> 2024-11-08 | C14: =IF(Table!C14=1,"חם מאוד",IF(Table!C14=2,"חם",IF(Table!C14=3,"נאה",IF(Table!C14=4,"גשום",IF(Table!C14=5,"גשום מאוד",""))))) -> חם | D14: =IF(Table!D14<>"",Table!D14,"") -> 8244865 | E14: 1527 | F14: =IF(Table!F14<>"",Table!F14,"") -> 700 | G14: =IF(Table!G14<>"",Table!G14,"") -> 69887 | H14: 700 | I14: 0 | J14: 1527 | K14: =IF(Table!I14<>"",Table!I14,"") -> 479 | L14: 1 | M14: =IF(Table!CE14<>"",Table!CE14,"") -> 10511 | N14: 47
A15: =IF(Table!A15<>"",Table!A15,"") -> 2024-11-09 | B15: =IF(Table!A15<>"",Table!A15,"") -> 2024-11-09 | C15: =IF(Table!C15=1,"חם מאוד",IF(Table!C15=2,"חם",IF(Table!C15=3,"נאה",IF(Table!C15=4,"גשום",IF(Table!C15=5,"גשום מאוד",""))))) -> חם | D15: =IF(Table!D15<>"",Table!D15,"") -> 8246392 | E15: 1516 | F15: =IF(Table!F15<>"",Table!F15,"") -> 0 | G15: =IF(Table!G15<>"",Table!G15,"") -> 70587 | H15: 0 | I15: 0 | J15: 1516 | K15: =IF(Table!I15<>"",Table!I15,"") -> 480 | L15: 0 | M15: =IF(Table!CE15<>"",Table!CE15,"") -> 10558 | N15: 0
A16: =IF(Table!A16<>"",Table!A16,"") -> 2024-11-10 | B16: =IF(Table!A16<>"",Table!A16,"") -> 2024-11-10 | C16: =IF(Table!C16=1,"חם מאוד",IF(Table!C16=2,"חם",IF(Table!C16=3,"נאה",IF(Table!C16=4,"גשום",IF(Table!C16=5,"גשום מאוד",""))))) -> גשום | D16: =IF(Table!D16<>"",Table!D16,"") -> 8247908 | E16: 1548 | F16: =IF(Table!F16<>"",Table!F16,"") -> 1296 | G16: =IF(Table!G16<>"",Table!G16,"") -> 70587 | H16: 1296 | I16: 0 | J16: 1548 | K16: =IF(Table!I16<>"",Table!I16,"") -> 480 | L16: 0 | M16: =IF(Table!CE16<>"",Table!CE16,"") -> 10558 | N16: 0
A17: =IF(Table!A17<>"",Table!A17,"") -> 2024-11-11 | B17: =IF(Table!A17<>"",Table!A17,"") -> 2024-11-11 | C17: =IF(Table!C17=1,"חם מאוד",IF(Table!C17=2,"חם",IF(Table!C17=3,"נאה",IF(Table!C17=4,"גשום",IF(Table!C17=5,"גשום מאוד",""))))) -> גשום | D17: =IF(Table!D17<>"",Table!D17,"") -> 8249456 | E17: 1469 | F17: =IF(Table!F17<>"",Table!F17,"") -> 1122 | G17: =IF(Table!G17<>"",Table!G17,"") -> 71883 | H17: 1122 | I17: 0 | J17: 1469 | K17: =IF(Table!I17<>"",Table!I17,"") -> 480 | L17: 0 | M17: =IF(Table!CE17<>"",Table!CE17,"") -> 10558 | N17: 0
A18: =IF(Table!A18<>"",Table!A18,"") -> 2024-11-12 | B18: =IF(Table!A18<>"",Table!A18,"") -> 2024-11-12 | C18: =IF(Table!C18=1,"חם מאוד",IF(Table!C18=2,"חם",IF(Table!C18=3,"נאה",IF(Table!C18=4,"גשום",IF(Table!C18=5,"גשום מאוד",""))))) -> חם | D18: =IF(Table!D18<>"",Table!D18,"") -> 8250925 | E18: 1395 | F18: =IF(Table!F18<>"",Table!F18,"") -> 1409 | G18: =IF(Table!G18<>"",Table!G18,"") -> 73005 | H18: 1409 | I18: 0 | J18: 1395 | K18: =IF(Table!I18<>"",Table!I18,"") -> 480 | L18: 1 | M18: =IF(Table!CE18<>"",Table!CE18,"") -> 10558 | N18: 0
A19: =IF(Table!A19<>"",Table!A19,"") -> 2024-11-13 | B19: =IF(Table!A19<>"",Table!A19,"") -> 2024-11-13 | C19: =IF(Table!C19=1,"חם מאוד",IF(Table!C19=2,"חם",IF(Table!C19=3,"נאה",IF(Table!C19=4,"גשום",IF(Table!C19=5,"גשום מאוד",""))))) -> חם | D19: =IF(Table!D19<>"",Table!D19,"") -> 8252320 | E19: 1337 | F19: =IF(Table!F19<>"",Table!F19,"") -> 1165 | G19: =IF(Table!G19<>"",Table!G19,"") -> 74414 | H19: 1165 | I19: 0 | J19: 1337 | K19: =IF(Table!I19<>"",Table!I19,"") -> 481 | L19: 0 | M19: =IF(Table!CE19<>"",Table!CE19,"") -> 10558 | N19: 0
A20: =IF(Table!A20<>"",Table!A20,"") -> 2024-11-14 | B20: =IF(Table!A20<>"",Table!A20,"") -> 2024-11-14 | C20: =IF(Table!C20=1,"חם מאוד",IF(Table!C20=2,"חם",IF(Table!C20=3,"נאה",IF(Table!C20=4,"גשום",IF(Table!C20=5,"גשום מאוד",""))))) -> חם | D20: =IF(Table!D20<>"",Table!D20,"") -> 8253657 | E20: 1278 | F20: =IF(Table!F20<>"",Table!F20,"") -> 1304 | G20: =IF(Table!G20<>"",Table!G20,"") -> 75579 | H20: 1304 | I20: 0 | J20: 1278 | K20: =IF(Table!I20<>"",Table!I20,"") -> 481 | L20: 0 | M20: =IF(Table!CE20<>"",Table!CE20,"") -> 10558 | N20: 0
A21: =IF(Table!A21<>"",Table!A21,"") -> 2024-11-15 | B21: =IF(Table!A21<>"",Table!A21,"") -> 2024-11-15 | C21: =IF(Table!C21=1,"חם מאוד",IF(Table!C21=2,"חם",IF(Table!C21=3,"נאה",IF(Table!C21=4,"גשום",IF(Table!C21=5,"גשום מאוד",""))))) -> חם | D21: =IF(Table!D21<>"",Table!D21,"") -> 8254935 | E21: 1388 | F21: =IF(Table!F21<>"",Table!F21,"") -> 689 | G21: =IF(Table!G21<>"",Table!G21,"") -> 76883 | H21: 689 | I21: 0 | J21: 1388 | K21: =IF(Table!I21<>"",Table!I21,"") -> 481 | L21: 0 | M21: =IF(Table!CE21<>"",Table!CE21,"") -> 10558 | N21: 0
A22: =IF(Table!A22<>"",Table!A22,"") -> 2024-11-16 | B22: =IF(Table!A22<>"",Table!A22,"") -> 2024-11-16 | C22: =IF(Table!C22=1,"חם מאוד",IF(Table!C22=2,"חם",IF(Table!C22=3,"נאה",IF(Table!C22=4,"גשום",IF(Table!C22=5,"גשום מאוד",""))))) -> חם | D22: =IF(Table!D22<>"",Table!D22,"") -> 8256323 | E22: 1299 | F22: =IF(Table!F22<>"",Table!F22,"") -> 0 | G22: =IF(Table!G22<>"",Table!G22,"") -> 77572 | H22: 0 | I22: 0 | J22: 1299 | K22: =IF(Table!I22<>"",Table!I22,"") -> 481 | L22: 0 | M22: =IF(Table!CE22<>"",Table!CE22,"") -> 10558 | N22: 0
A23: =IF(Table!A23<>"",Table!A23,"") -> 2024-11-17 | B23: =IF(Table!A23<>"",Table!A23,"") -> 2024-11-17 | C23: =IF(Table!C23=1,"חם מאוד",IF(Table!C23=2,"חם",IF(Table!C23=3,"נאה",IF(Table!C23=4,"גשום",IF(Table!C23=5,"גשום מאוד",""))))) -> חם | D23: =IF(Table!D23<>"",Table!D23,"") -> 8257622 | E23: 1428 | F23: =IF(Table!F23<>"",Table!F23,"") -> 1346 | G23: =IF(Table!G23<>"",Table!G23,"") -> 77572 | H23: 1346 | I23: 0 | J23: 1428 | K23: =IF(Table!I23<>"",Table!I23,"") -> 481 | L23: 1 | M23: =IF(Table!CE23<>"",Table!CE23,"") -> 10558 | N23: 0
A24: =IF(Table!A24<>"",Table!A24,"") -> 2024-11-18 | B24: =IF(Table!A24<>"",Table!A24,"") -> 2024-11-18 | C24: =IF(Table!C24=1,"חם מאוד",IF(Table!C24=2,"חם",IF(Table!C24=3,"נאה",IF(Table!C24=4,"גשום",IF(Table!C24=5,"גשום מאוד",""))))) -> חם | D24: =IF(Table!D24<>"",Table!D24,"") -> 8259050 | E24: 1615 | F24: =IF(Table!F24<>"",Table!F24,"") -> 922 | G24: =IF(Table!G24<>"",Table!G24,"") -> 78918 | H24: 922 | I24: 0 | J24: 1615 | K24: =IF(Table!I24<>"",Table!I24,"") -> 482 | L24: 0 | M24: =IF(Table!CE24<>"",Table!CE24,"") -> 10558 | N24: 0
A25: =IF(Table!A25<>"",Table!A25,"") -> 2024-11-19 | B25: =IF(Table!A25<>"",Table!A25,"") -> 2024-11-19 | C25: =IF(Table!C25=1,"חם מאוד",IF(Table!C25=2,"חם",IF(Table!C25=3,"נאה",IF(Table!C25=4,"גשום",IF(Table!C25=5,"גשום מאוד",""))))) -> חם | D25: =IF(Table!D25<>"",Table!D25,"") -> 8260665 | E25: 1427 | F25: =IF(Table!F25<>"",Table!F25,"") -> 989 | G25: =IF(Table!G25<>"",Table!G25,"") -> 79840 | H25: 989 | I25: 0 | J25: 1427 | K25: =IF(Table!I25<>"",Table!I25,"") -> 482 | L25: 0 | M25: =IF(Table!CE25<>"",Table!CE25,"") -> 10558 | N25: 0
A26: =IF(Table!A26<>"",Table!A26,"") -> 2024-11-20 | B26: =IF(Table!A26<>"",Table!A26,"") -> 2024-11-20 | C26: =IF(Table!C26=1,"חם מאוד",IF(Table!C26=2,"חם",IF(Table!C26=3,"נאה",IF(Table!C26=4,"גשום",IF(Table!C26=5,"גשום מאוד",""))))) -> חם | D26: =IF(Table!D26<>"",Table!D26,"") -> 8262092 | E26: 1313 | F26: =IF(Table!F26<>"",Table!F26,"") -> 923 | G26: =IF(Table!G26<>"",Table!G26,"") -> 80829 | H26: 923 | I26: 0 | J26: 1313 | K26: =IF(Table!I26<>"",Table!I26,"") -> 482 | L26: 0 | M26: =IF(Table!CE26<>"",Table!CE26,"") -> 10558 | N26: 0
A27: =IF(Table!A27<>"",Table!A27,"") -> 2024-11-21 | B27: =IF(Table!A27<>"",Table!A27,"") -> 2024-11-21 | C27: =IF(Table!C27=1,"חם מאוד",IF(Table!C27=2,"חם",IF(Table!C27=3,"נאה",IF(Table!C27=4,"גשום",IF(Table!C27=5,"גשום מאוד",""))))) -> חם | D27: =IF(Table!D27<>"",Table!D27,"") -> 8263405 | E27: 1202 | F27: =IF(Table!F27<>"",Table!F27,"") -> 1134 | G27: =IF(Table!G27<>"",Table!G27,"") -> 81752 | H27: 1134 | I27: 0 | J27: 1202 | K27: =IF(Table!I27<>"",Table!I27,"") -> 482 | L27: 0 | M27: =IF(Table!CE27<>"",Table!CE27,"") -> 10558 | N27: 0
A28: =IF(Table!A28<>"",Table!A28,"") -> 2024-11-22 | B28: =IF(Table!A28<>"",Table!A28,"") -> 2024-11-22 | C28: =IF(Table!C28=1,"חם מאוד",IF(Table!C28=2,"חם",IF(Table!C28=3,"נאה",IF(Table!C28=4,"גשום",IF(Table!C28=5,"גשום מאוד",""))))) -> חם | D28: =IF(Table!D28<>"",Table!D28,"") -> 8264607 | E28: 1357 | F28: =IF(Table!F28<>"",Table!F28,"") -> 542 | G28: =IF(Table!G28<>"",Table!G28,"") -> 82886 | H28: 542 | I28: 0 | J28: 1357 | K28: =IF(Table!I28<>"",Table!I28,"") -> 482 | L28: 0 | M28: =IF(Table!CE28<>"",Table!CE28,"") -> 10558 | N28: 0
A29: =IF(Table!A29<>"",Table!A29,"") -> 2024-11-23 | B29: =IF(Table!A29<>"",Table!A29,"") -> 2024-11-23 | C29: =IF(Table!C29=1,"חם מאוד",IF(Table!C29=2,"חם",IF(Table!C29=3,"נאה",IF(Table!C29=4,"גשום",IF(Table!C29=5,"גשום מאוד",""))))) -> חם | D29: =IF(Table!D29<>"",Table!D29,"") -> 8265964 | E29: 1290 | F29: =IF(Table!F29<>"",Table!F29,"") -> 0 | G29: =IF(Table!G29<>"",Table!G29,"") -> 83428 | H29: 0 | I29: 0 | J29: 1290 | K29: =IF(Table!I29<>"",Table!I29,"") -> 482 | L29: 0 | M29: =IF(Table!CE29<>"",Table!CE29,"") -> 10558 | N29: 0
A30: =IF(Table!A30<>"",Table!A30,"") -> 2024-11-24 | B30: =IF(Table!A30<>"",Table!A30,"") -> 2024-11-24 | C30: =IF(Table!C30=1,"חם מאוד",IF(Table!C30=2,"חם",IF(Table!C30=3,"נאה",IF(Table!C30=4,"גשום",IF(Table!C30=5,"גשום מאוד",""))))) -> חם | D30: =IF(Table!D30<>"",Table!D30,"") -> 8267254 | E30: 1194 | F30: =IF(Table!F30<>"",Table!F30,"") -> 990 | G30: =IF(Table!G30<>"",Table!G30,"") -> 83428 | H30: 990 | I30: 0 | J30: 1194 | K30: =IF(Table!I30<>"",Table!I30,"") -> 482 | L30: 0 | M30: =IF(Table!CE30<>"",Table!CE30,"") -> 10558 | N30: 0
A31: =IF(Table!A31<>"",Table!A31,"") -> 2024-11-25 | B31: =IF(Table!A31<>"",Table!A31,"") -> 2024-11-25 | C31: =IF(Table!C31=1,"חם מאוד",IF(Table!C31=2,"חם",IF(Table!C31=3,"נאה",IF(Table!C31=4,"גשום",IF(Table!C31=5,"גשום מאוד",""))))) -> חם | D31: =IF(Table!D31<>"",Table!D31,"") -> 8268448 | E31: 1130 | F31: =IF(Table!F31<>"",Table!F31,"") -> 674 | G31: =IF(Table!G31<>"",Table!G31,"") -> 84418 | H31: 674 | I31: 0 | J31: 1130 | K31: =IF(Table!I31<>"",Table!I31,"") -> 482 | L31: 1 | M31: =IF(Table!CE31<>"",Table!CE31,"") -> 10558 | N31: 0
A32: =IF(Table!A32<>"",Table!A32,"") -> 2024-11-26 | B32: =IF(Table!A32<>"",Table!A32,"") -> 2024-11-26 | C32: =IF(Table!C32=1,"חם מאוד",IF(Table!C32=2,"חם",IF(Table!C32=3,"נאה",IF(Table!C32=4,"גשום",IF(Table!C32=5,"גשום מאוד",""))))) -> חם | D32: =IF(Table!D32<>"",Table!D32,"") -> 8269578 | E32: 1266 | F32: =IF(Table!F32<>"",Table!F32,"") -> 1096 | G32: =IF(Table!G32<>"",Table!G32,"") -> 85092 | H32: 1096 | I32: 0 | J32: 1266 | K32: =IF(Table!I32<>"",Table!I32,"") -> 483 | L32: 0 | M32: =IF(Table!CE32<>"",Table!CE32,"") -> 10558 | N32: 0
A33: =IF(Table!A33<>"",Table!A33,"") -> 2024-11-27 | B33: =IF(Table!A33<>"",Table!A33,"") -> 2024-11-27 | C33: =IF(Table!C33=1,"חם מאוד",IF(Table!C33=2,"חם",IF(Table!C33=3,"נאה",IF(Table!C33=4,"גשום",IF(Table!C33=5,"גשום מאוד",""))))) -> חם | D33: =IF(Table!D33<>"",Table!D33,"") -> 8270844 | E33: 1164 | F33: =IF(Table!F33<>"",Table!F33,"") -> 938 | G33: =IF(Table!G33<>"",Table!G33,"") -> 86188 | H33: 938 | I33: 0 | J33: 1164 | K33: =IF(Table!I33<>"",Table!I33,"") -> 483 | L33: 0 | M33: =IF(Table!CE33<>"",Table!CE33,"") -> 10558 | N33: 0
A34: =IF(Table!A34<>"",Table!A34,"") -> 2024-11-28 | B34: =IF(Table!A34<>"",Table!A34,"") -> 2024-11-28 | C34: =IF(Table!C34=1,"חם מאוד",IF(Table!C34=2,"חם",IF(Table!C34=3,"נאה",IF(Table!C34=4,"גשום",IF(Table!C34=5,"גשום מאוד",""))))) -> חם | D34: =IF(Table!D34<>"",Table!D34,"") -> 8272008 | E34: 1189 | F34: =IF(Table!F34<>"",Table!F34,"") -> 1030 | G34: =IF(Table!G34<>"",Table!G34,"") -> 87126 | H34: 1030 | I34: 0 | J34: 1189 | K34: =IF(Table!I34<>"",Table!I34,"") -> 483 | L34: 0 | M34: =IF(Table!CE34<>"",Table!CE34,"") -> 10558 | N34: 0
A35: =IF(Table!A35<>"",Table!A35,"") -> 2024-11-29 | B35: =IF(Table!A35<>"",Table!A35,"") -> 2024-11-29 | C35: =IF(Table!C35=1,"חם מאוד",IF(Table!C35=2,"חם",IF(Table!C35=3,"נאה",IF(Table!C35=4,"גשום",IF(Table!C35=5,"גשום מאוד",""))))) -> חם | D35: =IF(Table!D35<>"",Table!D35,"") -> 8273197 | E35: =IF(AND(D36<>"",D35<>""),D36-D35, "") -> 1373 | F35: =IF(Table!F35<>"",Table!F35,"") -> 652 | G35: =IF(Table!G35<>"",Table!G35,"") -> 88156 | H35: =IF(AND(G36<>"",G35<>""),G36-G35, "") -> 652 | I35: =IF(AND(H35<>"",F35<>""),F35-H35, "") -> 0 | J35: =IF(AND(E35<>"",I35<>""),E35-I35, "") -> 1373 | K35: =IF(Table!I35<>"",Table!I35,"") -> 483 | L35: =IF(AND(K36<>"",K35<>""),K36-K35, "") -> 1 | M35: =IF(Table!CE35<>"",Table!CE35,"") -> 10558 | N35: =IF(AND(M36<>"",M35<>""),M36-M35, "") -> 0
A36: =IF(Table!A36<>"",Table!A36,"") -> 2024-11-30 | B36: =IF(Table!A36<>"",Table!A36,"") -> 2024-11-30 | C36: =IF(Table!C36=1,"חם מאוד",IF(Table!C36=2,"חם",IF(Table!C36=3,"נאה",IF(Table!C36=4,"גשום",IF(Table!C36=5,"גשום מאוד",""))))) -> חם | D36: =IF(Table!D36<>"",Table!D36,"") -> 8274570 | E36: =IF(AND(D37<>"",D36<>""),D37-D36, "") -> 1299 | F36: =IF(Table!F36<>"",Table!F36,"") -> 0 | G36: =IF(Table!G36<>"",Table!G36,"") -> 88808 | H36: =IF(AND(G37<>"",G36<>""),G37-G36, "") -> 0 | I36: =IF(AND(H36<>"",F36<>""),F36-H36, "") -> 0 | J36: =IF(AND(E36<>"",I36<>""),E36-I36, "") -> 1299 | K36: =IF(Table!I36<>"",Table!I36,"") -> 484 | L36: =IF(AND(K37<>"",K36<>""),K37-K36, "") -> 0 | M36: =IF(Table!CE36<>"",Table!CE36,"") -> 10558 | N36: =IF(AND(M37<>"",M36<>""),M37-M36, "") -> 0
A37: =IF(Table!A37<>"",Table!A37,"") -> 2024-12-01 | B37: =IF(Table!A37<>"",Table!A37,"") -> 2024-12-01 | C37: =IF(Table!C37=1,"חם מאוד",IF(Table!C37=2,"חם",IF(Table!C37=3,"נאה",IF(Table!C37=4,"גשום",IF(Table!C37=5,"גשום מאוד",""))))) ->  | D37: =IF(Table!D37<>"",Table!D37,"") -> 8275869 | E37: =IF(AND(D38<>"",D37<>""),D38-D37, "") ->  | F37: =IF(Table!F37<>"",Table!F37,"") ->  | G37: =IF(Table!G37<>"",Table!G37,"") -> 88808 | H37: =IF(AND(G38<>"",G37<>""),G38-G37, "") ->  | I37: =IF(AND(H37<>"",F37<>""),F37-H37, "") ->  | J37: =IF(AND(E37<>"",I37<>""),E37-I37, "") ->  | K37: =IF(Table!I37<>"",Table!I37,"") -> 484 | L37: =IF(AND(K38<>"",K37<>""),K38-K37, "") ->  | M37: =IF(Table!CE37<>"",Table!CE37,"") -> 10558 | N37: =IF(AND(M38<>"",M37<>""),M38-M37, "") -> 
A38: =IF(Table!A38<>"",Table!A38,"") -> 2024-12-02 | B38: =IF(Table!A38<>"",Table!A38,"") -> 2024-12-02 | C38: =IF(Table!C38=1,"חם מאוד",IF(Table!C38=2,"חם",IF(Table!C38=3,"נאה",IF(Table!C38=4,"גשום",IF(Table!C38=5,"גשום מאוד",""))))) ->  | D38: =IF(Table!D38<>"",Table!D38,"") ->  | F38: =IF(Table!F38<>"",Table!F38,"") ->  | G38: =IF(Table!G38<>"",Table!G38,"") ->  | K38: =IF(Table!I38<>"",Table!I38,"") ->  | M38: =IF(Table!CE38<>"",Table!CE38,"") -> 
A39: סה"כ לחודש | D39: =IF(D38<>"",D38-D7,IF(D37<>"",D37-D7,IF(D36<>"",D36-D7,D35-D7))) -> 41436 | E39: =SUM(E7:E38) -> 41436 | F39: =SUM(F7:F38) -> 26875 | G39: =IF(G38<>"",G38-G7,IF(G37<>"",G37-G7,IF(G36<>"",G36-G7,G35-G7))) -> 26875 | H39: =SUM(H7:H38) -> 26875 | I39: =SUM(I7:I38) -> 0 | J39: =SUM(J7:J38) -> 41436 | K39: =IF(K38<>"",K38-K7,IF(K37<>"",K37-K7,IF(K36<>"",K36-K7,K35-K7))) -> 5 | L39: =SUM(L7:L38) -> 5 | M39: =IF(M38<>"",M38-M7,IF(M37<>"",M37-M7,IF(M36<>"",M36-M7,M35-M7))) -> 228 | N39: =SUM(N7:N38) -> 228
A40: ממוצע | E40: =AVERAGE(E7:E38) -> 1381.2 | F40: =AVERAGE(F7:F38) -> 895.8333333 | H40: =AVERAGE(H7:H38) -> 895.8333333 | I40: =AVERAGE(I7:I38) -> 0 | J40: =AVERAGE(J7:J38) -> 1381.2 | L40: =AVERAGE(L7:L38) -> 0.1666666667 | N40: =AVERAGE(N7:N38) -> 7.6
A41: מקסימום | E41: =MAX(E7:E38) -> 1615 | F41: =MAX(F7:F38) -> 1599 | H41: =MAX(H7:H38) -> 1599 | I41: =MAX(I7:I38) -> 0 | J41: =MAX(J7:J38) -> 1615 | L41: =MAX(L7:L38) -> 1 | N41: =MAX(N7:N38) -> 48
A42: מינימום | E42: =MIN(E7:E38) -> 1130 | F42: =MIN(F7:F38) -> 0 | H42: =MIN(H7:H38) -> 0 | I42: =MIN(I7:I38) -> 0 | J42: =MIN(J7:J38) -> 1130 | L42: =MIN(L7:L38) -> 0 | N42: =MIN(N7:N38) -> 0

Sheet איכות שפכים
A2: =סיכום!C11 -> מט"ש נובמבר 2024 | E2: נתוני תפעול - גליון 2 - איכות שפכים
A3: יחידת פעולה | C3: מעבדה
A4: תדירות | C4: פעם בשבוע | J4: פעמים בחודש | K4: פעם בחודש | M4: דיגום כל חודש אי זוגי: ינואר, מרץ, מאי, יולי, ספטמבר, נובמבר | T4: פעם בשלושה חודשים: ינואר, אפריל, יולי, אוקטובר
A5: תאריך | B5: יום בשבוע | C5: צח"ב | D5: צח"כ | E5: מוצקים מרחפים | F5: חנקן אמוניאקלי | G5: שומנים | H5: כלורידים | I5: זרחן כללי | J5: חנקן קלדהל | K5: חנקן כללי | L5: שמן מנרלי | M5: מוצקים נדיפים | N5: צח"ב מומס | O5: צח"כ מומס | P5: דטרגנט אניוני | Q5: סולפיד מומס | R5: פנול מרכיבים | S5: ציאניד | T5: כלל מוצקים נמסים | U5: סולפאט | V5: קשיות כ-CaCO3 | W5: אלקליניות כ- CaCO3 | X5: סריקת מתכות
C6: מג"ל | D6: מג"ל | E6: מג"ל | F6: מג"ל | G6: מג"ל | H6: מג"ל | I6: מג"ל | J6: מג"ל | K6: מג"ל | L6: מג"ל | M6: מג"ל | N6: מג"ל | O6: מג"ל | P6: מג"ל | Q6: מג"ל | R6: מג"ל | S6: מג"ל | T6: מג"ל | U6: מג"ל | V6: מג"ל | W6: מג"ל | X6: מג"ל
A7: =IF(Table!A7<>"",Table!A7,"") -> 2024-11-01 | B7: =IF(Table!A7<>"",Table!A7,"") -> 2024-11-01 | C7: =IF(Table!J7<>"",Table!J7,"") ->  | D7: =IF(Table!K7<>"",Table!K7,"") ->  | E7: =IF(Table!L7<>"",Table!L7,"") ->  | F7: =IF(Table!M7<>"",Table!M7,"") ->  | G7: =IF(Table!N7<>"",Table!N7,"") ->  | H7: =IF(Table!O7<>"",Table!O7,"") ->  | I7: =IF(Table!P7<>"",Table!P7,"") ->  | J7: =IF(Table!Q7<>"",Table!Q7,"") ->  | K7: =IF(Table!R7<>"",Table!R7,"") ->  | L7: =IF(Table!S7<>"",Table!S7,"") ->  | M7: =IF(Table!T7<>"",Table!T7,"") ->  | N7: =IF(Table!U7<>"",Table!U7,"") ->  | O7: =IF(Table!V7<>"",Table!V7,"") ->  | P7: =IF(Table!W7<>"",Table!W7,"") ->  | Q7: =IF(Table!X7<>"",Table!X7,"") ->  | R7: =IF(Table!Y7<>"",Table!Y7,"") ->  | S7: =IF(Table!Z7<>"",Table!Z7,"") ->  | T7: =IF(Table!AA7<>"",Table!AA7,"") ->  | U7: =IF(Table!AB7<>"",Table!AB7,"") ->  | V7: =IF(Table!AC7<>"",Table!AC7,"") ->  | W7: =IF(Table!AD7<>"",Table!AD7,"") ->  | X7: =IF(Table!AE7<>"",Table!AE7,"") -> 
A8: =IF(Table!A8<>"",Table!A8,"") -> 2024-11-02 | B8: =IF(Table!A8<>"",Table!A8,"") -> 2024-11-02 | C8: =IF(Table!J8<>"",Table!J8,"") ->  | D8: =IF(Table!K8<>"",Table!K8,"") ->  | E8: =IF(Table!L8<>"",Table!L8,"") ->  | F8: =IF(Table!M8<>"",Table!M8,"") ->  | G8: =IF(Table!N8<>"",Table!N8,"") ->  | H8: =IF(Table!O8<>"",Table!O8,"") ->  | I8: =IF(Table!P8<>"",Table!P8,"") ->  | J8: =IF(Table!Q8<>"",Table!Q8,"") ->  | K8: =IF(Table!R8<>"",Table!R8,"") ->  | L8: =IF(Table!S8<>"",Table!S8,"") ->  | M8: =IF(Table!T8<>"",Table!T8,"") ->  | N8: =IF(Table!U8<>"",Table!U8,"") ->  | O8: =IF(Table!V8<>"",Table!V8,"") ->  | P8: =IF(Table!W8<>"",Table!W8,"") ->  | Q8: =IF(Table!X8<>"",Table!X8,"") ->  | R8: =IF(Table!Y8<>"",Table!Y8,"") ->  | S8: =IF(Table!Z8<>"",Table!Z8,"") ->  | T8: =IF(Table!AA8<>"",Table!AA8,"") ->  | U8: =IF(Table!AB8<>"",Table!AB8,"") ->  | V8: =IF(Table!AC8<>"",Table!AC8,"") ->  | W8: =IF(Table!AD8<>"",Table!AD8,"") ->  | X8: =IF(Table!AE8<>"",Table!AE8,"") -> 
A9: =IF(Table!A9<>"",Table!A9,"") -> 2024-11-03 | B9: =IF(Table!A9<>"",Table!A9,"") -> 2024-11-03 | C9: =IF(Table!J9<>"",Table!J9,"") ->  | D9: =IF(Table!K9<>"",Table!K9,"") ->  | E9: =IF(Table!L9<>"",Table!L9,"") ->  | F9: =IF(Table!M9<>"",Table!M9,"") ->  | G9: =IF(Table!N9<>"",Table!N9,"") ->  | H9: =IF(Table!O9<>"",Table!O9,"") ->  | I9: =IF(Table!P9<>"",Table!P9,"") ->  | J9: =IF(Table!Q9<>"",Table!Q9,"") ->  | K9: =IF(Table!R9<>"",Table!R9,"") ->  | L9: =IF(Table!S9<>"",Table!S9,"") ->  | M9: =IF(Table!T9<>"",Table!T9,"") ->  | N9: =IF(Table!U9<>"",Table!U9,"") ->  | O9: =IF(Table!V9<>"",Table!V9,"") ->  | P9: =IF(Table!W9<>"",Table!W9,"") ->  | Q9: =IF(Table!X9<>"",Table!X9,"") ->  | R9: =IF(Table!Y9<>"",Table!Y9,"") ->  | S9: =IF(Table!Z9<>"",Table!Z9,"") ->  | T9: =IF(Table!AA9<>"",Table!AA9,"") ->  | U9: =IF(Table!AB9<>"",Table!AB9,"") ->  | V9: =IF(Table!AC9<>"",Table!AC9,"") ->  | W9: =IF(Table!AD9<>"",Table!AD9,"") ->  | X9: =IF(Table!AE9<>"",Table!AE9,"") -> 
A10: =IF(Table!A10<>"",Table!A10,"") -> 2024-11-04 | B10: =IF(Table!A10<>"",Table!A10,"") -> 2024-11-04 | C10: =IF(Table!J10<>"",Table!J10,"") -> 296 | D10: =IF(Table!K10<>"",Table!K10,"") -> 718 | E10: =IF(Table!L10<>"",Table!L10,"") -> 294 | F10: =IF(Table!M10<>"",Table!M10,"") -> 34.85 | G10: =IF(Table!N10<>"",Table!N10,"") -> 122 | H10: =IF(Table!O10<>"",Table!O10,"") -> 0 | I10: =IF(Table!P10<>"",Table!P10,"") -> 6.4 | J10: =IF(Table!Q10<>"",Table!Q10,"") -> 56 | K10: =IF(Table!R10<>"",Table!R10,"") -> 0 | L10: =IF(Table!S10<>"",Table!S10,"") -> 10 | M10: =IF(Table!T10<>"",Table!T10,"") -> 287 | N10: =IF(Table!U10<>"",Table!U10,"") -> 109 | O10: =IF(Table!V10<>"",Table!V10,"") -> 214 | P10: =IF(Table!W10<>"",Table!W10,"") -> 8.2 | Q10: =IF(Table!X10<>"",Table!X10,"") -> 2.1 | R10: 0 | S10: =IF(Table!Z10<>"",Table!Z10,"") -> 0.005 | T10: 0 | U10: 0 | V10: 0 | W10: 0 | X10: 0
A11: =IF(Table!A11<>"",Table!A11,"") -> 2024-11-05 | B11: =IF(Table!A11<>"",Table!A11,"") -> 2024-11-05 | C11: =IF(Table!J11<>"",Table!J11,"") ->  | D11: =IF(Table!K11<>"",Table!K11,"") ->  | E11: =IF(Table!L11<>"",Table!L11,"") ->  | F11: =IF(Table!M11<>"",Table!M11,"") ->  | G11: =IF(Table!N11<>"",Table!N11,"") ->  | H11: =IF(Table!O11<>"",Table!O11,"") ->  | I11: =IF(Table!P11<>"",Table!P11,"") ->  | J11: =IF(Table!Q11<>"",Table!Q11,"") ->  | K11: =IF(Table!R11<>"",Table!R11,"") ->  | L11: =IF(Table!S11<>"",Table!S11,"") ->  | M11: =IF(Table!T11<>"",Table!T11,"") ->  | N11: =IF(Table!U11<>"",Table!U11,"") ->  | O11: =IF(Table!V11<>"",Table!V11,"") ->  | P11: =IF(Table!W11<>"",Table!W11,"") ->  | Q11: =IF(Table!X11<>"",Table!X11,"") ->  | R11: =IF(Table!Y11<>"",Table!Y11,"") ->  | S11: =IF(Table!Z11<>"",Table!Z11,"") ->  | T11: =IF(Table!AA11<>"",Table!AA11,"") ->  | U11: =IF(Table!AB11<>"",Table!AB11,"") ->  | V11: =IF(Table!AC11<>"",Table!AC11,"") ->  | W11: =IF(Table!AD11<>"",Table!AD11,"") ->  | X11: =IF(Table!AE11<>"",Table!AE11,"") -> 
A12: =IF(Table!A12<>"",Table!A12,"") -> 2024-11-06 | B12: =IF(Table!A12<>"",Table!A12,"") -> 2024-11-06 | C12: =IF(Table!J12<>"",Table!J12,"") ->  | D12: =IF(Table!K12<>"",Table!K12,"") ->  | E12: =IF(Table!L12<>"",Table!L12,"") ->  | F12: =IF(Table!M12<>"",Table!M12,"") ->  | G12: =IF(Table!N12<>"",Table!N12,"") ->  | H12: =IF(Table!O12<>"",Table!O12,"") ->  | I12: =IF(Table!P12<>"",Table!P12,"") ->  | J12: =IF(Table!Q12<>"",Table!Q12,"") ->  | K12: =IF(Table!R12<>"",Table!R12,"") ->  | L12: =IF(Table!S12<>"",Table!S12,"") ->  | M12: =IF(Table!T12<>"",Table!T12,"") ->  | N12: =IF(Table!U12<>"",Table!U12,"") ->  | O12: =IF(Table!V12<>"",Table!V12,"") ->  | P12: =IF(Table!W12<>"",Table!W12,"") ->  | Q12: =IF(Table!X12<>"",Table!X12,"") ->  | R12: =IF(Table!Y12<>"",Table!Y12,"") ->  | S12: =IF(Table!Z12<>"",Table!Z12,"") ->  | T12: =IF(Table!AA12<>"",Table!AA12,"") ->  | U12: =IF(Table!AB12<>"",Table!AB12,"") ->  | V12: =IF(Table!AC12<>"",Table!AC12,"") ->  | W12: =IF(Table!AD12<>"",Table!AD12,"") ->  | X12: =IF(Table!AE12<>"",Table!AE12,"") -> 
A13: =IF(Table!A13<>"",Table!A13,"") -> 2024-11-07 | B13: =IF(Table!A13<>"",Table!A13,"") -> 2024-11-07 | C13: =IF(Table!J13<>"",Table!J13,"") ->  | D13: =IF(Table!K13<>"",Table!K13,"") ->  | E13: =IF(Table!L13<>"",Table!L13,"") ->  | F13: =IF(Table!M13<>"",Table!M13,"") ->  | G13: =IF(Table!N13<>"",Table!N13,"") ->  | H13: =IF(Table!O13<>"",Table!O13,"") ->  | I13: =IF(Table!P13<>"",Table!P13,"") ->  | J13: =IF(Table!Q13<>"",Table!Q13,"") ->  | K13: =IF(Table!R13<>"",Table!R13,"") ->  | L13: =IF(Table!S13<>"",Table!S13,"") ->  | M13: =IF(Table!T13<>"",Table!T13,"") ->  | N13: =IF(Table!U13<>"",Table!U13,"") ->  | O13: =IF(Table!V13<>"",Table!V13,"") ->  | P13: =IF(Table!W13<>"",Table!W13,"") ->  | Q13: =IF(Table!X13<>"",Table!X13,"") ->  | R13: =IF(Table!Y13<>"",Table!Y13,"") ->  | S13: =IF(Table!Z13<>"",Table!Z13,"") ->  | T13: =IF(Table!AA13<>"",Table!AA13,"") ->  | U13: =IF(Table!AB13<>"",Table!AB13,"") ->  | V13: =IF(Table!AC13<>"",Table!AC13,"") ->  | W13: =IF(Table!AD13<>"",Table!AD13,"") ->  | X13: =IF(Table!AE13<>"",Table!AE13,"") -> 
A14: =IF(Table!A14<>"",Table!A14,"") -> 2024-11-08 | B14: =IF(Table!A14<>"",Table!A14,"") -> 2024-11-08 | C14: =IF(Table!J14<>"",Table!J14,"") ->  | D14: =IF(Table!K14<>"",Table!K14,"") ->  | E14: =IF(Table!L14<>"",Table!L14,"") ->  | F14: =IF(Table!M14<>"",Table!M14,"") ->  | G14: =IF(Table!N14<>"",Table!N14,"") ->  | H14: =IF(Table!O14<>"",Table!O14,"") ->  | I14: =IF(Table!P14<>"",Table!P14,"") ->  | J14: =IF(Table!Q14<>"",Table!Q14,"") ->  | K14: =IF(Table!R14<>"",Table!R14,"") ->  | L14: =IF(Table!S14<>"",Table!S14,"") ->  | M14: =IF(Table!T14<>"",Table!T14,"") ->  | N14: =IF(Table!U14<>"",Table!U14,"") ->  | O14: =IF(Table!V14<>"",Table!V14,"") ->  | P14: =IF(Table!W14<>"",Table!W14,"") ->  | Q14: =IF(Table!X14<>"",Table!X14,"") ->  | R14: =IF(Table!Y14<>"",Table!Y14,"") ->  | S14: =IF(Table!Z14<>"",Table!Z14,"") ->  | T14: =IF(Table!AA14<>"",Table!AA14,"") ->  | U14: =IF(Table!AB14<>"",Table!AB14,"") ->  | V14: =IF(Table!AC14<>"",Table!AC14,"") ->  | W14: =IF(Table!AD14<>"",Table!AD14,"") ->  | X14: =IF(Table!AE14<>"",Table!AE14,"") -> 
A15: =IF(Table!A15<>"",Table!A15,"") -> 2024-11-09 | B15: =IF(Table!A15<>"",Table!A15,"") -> 2024-11-09 | C15: =IF(Table!J15<>"",Table!J15,"") ->  | D15: =IF(Table!K15<>"",Table!K15,"") ->  | E15: =IF(Table!L15<>"",Table!L15,"") ->  | F15: =IF(Table!M15<>"",Table!M15,"") ->  | G15: =IF(Table!N15<>"",Table!N15,"") ->  | H15: =IF(Table!O15<>"",Table!O15,"") ->  | I15: =IF(Table!P15<>"",Table!P15,"") ->  | J15: =IF(Table!Q15<>"",Table!Q15,"") ->  | K15: =IF(Table!R15<>"",Table!R15,"") ->  | L15: =IF(Table!S15<>"",Table!S15,"") ->  | M15: =IF(Table!T15<>"",Table!T15,"") ->  | N15: =IF(Table!U15<>"",Table!U15,"") ->  | O15: =IF(Table!V15<>"",Table!V15,"") ->  | P15: =IF(Table!W15<>"",Table!W15,"") ->  | Q15: =IF(Table!X15<>"",Table!X15,"") ->  | R15: =IF(Table!Y15<>"",Table!Y15,"") ->  | S15: =IF(Table!Z15<>"",Table!Z15,"") ->  | T15: =IF(Table!AA15<>"",Table!AA15,"") ->  | U15: =IF(Table!AB15<>"",Table!AB15,"") ->  | V15: =IF(Table!AC15<>"",Table!AC15,"") ->  | W15: =IF(Table!AD15<>"",Table!AD15,"") ->  | X15: =IF(Table!AE15<>"",Table!AE15,"") -> 
A16: =IF(Table!A16<>"",Table!A16,"") -> 2024-11-10 | B16: =IF(Table!A16<>"",Table!A16,"") -> 2024-11-10 | C16: =IF(Table!J16<>"",Table!J16,"") ->  | D16: =IF(Table!K16<>"",Table!K16,"") ->  | E16: =IF(Table!L16<>"",Table!L16,"") ->  | F16: =IF(Table!M16<>"",Table!M16,"") ->  | G16: =IF(Table!N16<>"",Table!N16,"") ->  | H16: =IF(Table!O16<>"",Table!O16,"") ->  | I16: =IF(Table!P16<>"",Table!P16,"") ->  | J16: =IF(Table!Q16<>"",Table!Q16,"") ->  | K16: =IF(Table!R16<>"",Table!R16,"") ->  | L16: =IF(Table!S16<>"",Table!S16,"") ->  | M16: =IF(Table!T16<>"",Table!T16,"") ->  | N16: =IF(Table!U16<>"",Table!U16,"") ->  | O16: =IF(Table!V16<>"",Table!V16,"") ->  | P16: =IF(Table!W16<>"",Table!W16,"") ->  | Q16: =IF(Table!X16<>"",Table!X16,"") ->  | R16: =IF(Table!Y16<>"",Table!Y16,"") ->  | S16: =IF(Table!Z16<>"",Table!Z16,"") ->  | T16: =IF(Table!AA16<>"",Table!AA16,"") ->  | U16: =IF(Table!AB16<>"",Table!AB16,"") ->  | V16: =IF(Table!AC16<>"",Table!AC16,"") ->  | W16: =IF(Table!AD16<>"",Table!AD16,"") ->  | X16: =IF(Table!AE16<>"",Table!AE16,"") -> 
A17: =IF(Table!A17<>"",Table!A17,"") -> 2024-11-11 | B17: =IF(Table!A17<>"",Table!A17,"") -> 2024-11-11 | C17: =IF(Table!J17<>"",Table!J17,"") ->  | D17: =IF(Table!K17<>"",Table!K17,"") ->  | E17: =IF(Table!L17<>"",Table!L17,"") ->  | F17: =IF(Table!M17<>"",Table!M17,"") ->  | G17: =IF(Table!N17<>"",Table!N17,"") ->  | H17: =IF(Table!O17<>"",Table!O17,"") ->  | I17: =IF(Table!P17<>"",Table!P17,"") ->  | J17: =IF(Table!Q17<>"",Table!Q17,"") -> 67 | K17: =IF(Table!R17<>"",Table!R17,"") ->  | L17: =IF(Table!S17<>"",Table!S17,"") ->  | M17: =IF(Table!T17<>"",Table!T17,"") ->  | N17: =IF(Table!U17<>"",Table!U17,"") ->  | O17: =IF(Table!V17<>"",Table!V17,"") ->  | P17: =IF(Table!W17<>"",Table!W17,"") ->  | Q17: =IF(Table!X17<>"",Table!X17,"") ->  | R17: =IF(Table!Y17<>"",Table!Y17,"") ->  | S17: =IF(Table!Z17<>"",Table!Z17,"") ->  | T17: =IF(Table!AA17<>"",Table!AA17,"") ->  | U17: =IF(Table!AB17<>"",Table!AB17,"") ->  | V17: =IF(Table!AC17<>"",Table!AC17,"") ->  | W17: =IF(Table!AD17<>"",Table!AD17,"") ->  | X17: =IF(Table!AE17<>"",Table!AE17,"") -> 
A18: =IF(Table!A18<>"",Table!A18,"") -> 2024-11-12 | B18: =IF(Table!A18<>"",Table!A18,"") -> 2024-11-12 | C18: =IF(Table!J18<>"",Table!J18,"") ->  | D18: =IF(Table!K18<>"",Table!K18,"") ->  | E18: =IF(Table!L18<>"",Table!L18,"") ->  | F18: =IF(Table!M18<>"",Table!M18,"") ->  | G18: =IF(Table!N18<>"",Table!N18,"") ->  | H18: =IF(Table!O18<>"",Table!O18,"") ->  | I18: =IF(Table!P18<>"",Table!P18,"") ->  | J18: =IF(Table!Q18<>"",Table!Q18,"") ->  | K18: =IF(Table!R18<>"",Table!R18,"") ->  | L18: =IF(Table!S18<>"",Table!S18,"") ->  | M18: =IF(Table!T18<>"",Table!T18,"") ->  | N18: =IF(Table!U18<>"",Table!U18,"") ->  | O18: =IF(Table!V18<>"",Table!V18,"") ->  | P18: =IF(Table!W18<>"",Table!W18,"") ->  | Q18: =IF(Table!X18<>"",Table!X18,"") ->  | R18: =IF(Table!Y18<>"",Table!Y18,"") ->  | S18: =IF(Table!Z18<>"",Table!Z18,"") ->  | T18: =IF(Table!AA18<>"",Table!AA18,"") ->  | U18: =IF(Table!AB18<>"",Table!AB18,"") ->  | V18: =IF(Table!AC18<>"",Table!AC18,"") ->  | W18: =IF(Table!AD18<>"",Table!AD18,"") ->  | X18: =IF(Table!AE18<>"",Table!AE18,"") -> 
A19: =IF(Table!A19<>"",Table!A19,"") -> 2024-11-13 | B19: =IF(Table!A19<>"",Table!A19,"") -> 2024-11-13 | C19: =IF(Table!J19<>"",Table!J19,"") ->  | D19: =IF(Table!K19<>"",Table!K19,"") ->  | E19: =IF(Table!L19<>"",Table!L19,"") ->  | F19: =IF(Table!M19<>"",Table!M19,"") ->  | G19: =IF(Table!N19<>"",Table!N19,"") ->  | H19: =IF(Table!O19<>"",Table!O19,"") ->  | I19: =IF(Table!P19<>"",Table!P19,"") ->  | J19: =IF(Table!Q19<>"",Table!Q19,"") ->  | K19: =IF(Table!R19<>"",Table!R19,"") ->  | L19: =IF(Table!S19<>"",Table!S19,"") ->  | M19: =IF(Table!T19<>"",Table!T19,"") ->  | N19: =IF(Table!U19<>"",Table!U19,"") ->  | O19: =IF(Table!V19<>"",Table!V19,"") ->  | P19: =IF(Table!W19<>"",Table!W19,"") ->  | Q19: =IF(Table!X19<>"",Table!X19,"") ->  | R19: =IF(Table!Y19<>"",Table!Y19,"") ->  | S19: =IF(Table!Z19<>"",Table!Z19,"") ->  | T19: =IF(Table!AA19<>"",Table!AA19,"") ->  | U19: =IF(Table!AB19<>"",Table!AB19,"") ->  | V19: =IF(Table!AC19<>"",Table!AC19,"") ->  | W19: =IF(Table!AD19<>"",Table!AD19,"") ->  | X19: =IF(Table!AE19<>"",Table!AE19,"") -> 
A20: =IF(Table!A20<>"",Table!A20,"") -> 2024-11-14 | B20: =IF(Table!A20<>"",Table!A20,"") -> 2024-11-14 | C20: =IF(Table!J20<>"",Table!J20,"") ->  | D20: =IF(Table!K20<>"",Table!K20,"") ->  | E20: =IF(Table!L20<>"",Table!L20,"") ->  | F20: =IF(Table!M20<>"",Table!M20,"") ->  | G20: =IF(Table!N20<>"",Table!N20,"") ->  | H20: =IF(Table!O20<>"",Table!O20,"") ->  | I20: =IF(Table!P20<>"",Table!P20,"") ->  | J20: =IF(Table!Q20<>"",Table!Q20,"") ->  | K20: =IF(Table!R20<>"",Table!R20,"") ->  | L20: =IF(Table!S20<>"",Table!S20,"") ->  | M20: =IF(Table!T20<>"",Table!T20,"") ->  | N20: =IF(Table!U20<>"",Table!U20,"") ->  | O20: =IF(Table!V20<>"",Table!V20,"") ->  | P20: =IF(Table!W20<>"",Table!W20,"") ->  | Q20: =IF(Table!X20<>"",Table!X20,"") ->  | R20: =IF(Table!Y20<>"",Table!Y20,"") ->  | S20: =IF(Table!Z20<>"",Table!Z20,"") ->  | T20: =IF(Table!AA20<>"",Table!AA20,"") ->  | U20: =IF(Table!AB20<>"",Table!AB20,"") ->  | V20: =IF(Table!AC20<>"",Table!AC20,"") ->  | W20: =IF(Table!AD20<>"",Table!AD20,"") ->  | X20: =IF(Table!AE20<>"",Table!AE20,"") -> 
A21: =IF(Table!A21<>"",Table!A21,"") -> 2024-11-15 | B21: =IF(Table!A21<>"",Table!A21,"") -> 2024-11-15 | C21: =IF(Table!J21<>"",Table!J21,"") ->  | D21: =IF(Table!K21<>"",Table!K21,"") ->  | E21: =IF(Table!L21<>"",Table!L21,"") ->  | F21: =IF(Table!M21<>"",Table!M21,"") ->  | G21: =IF(Table!N21<>"",Table!N21,"") ->  | H21: =IF(Table!O21<>"",Table!O21,"") ->  | I21: =IF(Table!P21<>"",Table!P21,"") ->  | J21: =IF(Table!Q21<>"",Table!Q21,"") ->  | K21: =IF(Table!R21<>"",Table!R21,"") ->  | L21: =IF(Table!S21<>"",Table!S21,"") ->  | M21: =IF(Table!T21<>"",Table!T21,"") ->  | N21: =IF(Table!U21<>"",Table!U21,"") ->  | O21: =IF(Table!V21<>"",Table!V21,"") ->  | P21: =IF(Table!W21<>"",Table!W21,"") ->  | Q21: =IF(Table!X21<>"",Table!X21,"") ->  | R21: =IF(Table!Y21<>"",Table!Y21,"") ->  | S21: =IF(Table!Z21<>"",Table!Z21,"") ->  | T21: =IF(Table!AA21<>"",Table!AA21,"") ->  | U21: =IF(Table!AB21<>"",Table!AB21,"") ->  | V21: =IF(Table!AC21<>"",Table!AC21,"") ->  | W21: =IF(Table!AD21<>"",Table!AD21,"") ->  | X21: =IF(Table!AE21<>"",Table!AE21,"") -> 
A22: =IF(Table!A22<>"",Table!A22,"") -> 2024-11-16 | B22: =IF(Table!A22<>"",Table!A22,"") -> 2024-11-16 | C22: =IF(Table!J22<>"",Table!J22,"") ->  | D22: =IF(Table!K22<>"",Table!K22,"") ->  | E22: =IF(Table!L22<>"",Table!L22,"") ->  | F22: =IF(Table!M22<>"",Table!M22,"") ->  | G22: =IF(Table!N22<>"",Table!N22,"") ->  | H22: =IF(Table!O22<>"",Table!O22,"") ->  | I22: =IF(Table!P22<>"",Table!P22,"") ->  | J22: =IF(Table!Q22<>"",Table!Q22,"") ->  | K22: =IF(Table!R22<>"",Table!R22,"") ->  | L22: =IF(Table!S22<>"",Table!S22,"") ->  | M22: =IF(Table!T22<>"",Table!T22,"") ->  | N22: =IF(Table!U22<>"",Table!U22,"") ->  | O22: =IF(Table!V22<>"",Table!V22,"") ->  | P22: =IF(Table!W22<>"",Table!W22,"") ->  | Q22: =IF(Table!X22<>"",Table!X22,"") ->  | R22: =IF(Table!Y22<>"",Table!Y22,"") ->  | S22: =IF(Table!Z22<>"",Table!Z22,"") ->  | T22: =IF(Table!AA22<>"",Table!AA22,"") ->  | U22: =IF(Table!AB22<>"",Table!AB22,"") ->  | V22: =IF(Table!AC22<>"",Table!AC22,"") ->  | W22: =IF(Table!AD22<>"",Table!AD22,"") ->  | X22: =IF(Table!AE22<>"",Table!AE22,"") -> 
A23: =IF(Table!A23<>"",Table!A23,"") -> 2024-11-17 | B23: =IF(Table!A23<>"",Table!A23,"") -> 2024-11-17 | C23: =IF(Table!J23<>"",Table!J23,"") ->  | D23: =IF(Table!K23<>"",Table!K23,"") ->  | E23: =IF(Table!L23<>"",Table!L23,"") ->  | F23: =IF(Table!M23<>"",Table!M23,"") ->  | G23: =IF(Table!N23<>"",Table!N23,"") ->  | H23: =IF(Table!O23<>"",Table!O23,"") ->  | I23: =IF(Table!P23<>"",Table!P23,"") ->  | J23: =IF(Table!Q23<>"",Table!Q23,"") ->  | K23: =IF(Table!R23<>"",Table!R23,"") ->  | L23: =IF(Table!S23<>"",Table!S23,"") ->  | M23: =IF(Table!T23<>"",Table!T23,"") ->  | N23: =IF(Table!U23<>"",Table!U23,"") ->  | O23: =IF(Table!V23<>"",Table!V23,"") ->  | P23: =IF(Table!W23<>"",Table!W23,"") ->  | Q23: =IF(Table!X23<>"",Table!X23,"") ->  | R23: =IF(Table!Y23<>"",Table!Y23,"") ->  | S23: =IF(Table!Z23<>"",Table!Z23,"") ->  | T23: =IF(Table!AA23<>"",Table!AA23,"") ->  | U23: =IF(Table!AB23<>"",Table!AB23,"") ->  | V23: =IF(Table!AC23<>"",Table!AC23,"") ->  | W23: =IF(Table!AD23<>"",Table!AD23,"") ->  | X23: =IF(Table!AE23<>"",Table!AE23,"") -> 
A24: =IF(Table!A24<>"",Table!A24,"") -> 2024-11-18 | B24: =IF(Table!A24<>"",Table!A24,"") -> 2024-11-18 | C24: =IF(Table!J24<>"",Table!J24,"") -> 496 | D24: =IF(Table!K24<>"",Table!K24,"") -> 1138 | E24: =IF(Table!L24<>"",Table!L24,"") -> 459 | F24: =IF(Table!M24<>"",Table!M24,"") -> 46.9 | G24: =IF(Table!N24<>"",Table!N24,"") -> 197 | H24: =IF(Table!O24<>"",Table!O24,"") ->  | I24: =IF(Table!P24<>"",Table!P24,"") ->  | J24: =IF(Table!Q24<>"",Table!Q24,"") -> 83 | K24: =IF(Table!R24<>"",Table!R24,"") ->  | L24: =IF(Table!S24<>"",Table!S24,"") -> 10 | M24: =IF(Table!T24<>"",Table!T24,"") ->  | N24: =IF(Table!U24<>"",Table!U24,"") ->  | O24: =IF(Table!V24<>"",Table!V24,"") ->  | P24: =IF(Table!W24<>"",Table!W24,"") ->  | Q24: =IF(Table!X24<>"",Table!X24,"") ->  | R24: =IF(Table!Y24<>"",Table!Y24,"") ->  | S24: =IF(Table!Z24<>"",Table!Z24,"") ->  | T24: =IF(Table!AA24<>"",Table!AA24,"") ->  | U24: =IF(Table!AB24<>"",Table!AB24,"") ->  | V24: =IF(Table!AC24<>"",Table!AC24,"") ->  | W24: =IF(Table!AD24<>"",Table!AD24,"") ->  | X24: =IF(Table!AE24<>"",Table!AE24,"") -> 
A25: =IF(Table!A25<>"",Table!A25,"") -> 2024-11-19 | B25: =IF(Table!A25<>"",Table!A25,"") -> 2024-11-19 | C25: =IF(Table!J25<>"",Table!J25,"") ->  | D25: =IF(Table!K25<>"",Table!K25,"") ->  | E25: =IF(Table!L25<>"",Table!L25,"") ->  | F25: =IF(Table!M25<>"",Table!M25,"") ->  | G25: =IF(Table!N25<>"",Table!N25,"") ->  | H25: =IF(Table!O25<>"",Table!O25,"") ->  | I25: =IF(Table!P25<>"",Table!P25,"") ->  | J25: =IF(Table!Q25<>"",Table!Q25,"") ->  | K25: =IF(Table!R25<>"",Table!R25,"") ->  | L25: =IF(Table!S25<>"",Table!S25,"") ->  | M25: =IF(Table!T25<>"",Table!T25,"") ->  | N25: =IF(Table!U25<>"",Table!U25,"") ->  | O25: =IF(Table!V25<>"",Table!V25,"") ->  | P25: =IF(Table!W25<>"",Table!W25,"") ->  | Q25: =IF(Table!X25<>"",Table!X25,"") ->  | R25: =IF(Table!Y25<>"",Table!Y25,"") ->  | S25: =IF(Table!Z25<>"",Table!Z25,"") ->  | T25: =IF(Table!AA25<>"",Table!AA25,"") ->  | U25: =IF(Table!AB25<>"",Table!AB25,"") ->  | V25: =IF(Table!AC25<>"",Table!AC25,"") ->  | W25: =IF(Table!AD25<>"",Table!AD25,"") ->  | X25: =IF(Table!AE25<>"",Table!AE25,"") -> 
A26: =IF(Table!A26<>"",Table!A26,"") -> 2024-11-20 | B26: =IF(Table!A26<>"",Table!A26,"") -> 2024-11-20 | C26: =IF(Table!J26<>"",Table!J26,"") ->  | D26: =IF(Table!K26<>"",Table!K26,"") ->  | E26: =IF(Table!L26<>"",Table!L26,"") ->  | F26: =IF(Table!M26<>"",Table!M26,"") ->  | G26: =IF(Table!N26<>"",Table!N26,"") ->  | H26: =IF(Table!O26<>"",Table!O26,"") ->  | I26: =IF(Table!P26<>"",Table!P26,"") ->  | J26: =IF(Table!Q26<>"",Table!Q26,"") ->  | K26: =IF(Table!R26<>"",Table!R26,"") ->  | L26: =IF(Table!S26<>"",Table!S26,"") ->  | M26: =IF(Table!T26<>"",Table!T26,"") ->  | N26: =IF(Table!U26<>"",Table!U26,"") ->  | O26: =IF(Table!V26<>"",Table!V26,"") ->  | P26: =IF(Table!W26<>"",Table!W26,"") ->  | Q26: =IF(Table!X26<>"",Table!X26,"") ->  | R26: =IF(Table!Y26<>"",Table!Y26,"") ->  | S26: =IF(Table!Z26<>"",Table!Z26,"") ->  | T26: =IF(Table!AA26<>"",Table!AA26,"") ->  | U26: =IF(Table!AB26<>"",Table!AB26,"") ->  | V26: =IF(Table!AC26<>"",Table!AC26,"") ->  | W26: =IF(Table!AD26<>"",Table!AD26,"") ->  | X26: =IF(Table!AE26<>"",Table!AE26,"") -> 
A27: =IF(Table!A27<>"",Table!A27,"") -> 2024-11-21 | B27: =IF(Table!A27<>"",Table!A27,"") -> 2024-11-21 | C27: =IF(Table!J27<>"",Table!J27,"") ->  | D27: =IF(Table!K27<>"",Table!K27,"") ->  | E27: =IF(Table!L27<>"",Table!L27,"") ->  | F27: =IF(Table!M27<>"",Table!M27,"") ->  | G27: =IF(Table!N27<>"",Table!N27,"") ->  | H27: =IF(Table!O27<>"",Table!O27,"") ->  | I27: =IF(Table!P27<>"",Table!P27,"") ->  | J27: =IF(Table!Q27<>"",Table!Q27,"") ->  | K27: =IF(Table!R27<>"",Table!R27,"") ->  | L27: =IF(Table!S27<>"",Table!S27,"") ->  | M27: =IF(Table!T27<>"",Table!T27,"") ->  | N27: =IF(Table!U27<>"",Table!U27,"") ->  | O27: =IF(Table!V27<>"",Table!V27,"") ->  | P27: =IF(Table!W27<>"",Table!W27,"") ->  | Q27: =IF(Table!X27<>"",Table!X27,"") ->  | R27: =IF(Table!Y27<>"",Table!Y27,"") ->  | S27: =IF(Table!Z27<>"",Table!Z27,"") ->  | T27: =IF(Table!AA27<>"",Table!AA27,"") ->  | U27: =IF(Table!AB27<>"",Table!AB27,"") ->  | V27: =IF(Table!AC27<>"",Table!AC27,"") ->  | W27: =IF(Table!AD27<>"",Table!AD27,"") ->  | X27: =IF(Table!AE27<>"",Table!AE27,"") -> 
A28: =IF(Table!A28<>"",Table!A28,"") -> 2024-11-22 | B28: =IF(Table!A28<>"",Table!A28,"") -> 2024-11-22 | C28: =IF(Table!J28<>"",Table!J28,"") ->  | D28: =IF(Table!K28<>"",Table!K28,"") ->  | E28: =IF(Table!L28<>"",Table!L28,"") ->  | F28: =IF(Table!M28<>"",Table!M28,"") ->  | G28: =IF(Table!N28<>"",Table!N28,"") ->  | H28: =IF(Table!O28<>"",Table!O28,"") ->  | I28: =IF(Table!P28<>"",Table!P28,"") ->  | J28: =IF(Table!Q28<>"",Table!Q28,"") ->  | K28: =IF(Table!R28<>"",Table!R28,"") ->  | L28: =IF(Table!S28<>"",Table!S28,"") ->  | M28: =IF(Table!T28<>"",Table!T28,"") ->  | N28: =IF(Table!U28<>"",Table!U28,"") ->  | O28: =IF(Table!V28<>"",Table!V28,"") ->  | P28: =IF(Table!W28<>"",Table!W28,"") ->  | Q28: =IF(Table!X28<>"",Table!X28,"") ->  | R28: =IF(Table!Y28<>"",Table!Y28,"") ->  | S28: =IF(Table!Z28<>"",Table!Z28,"") ->  | T28: =IF(Table!AA28<>"",Table!AA28,"") ->  | U28: =IF(Table!AB28<>"",Table!AB28,"") ->  | V28: =IF(Table!AC28<>"",Table!AC28,"") ->  | W28: =IF(Table!AD28<>"",Table!AD28,"") ->  | X28: =IF(Table!AE28<>"",Table!AE28,"") -> 
A29: =IF(Table!A29<>"",Table!A29,"") -> 2024-11-23 | B29: =IF(Table!A29<>"",Table!A29,"") -> 2024-11-23 | C29: =IF(Table!J29<>"",Table!J29,"") ->  | D29: =IF(Table!K29<>"",Table!K29,"") ->  | E29: =IF(Table!L29<>"",Table!L29,"") ->  | F29: =IF(Table!M29<>"",Table!M29,"") ->  | G29: =IF(Table!N29<>"",Table!N29,"") ->  | H29: =IF(Table!O29<>"",Table!O29,"") ->  | I29: =IF(Table!P29<>"",Table!P29,"") ->  | J29: =IF(Table!Q29<>"",Table!Q29,"") ->  | K29: =IF(Table!R29<>"",Table!R29,"") ->  | L29: =IF(Table!S29<>"",Table!S29,"") ->  | M29: =IF(Table!T29<>"",Table!T29,"") ->  | N29: =IF(Table!U29<>"",Table!U29,"") ->  | O29: =IF(Table!V29<>"",Table!V29,"") ->  | P29: =IF(Table!W29<>"",Table!W29,"") ->  | Q29: =IF(Table!X29<>"",Table!X29,"") ->  | R29: =IF(Table!Y29<>"",Table!Y29,"") ->  | S29: =IF(Table!Z29<>"",Table!Z29,"") ->  | T29: =IF(Table!AA29<>"",Table!AA29,"") ->  | U29: =IF(Table!AB29<>"",Table!AB29,"") ->  | V29: =IF(Table!AC29<>"",Table!AC29,"") ->  | W29: =IF(Table!AD29<>"",Table!AD29,"") ->  | X29: =IF(Table!AE29<>"",Table!AE29,"") -> 
A30: =IF(Table!A30<>"",Table!A30,"") -> 2024-11-24 | B30: =IF(Table!A30<>"",Table!A30,"") -> 2024-11-24 | C30: =IF(Table!J30<>"",Table!J30,"") ->  | D30: =IF(Table!K30<>"",Table!K30,"") ->  | E30: =IF(Table!L30<>"",Table!L30,"") ->  | F30: =IF(Table!M30<>"",Table!M30,"") ->  | G30: =IF(Table!N30<>"",Table!N30,"") ->  | H30: =IF(Table!O30<>"",Table!O30,"") ->  | I30: =IF(Table!P30<>"",Table!P30,"") ->  | J30: =IF(Table!Q30<>"",Table!Q30,"") ->  | K30: =IF(Table!R30<>"",Table!R30,"") ->  | L30: =IF(Table!S30<>"",Table!S30,"") ->  | M30: =IF(Table!T30<>"",Table!T30,"") ->  | N30: =IF(Table!U30<>"",Table!U30,"") ->  | O30: =IF(Table!V30<>"",Table!V30,"") ->  | P30: =IF(Table!W30<>"",Table!W30,"") ->  | Q30: =IF(Table!X30<>"",Table!X30,"") ->  | R30: =IF(Table!Y30<>"",Table!Y30,"") ->  | S30: =IF(Table!Z30<>"",Table!Z30,"") ->  | T30: =IF(Table!AA30<>"",Table!AA30,"") ->  | U30: =IF(Table!AB30<>"",Table!AB30,"") ->  | V30: =IF(Table!AC30<>"",Table!AC30,"") ->  | W30: =IF(Table!AD30<>"",Table!AD30,"") ->  | X30: =IF(Table!AE30<>"",Table!AE30,"") -> 
A31: =IF(Table!A31<>"",Table!A31,"") -> 2024-11-25 | B31: =IF(Table!A31<>"",Table!A31,"") -> 2024-11-25 | C31: =IF(Table!J31<>"",Table!J31,"") ->  | D31: =IF(Table!K31<>"",Table!K31,"") ->  | E31: =IF(Table!L31<>"",Table!L31,"") ->  | F31: =IF(Table!M31<>"",Table!M31,"") ->  | G31: =IF(Table!N31<>"",Table!N31,"") ->  | H31: =IF(Table!O31<>"",Table!O31,"") ->  | I31: =IF(Table!P31<>"",Table!P31,"") ->  | J31: =IF(Table!Q31<>"",Table!Q31,"") -> 74 | K31: =IF(Table!R31<>"",Table!R31,"") ->  | L31: =IF(Table!S31<>"",Table!S31,"") ->  | M31: =IF(Table!T31<>"",Table!T31,"") ->  | N31: =IF(Table!U31<>"",Table!U31,"") ->  | O31: =IF(Table!V31<>"",Table!V31,"") ->  | P31: =IF(Table!W31<>"",Table!W31,"") ->  | Q31: =IF(Table!X31<>"",Table!X31,"") ->  | R31: =IF(Table!Y31<>"",Table!Y31,"") ->  | S31: =IF(Table!Z31<>"",Table!Z31,"") ->  | T31: =IF(Table!AA31<>"",Table!AA31,"") ->  | U31: =IF(Table!AB31<>"",Table!AB31,"") ->  | V31: =IF(Table!AC31<>"",Table!AC31,"") ->  | W31: =IF(Table!AD31<>"",Table!AD31,"") ->  | X31: =IF(Table!AE31<>"",Table!AE31,"") -> 
A32: =IF(Table!A32<>"",Table!A32,"") -> 2024-11-26 | B32: =IF(Table!A32<>"",Table!A32,"") -> 2024-11-26 | C32: =IF(Table!J32<>"",Table!J32,"") ->  | D32: =IF(Table!K32<>"",Table!K32,"") ->  | E32: =IF(Table!L32<>"",Table!L32,"") ->  | F32: =IF(Table!M32<>"",Table!M32,"") ->  | G32: =IF(Table!N32<>"",Table!N32,"") ->  | H32: =IF(Table!O32<>"",Table!O32,"") ->  | I32: =IF(Table!P32<>"",Table!P32,"") ->  | J32: =IF(Table!Q32<>"",Table!Q32,"") ->  | K32: =IF(Table!R32<>"",Table!R32,"") ->  | L32: =IF(Table!S32<>"",Table!S32,"") ->  | M32: =IF(Table!T32<>"",Table!T32,"") ->  | N32: =IF(Table!U32<>"",Table!U32,"") ->  | O32: =IF(Table!V32<>"",Table!V32,"") ->  | P32: =IF(Table!W32<>"",Table!W32,"") ->  | Q32: =IF(Table!X32<>"",Table!X32,"") ->  | R32: =IF(Table!Y32<>"",Table!Y32,"") ->  | S32: =IF(Table!Z32<>"",Table!Z32,"") ->  | T32: =IF(Table!AA32<>"",Table!AA32,"") ->  | U32: =IF(Table!AB32<>"",Table!AB32,"") ->  | V32: =IF(Table!AC32<>"",Table!AC32,"") ->  | W32: =IF(Table!AD32<>"",Table!AD32,"") ->  | X32: =IF(Table!AE32<>"",Table!AE32,"") -> 
A33: =IF(Table!A33<>"",Table!A33,"") -> 2024-11-27 | B33: =IF(Table!A33<>"",Table!A33,"") -> 2024-11-27 | C33: =IF(Table!J33<>"",Table!J33,"") ->  | D33: =IF(Table!K33<>"",Table!K33,"") ->  | E33: =IF(Table!L33<>"",Table!L33,"") ->  | F33: =IF(Table!M33<>"",Table!M33,"") ->  | G33: =IF(Table!N33<>"",Table!N33,"") ->  | H33: =IF(Table!O33<>"",Table!O33,"") ->  | I33: =IF(Table!P33<>"",Table!P33,"") ->  | J33: =IF(Table!Q33<>"",Table!Q33,"") ->  | K33: =IF(Table!R33<>"",Table!R33,"") ->  | L33: =IF(Table!S33<>"",Table!S33,"") ->  | M33: =IF(Table!T33<>"",Table!T33,"") ->  | N33: =IF(Table!U33<>"",Table!U33,"") ->  | O33: =IF(Table!V33<>"",Table!V33,"") ->  | P33: =IF(Table!W33<>"",Table!W33,"") ->  | Q33: =IF(Table!X33<>"",Table!X33,"") ->  | R33: =IF(Table!Y33<>"",Table!Y33,"") ->  | S33: =IF(Table!Z33<>"",Table!Z33,"") ->  | T33: =IF(Table!AA33<>"",Table!AA33,"") ->  | U33: =IF(Table!AB33<>"",Table!AB33,"") ->  | V33: =IF(Table!AC33<>"",Table!AC33,"") ->  | W33: =IF(Table!AD33<>"",Table!AD33,"") ->  | X33: =IF(Table!AE33<>"",Table!AE33,"") -> 
A34: =IF(Table!A34<>"",Table!A34,"") -> 2024-11-28 | B34: =IF(Table!A34<>"",Table!A34,"") -> 2024-11-28 | C34: =IF(Table!J34<>"",Table!J34,"") ->  | D34: =IF(Table!K34<>"",Table!K34,"") ->  | E34: =IF(Table!L34<>"",Table!L34,"") ->  | F34: =IF(Table!M34<>"",Table!M34,"") ->  | G34: =IF(Table!N34<>"",Table!N34,"") ->  | H34: =IF(Table!O34<>"",Table!O34,"") ->  | I34: =IF(Table!P34<>"",Table!P34,"") ->  | J34: =IF(Table!Q34<>"",Table!Q34,"") ->  | K34: =IF(Table!R34<>"",Table!R34,"") ->  | L34: =IF(Table!S34<>"",Table!S34,"") ->  | M34: =IF(Table!T34<>"",Table!T34,"") ->  | N34: =IF(Table!U34<>"",Table!U34,"") ->  | O34: =IF(Table!V34<>"",Table!V34,"") ->  | P34: =IF(Table!W34<>"",Table!W34,"") ->  | Q34: =IF(Table!X34<>"",Table!X34,"") ->  | R34: =IF(Table!Y34<>"",Table!Y34,"") ->  | S34: =IF(Table!Z34<>"",Table!Z34,"") ->  | T34: =IF(Table!AA34<>"",Table!AA34,"") ->  | U34: =IF(Table!AB34<>"",Table!AB34,"") ->  | V34: =IF(Table!AC34<>"",Table!AC34,"") ->  | W34: =IF(Table!AD34<>"",Table!AD34,"") ->  | X34: =IF(Table!AE34<>"",Table!AE34,"") -> 
A35: =IF(Table!A35<>"",Table!A35,"") -> 2024-11-29 | B35: =IF(Table!A35<>"",Table!A35,"") -> 2024-11-29 | C35: =IF(Table!J35<>"",Table!J35,"") ->  | D35: =IF(Table!K35<>"",Table!K35,"") ->  | E35: =IF(Table!L35<>"",Table!L35,"") ->  | F35: =IF(Table!M35<>"",Table!M35,"") ->  | G35: =IF(Table!N35<>"",Table!N35,"") ->  | H35: =IF(Table!O35<>"",Table!O35,"") ->  | I35: =IF(Table!P35<>"",Table!P35,"") ->  | J35: =IF(Table!Q35<>"",Table!Q35,"") ->  | K35: =IF(Table!R35<>"",Table!R35,"") ->  | L35: =IF(Table!S35<>"",Table!S35,"") ->  | M35: =IF(Table!T35<>"",Table!T35,"") ->  | N35: =IF(Table!U35<>"",Table!U35,"") ->  | O35: =IF(Table!V35<>"",Table!V35,"") ->  | P35: =IF(Table!W35<>"",Table!W35,"") ->  | Q35: =IF(Table!X35<>"",Table!X35,"") ->  | R35: =IF(Table!Y35<>"",Table!Y35,"") ->  | S35: =IF(Table!Z35<>"",Table!Z35,"") ->  | T35: =IF(Table!AA35<>"",Table!AA35,"") ->  | U35: =IF(Table!AB35<>"",Table!AB35,"") ->  | V35: =IF(Table!AC35<>"",Table!AC35,"") ->  | W35: =IF(Table!AD35<>"",Table!AD35,"") ->  | X35: =IF(Table!AE35<>"",Table!AE35,"") -> 
A36: =IF(Table!A36<>"",Table!A36,"") -> 2024-11-30 | B36: =IF(Table!A36<>"",Table!A36,"") -> 2024-11-30 | C36: =IF(Table!J36<>"",Table!J36,"") ->  | D36: =IF(Table!K36<>"",Table!K36,"") ->  | E36: =IF(Table!L36<>"",Table!L36,"") ->  | F36: =IF(Table!M36<>"",Table!M36,"") ->  | G36: =IF(Table!N36<>"",Table!N36,"") ->  | H36: =IF(Table!O36<>"",Table!O36,"") ->  | I36: =IF(Table!P36<>"",Table!P36,"") ->  | J36: =IF(Table!Q36<>"",Table!Q36,"") ->  | K36: =IF(Table!R36<>"",Table!R36,"") ->  | L36: =IF(Table!S36<>"",Table!S36,"") ->  | M36: =IF(Table!T36<>"",Table!T36,"") ->  | N36: =IF(Table!U36<>"",Table!U36,"") ->  | O36: =IF(Table!V36<>"",Table!V36,"") ->  | P36: =IF(Table!W36<>"",Table!W36,"") ->  | Q36: =IF(Table!X36<>"",Table!X36,"") ->  | R36: =IF(Table!Y36<>"",Table!Y36,"") ->  | S36: =IF(Table!Z36<>"",Table!Z36,"") ->  | T36: =IF(Table!AA36<>"",Table!AA36,"") ->  | U36: =IF(Table!AB36<>"",Table!AB36,"") ->  | V36: =IF(Table!AC36<>"",Table!AC36,"") ->  | W36: =IF(Table!AD36<>"",Table!AD36,"") ->  | X36: =IF(Table!AE36<>"",Table!AE36,"") -> 
A37: =IF(Table!A37<>"",Table!A37,"") -> 2024-12-01 | B37: =IF(Table!A37<>"",Table!A37,"") -> 2024-12-01 | C37: =IF(Table!J37<>"",Table!J37,"") ->  | D37: =IF(Table!K37<>"",Table!K37,"") ->  | E37: =IF(Table!L37<>"",Table!L37,"") ->  | F37: =IF(Table!M37<>"",Table!M37,"") ->  | G37: =IF(Table!N37<>"",Table!N37,"") ->  | H37: =IF(Table!O37<>"",Table!O37,"") ->  | I37: =IF(Table!P37<>"",Table!P37,"") ->  | J37: =IF(Table!Q37<>"",Table!Q37,"") ->  | K37: =IF(Table!R37<>"",Table!R37,"") ->  | L37: =IF(Table!S37<>"",Table!S37,"") ->  | M37: =IF(Table!T37<>"",Table!T37,"") ->  | N37: =IF(Table!U37<>"",Table!U37,"") ->  | O37: =IF(Table!V37<>"",Table!V37,"") ->  | P37: =IF(Table!W37<>"",Table!W37,"") ->  | Q37: =IF(Table!X37<>"",Table!X37,"") ->  | R37: =IF(Table!Y37<>"",Table!Y37,"") ->  | S37: =IF(Table!Z37<>"",Table!Z37,"") ->  | T37: =IF(Table!AA37<>"",Table!AA37,"") ->  | U37: =IF(Table!AB37<>"",Table!AB37,"") ->  | V37: =IF(Table!AC37<>"",Table!AC37,"") ->  | W37: =IF(Table!AD37<>"",Table!AD37,"") ->  | X37: =IF(Table!AE37<>"",Table!AE37,"") -> 
A38: סה"כ לחודש
A39: ממוצע | C39: =AVERAGE(C7:C37) -> 396 | D39: =AVERAGE(D7:D37) -> 928 | E39: 376.5 | F39: 40.875 | G39: 159.5 | H39: 0 | I39: 6.4 | J39: 70 | K39: 0 | L39: 10 | M39: 287 | N39: 109 | O39: 214 | P39: 8.2 | Q39: 2.1 | R39: 0 | S39: 0.005 | T39: 0 | U39: 0 | V39: 0 | W39: 0 | X39: 0
A40: מקסימום | C40: =MAX(C7:C37) -> 496 | D40: =MAX(D7:D37) -> 1138 | E40: 459 | F40: 46.9 | G40: 197 | H40: 0 | I40: 6.4 | J40: 83 | K40: 0 | L40: 10 | M40: 287 | N40: 109 | O40: 214 | P40: 8.2 | Q40: 2.1 | R40: 0 | S40: 0.005 | T40: 0 | U40: 0 | V40: 0 | W40: 0 | X40: 0
A41: מינימום | C41: =MIN(C7:C37) -> 296 | D41: =MIN(D7:D37) -> 718 | E41: 294 | F41: 34.85 | G41: 122 | H41: 0 | I41: 6.4 | J41: 56 | K41: 0 | L41: 10 | M41: 287 | N41: 109 | O41: 214 | P41: 8.2 | Q41: 2.1 | R41: 0 | S41: 0.005 | T41: 0 | U41: 0 | V41: 0 | W41: 0 | X41: 0

Sheet קולחין שניוני
A2: =סיכום!C11 -> מט"ש נובמבר 2024 | E2: נתוני תפעול - גליון 3 - איכות קולחין שניוני
A3: יחידת פעולה | C3: מעבדה
A4: תדירות | C4: פעמיים בשבוע | F4: פעם בשבוע | I4: פעם בחודש | N4: פעם בשלושה חודשים: ינואר, אפריל, יולי, אוקטובר | O4: זמן שהייה ב-SBR
A5: תאריך | B5: יום בשבוע | C5: צח"ב | D5: צח"כ | E5: מוצקים מרחפים | F5: חנקן אמוניאקלי | G5: חנקן כללי | H5: זרחן כללי | I5: דטרגנט אניוני | J5: כלורידים | K5: שמן מינרלי | L5: מוליכות | M5: סריקת מתכות | N5: ציאניד
C6: מג"ל | D6: מג"ל | E6: מג"ל | F6: מג"ל | G6: מג"ל | H6: מג"ל | I6: מג"ל | J6: מג"ל | K6: מג"ל | L6: cm/s | M6: מג"ל | N6: מג"ל
A7: =IF(Table!A7<>"",Table!A7,"") -> 2024-11-01 | B7: =IF(Table!A7<>"",Table!A7,"") -> 2024-11-01 | C7: =IF(Table!AH7<>"",Table!AH7,"") ->  | D7: =IF(Table!AI7<>"",Table!AI7,"") ->  | E7: =IF(Table!AJ7<>"",Table!AJ7,"") ->  | F7: =IF(Table!AK7<>"",Table!AK7,"") ->  | G7: =IF(Table!AL7<>"",Table!AL7,"") ->  | H7: =IF(Table!AM7<>"",Table!AM7,"") ->  | I7: =IF(Table!AN7<>"",Table!AN7,"") ->  | J7: =IF(Table!AO7<>"",Table!AO7,"") ->  | K7: =IF(Table!AP7<>"",Table!AP7,"") ->  | L7: =IF(Table!AQ7<>"",Table!AQ7,"") ->  | M7: =IF(Table!AR7<>"",Table!AR7,"") ->  | N7: =IF(Table!AS7<>"",Table!AS7,"") ->  | O7: =IF(ספיקות!E7<>"",(24*Table!CS7)/ספיקות!E7,"") -> 22.6474443
A8: =IF(Table!A8<>"",Table!A8,"") -> 2024-11-02 | B8: =IF(Table!A8<>"",Table!A8,"") -> 2024-11-02 | C8: =IF(Table!AU8<>"",Table!AU8,"") ->  | D8: =IF(Table!AV8<>"",Table!AV8,"") ->  | E8: =IF(Table!AW8<>"",Table!AW8,"") ->  | F8: =IF(Table!AK8<>"",Table!AK8,"") ->  | G8: =IF(Table!AL8<>"",Table!AL8,"") ->  | H8: =IF(Table!AM8<>"",Table!AM8,"") ->  | I8: =IF(Table!AN8<>"",Table!AN8,"") ->  | J8: =IF(Table!AO8<>"",Table!AO8,"") ->  | K8: =IF(Table!AP8<>"",Table!AP8,"") ->  | L8: =IF(Table!AQ8<>"",Table!AQ8,"") ->  | M8: =IF(Table!AR8<>"",Table!AR8,"") ->  | N8: =IF(Table!AS8<>"",Table!AS8,"") ->  | O8: =IF(ספיקות!E8<>"",(24*Table!CS8)/ספיקות!E8,"") -> 24
A9: =IF(Table!A9<>"",Table!A9,"") -> 2024-11-03 | B9: =IF(Table!A9<>"",Table!A9,"") -> 2024-11-03 | C9: =IF(Table!AH9<>"",Table!AH9,"") ->  | D9: =IF(Table!AI9<>"",Table!AI9,"") ->  | E9: =IF(Table!AJ9<>"",Table!AJ9,"") ->  | F9: =IF(Table!AK9<>"",Table!AK9,"") ->  | G9: =IF(Table!AL9<>"",Table!AL9,"") ->  | H9: =IF(Table!AM9<>"",Table!AM9,"") ->  | I9: =IF(Table!AN9<>"",Table!AN9,"") ->  | J9: =IF(Table!AO9<>"",Table!AO9,"") ->  | K9: =IF(Table!AP9<>"",Table!AP9,"") ->  | L9: =IF(Table!AQ9<>"",Table!AQ9,"") ->  | M9: =IF(Table!AR9<>"",Table!AR9,"") ->  | N9: 0 | O9: =IF(ספיקות!E9<>"",(24*Table!CS9)/ספיקות!E9,"") -> 22.22508039
A10: =IF(Table!A10<>"",Table!A10,"") -> 2024-11-04 | B10: =IF(Table!A10<>"",Table!A10,"") -> 2024-11-04 | C10: =IF(Table!AH10<>"",Table!AH10,"") -> 5 | D10: =IF(Table!AI10<>"",Table!AI10,"") -> 25 | E10: =IF(Table!AJ10<>"",Table!AJ10,"") -> 5 | F10: =IF(Table!AK11<>"",Table!AK11,"") ->  | G10: =IF(Table!AL10<>"",Table!AL10,"") -> 5.9 | H10: =IF(Table!AM10<>"",Table!AM10,"") -> 5.2 | I10: =IF(Table!AN10<>"",Table!AN10,"") -> 0.05 | J10: =IF(Table!AO10<>"",Table!AO10,"") -> 230 | K10: =IF(Table!AP10<>"",Table!AP10,"") -> 10 | L10: =IF(Table!AQ10<>"",Table!AQ10,"") -> 1.45 | M10: =IF(Table!AR10<>"",Table!AR10,"") ->  | N10: =IF(Table!AS10<>"",Table!AS10,"") ->  | O10: =IF(ספיקות!E10<>"",(24*Table!CS10)/ספיקות!E10,"") -> 23.71997255
A11: =IF(Table!A11<>"",Table!A11,"") -> 2024-11-05 | B11: =IF(Table!A11<>"",Table!A11,"") -> 2024-11-05 | C11: =IF(Table!AH11<>"",Table!AH11,"") ->  | D11: =IF(Table!AI11<>"",Table!AI11,"") ->  | E11: =IF(Table!AJ11<>"",Table!AJ11,"") ->  | F11: =IF(Table!AK12<>"",Table!AK12,"") ->  | G11: =IF(Table!AL11<>"",Table!AL11,"") ->  | H11: =IF(Table!AM11<>"",Table!AM11,"") ->  | I11: =IF(Table!AN11<>"",Table!AN11,"") ->  | J11: =IF(Table!AO11<>"",Table!AO11,"") ->  | K11: =IF(Table!AP11<>"",Table!AP11,"") ->  | L11: =IF(Table!AQ11<>"",Table!AQ11,"") ->  | M11: =IF(Table!AR11<>"",Table!AR11,"") ->  | N11: =IF(Table!AS11<>"",Table!AS11,"") ->  | O11: =IF(ספיקות!E11<>"",(24*Table!CS11)/ספיקות!E11,"") -> 23.35135135
A12: =IF(Table!A12<>"",Table!A12,"") -> 2024-11-06 | B12: =IF(Table!A12<>"",Table!A12,"") -> 2024-11-06 | C12: =IF(Table!AH12<>"",Table!AH12,"") ->  | D12: =IF(Table!AI12<>"",Table!AI12,"") ->  | E12: =IF(Table!AJ12<>"",Table!AJ12,"") ->  | F12: =IF(Table!AK13<>"",Table!AK13,"") ->  | G12: =IF(Table!AL12<>"",Table!AL12,"") ->  | H12: =IF(Table!AM12<>"",Table!AM12,"") ->  | I12: =IF(Table!AN12<>"",Table!AN12,"") ->  | J12: =IF(Table!AO12<>"",Table!AO12,"") ->  | K12: =IF(Table!AP12<>"",Table!AP12,"") ->  | L12: =IF(Table!AQ12<>"",Table!AQ12,"") ->  | M12: =IF(Table!AR12<>"",Table!AR12,"") ->  | N12: =IF(Table!AS12<>"",Table!AS12,"") ->  | O12: =IF(ספיקות!E12<>"",(24*Table!CS12)/ספיקות!E12,"") -> 23.51020408
A13: =IF(Table!A13<>"",Table!A13,"") -> 2024-11-07 | B13: =IF(Table!A13<>"",Table!A13,"") -> 2024-11-07 | C13: =IF(Table!AH13<>"",Table!AH13,"") ->  | D13: =IF(Table!AI13<>"",Table!AI13,"") ->  | E13: =IF(Table!AJ13<>"",Table!AJ13,"") ->  | F13: =IF(Table!AK13<>"",Table!AK13,"") ->  | G13: =IF(Table!AL13<>"",Table!AL13,"") ->  | H13: =IF(Table!AM13<>"",Table!AM13,"") ->  | I13: =IF(Table!AN13<>"",Table!AN13,"") ->  | J13: =IF(Table!AO13<>"",Table!AO13,"") ->  | K13: =IF(Table!AP13<>"",Table!AP13,"") ->  | L13: =IF(Table!AQ13<>"",Table!AQ13,"") ->  | M13: =IF(Table!AR13<>"",Table!AR13,"") ->  | N13: =IF(Table!AS13<>"",Table!AS13,"") ->  | O13: =IF(ספיקות!E13<>"",(24*Table!CS13)/ספיקות!E13,"") -> 22.9787234
A14: =IF(Table!A14<>"",Table!A14,"") -> 2024-11-08 | B14: =IF(Table!A14<>"",Table!A14,"") -> 2024-11-08 | C14: =IF(Table!AH14<>"",Table!AH14,"") ->  | D14: =IF(Table!AI14<>"",Table!AI14,"") ->  | E14: =IF(Table!AJ14<>"",Table!AJ14,"") ->  | F14: =IF(Table!AK14<>"",Table!AK14,"") ->  | G14: =IF(Table!AL14<>"",Table!AL14,"") ->  | H14: =IF(Table!AM14<>"",Table!AM14,"") ->  | I14: =IF(Table!AN14<>"",Table!AN14,"") ->  | J14: =IF(Table!AO14<>"",Table!AO14,"") ->  | K14: =IF(Table!AP14<>"",Table!AP14,"") ->  | L14: =IF(Table!AQ14<>"",Table!AQ14,"") ->  | M14: =IF(Table!AR14<>"",Table!AR14,"") ->  | N14: =IF(Table!AS14<>"",Table!AS14,"") ->  | O14: =IF(ספיקות!E14<>"",(24*Table!CS14)/ספיקות!E14,"") -> 22.63261297
A15: =IF(Table!A15<>"",Table!A15,"") -> 2024-11-09 | B15: =IF(Table!A15<>"",Table!A15,"") -> 2024-11-09 | C15: =IF(Table!AH15<>"",Table!AH15,"") ->  | D15: =IF(Table!AI15<>"",Table!AI15,"") ->  | E15: =IF(Table!AJ15<>"",Table!AJ15,"") ->  | F15: =IF(Table!AK15<>"",Table!AK15,"") ->  | G15: =IF(Table!AL15<>"",Table!AL15,"") ->  | H15: =IF(Table!AM15<>"",Table!AM15,"") ->  | I15: =IF(Table!AN15<>"",Table!AN15,"") ->  | J15: =IF(Table!AO15<>"",Table!AO15,"") ->  | K15: =IF(Table!AP15<>"",Table!AP15,"") ->  | L15: =IF(Table!AQ15<>"",Table!AQ15,"") ->  | M15: =IF(Table!AR15<>"",Table!AR15,"") ->  | N15: =IF(Table!AS15<>"",Table!AS15,"") ->  | O15: =IF(ספיקות!E15<>"",(24*Table!CS15)/ספיקות!E15,"") -> 22.79683377
A16: =IF(Table!A16<>"",Table!A16,"") -> 2024-11-10 | B16: =IF(Table!A16<>"",Table!A16,"") -> 2024-11-10 | C16: =IF(Table!AH16<>"",Table!AH16,"") ->  | D16: =IF(Table!AI16<>"",Table!AI16,"") ->  | E16: =IF(Table!AJ16<>"",Table!AJ16,"") ->  | F16: =IF(Table!AK16<>"",Table!AK16,"") ->  | G16: =IF(Table!AL16<>"",Table!AL16,"") ->  | H16: =IF(Table!AM16<>"",Table!AM16,"") ->  | I16: =IF(Table!AN16<>"",Table!AN16,"") ->  | J16: =IF(Table!AO16<>"",Table!AO16,"") ->  | K16: =IF(Table!AP16<>"",Table!AP16,"") ->  | L16: =IF(Table!AQ16<>"",Table!AQ16,"") ->  | M16: =IF(Table!AR16<>"",Table!AR16,"") ->  | N16: =IF(Table!AS16<>"",Table!AS16,"") ->  | O16: =IF(ספיקות!E16<>"",(24*Table!CS16)/ספיקות!E16,"") -> 22.3255814
A17: =IF(Table!A17<>"",Table!A17,"") -> 2024-11-11 | B17: =IF(Table!A17<>"",Table!A17,"") -> 2024-11-11 | C17: =IF(Table!AH17<>"",Table!AH17,"") ->  | D17: =IF(Table!AI17<>"",Table!AI17,"") ->  | E17: =IF(Table!AJ17<>"",Table!AJ17,"") ->  | F17: =IF(Table!AK17<>"",Table!AK17,"") ->  | G17: =IF(Table!AL17<>"",Table!AL17,"") ->  | H17: =IF(Table!AM17<>"",Table!AM17,"") ->  | I17: =IF(Table!AN17<>"",Table!AN17,"") ->  | J17: =IF(Table!AO17<>"",Table!AO17,"") ->  | K17: =IF(Table!AP17<>"",Table!AP17,"") ->  | L17: =IF(Table!AQ17<>"",Table!AQ17,"") ->  | M17: =IF(Table!AR17<>"",Table!AR17,"") ->  | N17: =IF(Table!AS17<>"",Table!AS17,"") ->  | O17: =IF(ספיקות!E17<>"",(24*Table!CS17)/ספיקות!E17,"") -> 23.5262083
A18: =IF(Table!A18<>"",Table!A18,"") -> 2024-11-12 | B18: =IF(Table!A18<>"",Table!A18,"") -> 2024-11-12 | C18: =IF(Table!AH18<>"",Table!AH18,"") ->  | D18: =IF(Table!AI18<>"",Table!AI18,"") ->  | E18: =IF(Table!AJ18<>"",Table!AJ18,"") ->  | F18: =IF(Table!AK18<>"",Table!AK18,"") ->  | G18: =IF(Table!AL18<>"",Table!AL18,"") ->  | H18: =IF(Table!AM18<>"",Table!AM18,"") ->  | I18: =IF(Table!AN18<>"",Table!AN18,"") ->  | J18: =IF(Table!AO18<>"",Table!AO18,"") ->  | K18: =IF(Table!AP18<>"",Table!AP18,"") ->  | L18: =IF(Table!AQ18<>"",Table!AQ18,"") ->  | M18: =IF(Table!AR18<>"",Table!AR18,"") ->  | N18: =IF(Table!AS18<>"",Table!AS18,"") ->  | O18: =IF(ספיקות!E18<>"",(24*Table!CS18)/ספיקות!E18,"") -> 24.77419355
A19: =IF(Table!A19<>"",Table!A19,"") -> 2024-11-13 | B19: =IF(Table!A19<>"",Table!A19,"") -> 2024-11-13 | C19: =IF(Table!AH19<>"",Table!AH19,"") ->  | D19: =IF(Table!AI19<>"",Table!AI19,"") ->  | E19: =IF(Table!AJ19<>"",Table!AJ19,"") ->  | F19: =IF(Table!AK19<>"",Table!AK19,"") ->  | G19: =IF(Table!AL19<>"",Table!AL19,"") ->  | H19: =IF(Table!AM19<>"",Table!AM19,"") ->  | I19: =IF(Table!AN19<>"",Table!AN19,"") ->  | J19: =IF(Table!AO19<>"",Table!AO19,"") ->  | K19: =IF(Table!AP19<>"",Table!AP19,"") ->  | L19: =IF(Table!AQ19<>"",Table!AQ19,"") ->  | M19: =IF(Table!AR19<>"",Table!AR19,"") ->  | N19: =IF(Table!AS19<>"",Table!AS19,"") ->  | O19: =IF(ספיקות!E19<>"",(24*Table!CS19)/ספיקות!E19,"") -> 25.84891548
A20: =IF(Table!A20<>"",Table!A20,"") -> 2024-11-14 | B20: =IF(Table!A20<>"",Table!A20,"") -> 2024-11-14 | C20: =IF(Table!AH20<>"",Table!AH20,"") ->  | D20: =IF(Table!AI20<>"",Table!AI20,"") ->  | E20: =IF(Table!AJ20<>"",Table!AJ20,"") ->  | F20: =IF(Table!AK20<>"",Table!AK20,"") ->  | G20: =IF(Table!AL20<>"",Table!AL20,"") ->  | H20: =IF(Table!AM20<>"",Table!AM20,"") ->  | I20: =IF(Table!AN20<>"",Table!AN20,"") ->  | J20: =IF(Table!AO20<>"",Table!AO20,"") ->  | K20: =IF(Table!AP20<>"",Table!AP20,"") ->  | L20: =IF(Table!AQ20<>"",Table!AQ20,"") ->  | M20: =IF(Table!AR20<>"",Table!AR20,"") ->  | N20: =IF(Table!AS20<>"",Table!AS20,"") ->  | O20: =IF(ספיקות!E20<>"",(24*Table!CS20)/ספיקות!E20,"") -> 27.04225352
A21: =IF(Table!A21<>"",Table!A21,"") -> 2024-11-15 | B21: =IF(Table!A21<>"",Table!A21,"") -> 2024-11-15 | C21: =IF(Table!AU21<>"",Table!AU21,"") ->  | D21: =IF(Table!AV21<>"",Table!AV21,"") ->  | E21: =IF(Table!AW21<>"",Table!AW21,"") ->  | F21: =IF(Table!AK21<>"",Table!AK21,"") ->  | G21: =IF(Table!AL21<>"",Table!AL21,"") ->  | H21: =IF(Table!AM21<>"",Table!AM21,"") ->  | I21: =IF(Table!AN21<>"",Table!AN21,"") ->  | J21: =IF(Table!AO21<>"",Table!AO21,"") ->  | K21: =IF(Table!AP21<>"",Table!AP21,"") ->  | L21: =IF(Table!AQ21<>"",Table!AQ21,"") ->  | M21: =IF(Table!AR21<>"",Table!AR21,"") ->  | N21: =IF(Table!AS21<>"",Table!AS21,"") ->  | O21: =IF(ספיקות!E21<>"",(24*Table!CS21)/ספיקות!E21,"") -> 24.89913545
A22: =IF(Table!A22<>"",Table!A22,"") -> 2024-11-16 | B22: =IF(Table!A22<>"",Table!A22,"") -> 2024-11-16 | C22: =IF(Table!AH22<>"",Table!AH22,"") ->  | D22: =IF(Table!AI22<>"",Table!AI22,"") ->  | E22: =IF(Table!AJ22<>"",Table!AJ22,"") ->  | F22: =IF(Table!AK22<>"",Table!AK22,"") ->  | G22: =IF(Table!AL22<>"",Table!AL22,"") ->  | H22: =IF(Table!AM22<>"",Table!AM22,"") ->  | I22: =IF(Table!AN22<>"",Table!AN22,"") ->  | J22: =IF(Table!AO22<>"",Table!AO22,"") ->  | K22: =IF(Table!AP22<>"",Table!AP22,"") ->  | L22: =IF(Table!AQ22<>"",Table!AQ22,"") ->  | M22: =IF(Table!AR22<>"",Table!AR22,"") ->  | N22: =IF(Table!AS22<>"",Table!AS22,"") ->  | O22: =IF(ספיקות!E22<>"",(24*Table!CS22)/ספיקות!E22,"") -> 26.60508083
A23: =IF(Table!A23<>"",Table!A23,"") -> 2024-11-17 | B23: =IF(Table!A23<>"",Table!A23,"") -> 2024-11-17 | C23: =IF(Table!AH23<>"",Table!AH23,"") ->  | D23: =IF(Table!AI23<>"",Table!AI23,"") ->  | E23: =IF(Table!AJ23<>"",Table!AJ23,"") ->  | F23: =IF(Table!AK23<>"",Table!AK23,"") ->  | G23: =IF(Table!AL23<>"",Table!AL23,"") ->  | H23: =IF(Table!AM23<>"",Table!AM23,"") ->  | I23: =IF(Table!AN23<>"",Table!AN23,"") ->  | J23: =IF(Table!AO23<>"",Table!AO23,"") ->  | K23: =IF(Table!AP23<>"",Table!AP23,"") ->  | L23: =IF(Table!AQ23<>"",Table!AQ23,"") ->  | M23: =IF(Table!AR23<>"",Table!AR23,"") ->  | N23: =IF(Table!AS23<>"",Table!AS23,"") ->  | O23: =IF(ספיקות!E23<>"",(24*Table!CS23)/ספיקות!E23,"") -> 24.20168067
A24: =IF(Table!A24<>"",Table!A24,"") -> 2024-11-18 | B24: =IF(Table!A24<>"",Table!A24,"") -> 2024-11-18 | C24: =IF(Table!AH24<>"",Table!AH24,"") ->  | D24: =IF(Table!AI24<>"",Table!AI24,"") ->  | E24: =IF(Table!AJ24<>"",Table!AJ24,"") ->  | F24: =IF(Table!AK24<>"",Table!AK24,"") ->  | G24: =IF(Table!AL24<>"",Table!AL24,"") ->  | H24: =IF(Table!AM24<>"",Table!AM24,"") ->  | I24: =IF(Table!AN24<>"",Table!AN24,"") ->  | J24: =IF(Table!AO24<>"",Table!AO24,"") ->  | K24: =IF(Table!AP24<>"",Table!AP24,"") ->  | L24: =IF(Table!AQ24<>"",Table!AQ24,"") ->  | M24: =IF(Table!AR24<>"",Table!AR24,"") ->  | N24: =IF(Table!AS24<>"",Table!AS24,"") ->  | O24: =IF(ספיקות!E24<>"",(24*Table!CS24)/ספיקות!E24,"") -> 21.3993808
A25: =IF(Table!A25<>"",Table!A25,"") -> 2024-11-19 | B25: =IF(Table!A25<>"",Table!A25,"") -> 2024-11-19 | C25: =IF(Table!AH25<>"",Table!AH25,"") ->  | D25: =IF(Table!AI25<>"",Table!AI25,"") ->  | E25: =IF(Table!AJ25<>"",Table!AJ25,"") ->  | F25: =IF(Table!AK25<>"",Table!AK25,"") ->  | G25: =IF(Table!AL25<>"",Table!AL25,"") ->  | H25: =IF(Table!AM25<>"",Table!AM25,"") ->  | I25: =IF(Table!AN25<>"",Table!AN25,"") ->  | J25: =IF(Table!AO25<>"",Table!AO25,"") ->  | K25: =IF(Table!AP25<>"",Table!AP25,"") ->  | L25: =IF(Table!AQ25<>"",Table!AQ25,"") ->  | M25: =IF(Table!AR25<>"",Table!AR25,"") ->  | N25: =IF(Table!AS25<>"",Table!AS25,"") ->  | O25: =IF(ספיקות!E25<>"",(24*Table!CS25)/ספיקות!E25,"") -> 24.2186405
A26: =IF(Table!A26<>"",Table!A26,"") -> 2024-11-20 | B26: =IF(Table!A26<>"",Table!A26,"") -> 2024-11-20 | C26: =IF(Table!AH26<>"",Table!AH26,"") ->  | D26: =IF(Table!AI26<>"",Table!AI26,"") ->  | E26: =IF(Table!AJ26<>"",Table!AJ26,"") ->  | F26: =IF(Table!AK26<>"",Table!AK26,"") ->  | G26: =IF(Table!AL26<>"",Table!AL26,"") ->  | H26: =IF(Table!AM26<>"",Table!AM26,"") ->  | I26: =IF(Table!AN26<>"",Table!AN26,"") ->  | J26: =IF(Table!AO26<>"",Table!AO26,"") ->  | K26: =IF(Table!AP26<>"",Table!AP26,"") ->  | L26: =IF(Table!AQ26<>"",Table!AQ26,"") ->  | M26: =IF(Table!AR26<>"",Table!AR26,"") ->  | N26: =IF(Table!AS26<>"",Table!AS26,"") ->  | O26: =IF(ספיקות!E26<>"",(24*Table!CS26)/ספיקות!E26,"") -> 26.32140137
A27: =IF(Table!A27<>"",Table!A27,"") -> 2024-11-21 | B27: =IF(Table!A27<>"",Table!A27,"") -> 2024-11-21 | C27: =IF(Table!AH27<>"",Table!AH27,"") ->  | D27: =IF(Table!AI27<>"",Table!AI27,"") ->  | E27: =IF(Table!AJ27<>"",Table!AJ27,"") ->  | F27: =IF(Table!AK27<>"",Table!AK27,"") ->  | G27: =IF(Table!AL27<>"",Table!AL27,"") ->  | H27: =IF(Table!AM27<>"",Table!AM27,"") ->  | I27: =IF(Table!AN27<>"",Table!AN27,"") ->  | J27: =IF(Table!AO27<>"",Table!AO27,"") ->  | K27: =IF(Table!AP27<>"",Table!AP27,"") ->  | L27: =IF(Table!AQ27<>"",Table!AQ27,"") ->  | M27: =IF(Table!AR27<>"",Table!AR27,"") ->  | N27: =IF(Table!AS27<>"",Table!AS27,"") ->  | O27: =IF(ספיקות!E27<>"",(24*Table!CS27)/ספיקות!E27,"") -> 28.75207987
A28: =IF(Table!A28<>"",Table!A28,"") -> 2024-11-22 | B28: =IF(Table!A28<>"",Table!A28,"") -> 2024-11-22 | C28: =IF(Table!AH28<>"",Table!AH28,"") ->  | D28: =IF(Table!AI28<>"",Table!AI28,"") ->  | E28: =IF(Table!AJ28<>"",Table!AJ28,"") ->  | F28: =IF(Table!AK28<>"",Table!AK28,"") ->  | G28: =IF(Table!AL28<>"",Table!AL28,"") ->  | H28: =IF(Table!AM28<>"",Table!AM28,"") ->  | I28: =IF(Table!AN28<>"",Table!AN28,"") ->  | J28: =IF(Table!AO28<>"",Table!AO28,"") ->  | K28: =IF(Table!AP28<>"",Table!AP28,"") ->  | L28: =IF(Table!AQ28<>"",Table!AQ28,"") ->  | M28: =IF(Table!AR28<>"",Table!AR28,"") ->  | N28: =IF(Table!AS28<>"",Table!AS28,"") ->  | O28: =IF(ספיקות!E28<>"",(24*Table!CS28)/ספיקות!E28,"") -> 25.46794399
A29: =IF(Table!A29<>"",Table!A29,"") -> 2024-11-23 | B29: =IF(Table!A29<>"",Table!A29,"") -> 2024-11-23 | C29: =IF(Table!AH29<>"",Table!AH29,"") ->  | D29: =IF(Table!AI29<>"",Table!AI29,"") ->  | E29: =IF(Table!AJ29<>"",Table!AJ29,"") ->  | F29: =IF(Table!AK29<>"",Table!AK29,"") ->  | G29: =IF(Table!AL29<>"",Table!AL29,"") ->  | H29: =IF(Table!AM29<>"",Table!AM29,"") ->  | I29: =IF(Table!AN29<>"",Table!AN29,"") ->  | J29: =IF(Table!AO29<>"",Table!AO29,"") ->  | K29: =IF(Table!AP29<>"",Table!AP29,"") ->  | L29: =IF(Table!AQ29<>"",Table!AQ29,"") ->  | M29: =IF(Table!AR29<>"",Table!AR29,"") ->  | N29: =IF(Table!AS29<>"",Table!AS29,"") ->  | O29: =IF(ספיקות!E29<>"",(24*Table!CS29)/ספיקות!E29,"") -> 26.79069767
A30: =IF(Table!A30<>"",Table!A30,"") -> 2024-11-24 | B30: =IF(Table!A30<>"",Table!A30,"") -> 2024-11-24 | C30: =IF(Table!AH30<>"",Table!AH30,"") ->  | D30: =IF(Table!AI30<>"",Table!AI30,"") ->  | E30: =IF(Table!AJ30<>"",Table!AJ30,"") ->  | F30: =IF(Table!AK30<>"",Table!AK30,"") ->  | G30: =IF(Table!AL30<>"",Table!AL30,"") ->  | H30: =IF(Table!AM30<>"",Table!AM30,"") ->  | I30: =IF(Table!AN30<>"",Table!AN30,"") ->  | J30: =IF(Table!AO30<>"",Table!AO30,"") ->  | K30: =IF(Table!AP30<>"",Table!AP30,"") ->  | L30: =IF(Table!AQ30<>"",Table!AQ30,"") ->  | M30: =IF(Table!AR30<>"",Table!AR30,"") ->  | N30: =IF(Table!AS30<>"",Table!AS30,"") ->  | O30: =IF(ספיקות!E30<>"",(24*Table!CS30)/ספיקות!E30,"") -> 28.94472362
A31: =IF(Table!A31<>"",Table!A31,"") -> 2024-11-25 | B31: =IF(Table!A31<>"",Table!A31,"") -> 2024-11-25 | C31: =IF(Table!AH31<>"",Table!AH31,"") ->  | D31: =IF(Table!AI31<>"",Table!AI31,"") ->  | E31: =IF(Table!AJ31<>"",Table!AJ31,"") ->  | F31: =IF(Table!AK31<>"",Table!AK31,"") ->  | G31: =IF(Table!AL31<>"",Table!AL31,"") ->  | H31: =IF(Table!AM31<>"",Table!AM31,"") ->  | I31: =IF(Table!AN31<>"",Table!AN31,"") ->  | J31: =IF(Table!AO31<>"",Table!AO31,"") ->  | K31: =IF(Table!AP31<>"",Table!AP31,"") ->  | L31: =IF(Table!AQ31<>"",Table!AQ31,"") ->  | M31: =IF(Table!AR31<>"",Table!AR31,"") ->  | N31: =IF(Table!AS31<>"",Table!AS31,"") ->  | O31: =IF(ספיקות!E31<>"",(24*Table!CS31)/ספיקות!E31,"") -> 30.5840708
A32: =IF(Table!A32<>"",Table!A32,"") -> 2024-11-26 | B32: =IF(Table!A32<>"",Table!A32,"") -> 2024-11-26 | C32: =IF(Table!AH32<>"",Table!AH32,"") ->  | D32: =IF(Table!AI32<>"",Table!AI32,"") ->  | E32: =IF(Table!AJ32<>"",Table!AJ32,"") ->  | F32: =IF(Table!AK32<>"",Table!AK32,"") ->  | G32: =IF(Table!AL32<>"",Table!AL32,"") ->  | H32: =IF(Table!AM32<>"",Table!AM32,"") ->  | I32: =IF(Table!AN32<>"",Table!AN32,"") ->  | J32: =IF(Table!AO32<>"",Table!AO32,"") ->  | K32: =IF(Table!AP32<>"",Table!AP32,"") ->  | L32: =IF(Table!AQ32<>"",Table!AQ32,"") ->  | M32: =IF(Table!AR32<>"",Table!AR32,"") ->  | N32: =IF(Table!AS32<>"",Table!AS32,"") ->  | O32: =IF(ספיקות!E32<>"",(24*Table!CS32)/ספיקות!E32,"") -> 27.2985782
A33: =IF(Table!A33<>"",Table!A33,"") -> 2024-11-27 | B33: =IF(Table!A33<>"",Table!A33,"") -> 2024-11-27 | C33: =IF(Table!AH33<>"",Table!AH33,"") ->  | D33: =IF(Table!AI33<>"",Table!AI33,"") ->  | E33: =IF(Table!AJ33<>"",Table!AJ33,"") ->  | F33: =IF(Table!AK33<>"",Table!AK33,"") ->  | G33: =IF(Table!AL33<>"",Table!AL33,"") ->  | H33: =IF(Table!AM33<>"",Table!AM33,"") ->  | I33: =IF(Table!AN33<>"",Table!AN33,"") ->  | J33: =IF(Table!AO33<>"",Table!AO33,"") ->  | K33: =IF(Table!AP33<>"",Table!AP33,"") ->  | L33: =IF(Table!AQ33<>"",Table!AQ33,"") ->  | M33: =IF(Table!AR33<>"",Table!AR33,"") ->  | N33: =IF(Table!AS33<>"",Table!AS33,"") ->  | O33: =IF(ספיקות!E33<>"",(24*Table!CS33)/ספיקות!E33,"") -> 29.69072165
A34: =IF(Table!A34<>"",Table!A34,"") -> 2024-11-28 | B34: =IF(Table!A34<>"",Table!A34,"") -> 2024-11-28 | C34: =IF(Table!AH34<>"",Table!AH34,"") ->  | D34: =IF(Table!AI34<>"",Table!AI34,"") ->  | E34: =IF(Table!AJ34<>"",Table!AJ34,"") ->  | F34: =IF(Table!AK34<>"",Table!AK34,"") ->  | G34: =IF(Table!AL34<>"",Table!AL34,"") ->  | H34: =IF(Table!AM34<>"",Table!AM34,"") ->  | I34: =IF(Table!AN34<>"",Table!AN34,"") ->  | J34: =IF(Table!AO34<>"",Table!AO34,"") ->  | K34: =IF(Table!AP34<>"",Table!AP34,"") ->  | L34: =IF(Table!AQ34<>"",Table!AQ34,"") ->  | M34: =IF(Table!AR34<>"",Table!AR34,"") ->  | N34: =IF(Table!AS34<>"",Table!AS34,"") ->  | O34: =IF(ספיקות!E34<>"",(24*Table!CS34)/ספיקות!E34,"") -> 29.06644239
A35: =IF(Table!A35<>"",Table!A35,"") -> 2024-11-29 | B35: =IF(Table!A35<>"",Table!A35,"") -> 2024-11-29 | C35: =IF(Table!AH35<>"",Table!AH35,"") ->  | D35: =IF(Table!AI35<>"",Table!AI35,"") ->  | E35: =IF(Table!AJ35<>"",Table!AJ35,"") ->  | F35: =IF(Table!AK35<>"",Table!AK35,"") ->  | G35: =IF(Table!AL35<>"",Table!AL35,"") ->  | H35: =IF(Table!AM35<>"",Table!AM35,"") ->  | I35: =IF(Table!AN35<>"",Table!AN35,"") ->  | J35: =IF(Table!AO35<>"",Table!AO35,"") ->  | K35: =IF(Table!AP35<>"",Table!AP35,"") ->  | L35: =IF(Table!AQ35<>"",Table!AQ35,"") ->  | M35: =IF(Table!AR35<>"",Table!AR35,"") ->  | N35: =IF(Table!AS35<>"",Table!AS35,"") ->  | O35: =IF(ספיקות!E35<>"",(24*Table!CS35)/ספיקות!E35,"") -> 25.17115805
A36: =IF(Table!A36<>"",Table!A36,"") -> 2024-11-30 | B36: =IF(Table!A36<>"",Table!A36,"") -> 2024-11-30 | C36: =IF(Table!AH36<>"",Table!AH36,"") ->  | D36: =IF(Table!AI36<>"",Table!AI36,"") ->  | E36: =IF(Table!AJ36<>"",Table!AJ36,"") ->  | F36: =IF(Table!AK36<>"",Table!AK36,"") ->  | G36: =IF(Table!AL36<>"",Table!AL36,"") ->  | H36: =IF(Table!AM36<>"",Table!AM36,"") ->  | I36: =IF(Table!AN36<>"",Table!AN36,"") ->  | J36: =IF(Table!AO36<>"",Table!AO36,"") ->  | K36: =IF(Table!AP36<>"",Table!AP36,"") ->  | L36: =IF(Table!AQ36<>"",Table!AQ36,"") ->  | M36: =IF(Table!AR36<>"",Table!AR36,"") ->  | N36: =IF(Table!AS36<>"",Table!AS36,"") ->  | O36: =IF(ספיקות!E36<>"",(24*Table!CS36)/ספיקות!E36,"") -> 26.60508083
A37: =IF(Table!A37<>"",Table!A37,"") -> 2024-12-01 | B37: =IF(Table!A37<>"",Table!A37,"") -> 2024-12-01 | C37: =IF(Table!AH37<>"",Table!AH37,"") ->  | D37: =IF(Table!AI37<>"",Table!AI37,"") ->  | E37: =IF(Table!AJ37<>"",Table!AJ37,"") ->  | F37: =IF(Table!AK37<>"",Table!AK37,"") ->  | G37: =IF(Table!AL37<>"",Table!AL37,"") ->  | H37: =IF(Table!AM37<>"",Table!AM37,"") ->  | I37: =IF(Table!AN37<>"",Table!AN37,"") ->  | J37: =IF(Table!AO37<>"",Table!AO37,"") ->  | K37: =IF(Table!AP37<>"",Table!AP37,"") ->  | L37: =IF(Table!AQ37<>"",Table!AQ37,"") ->  | M37: =IF(Table!AR37<>"",Table!AR37,"") ->  | N37: =IF(Table!AS37<>"",Table!AS37,"") ->  | O37: =IF(ספיקות!E37<>"",(24*Table!CS37)/ספיקות!E37,"") -> 
A38: סה"כ לחודש
A39: ממוצע | C39: =AVERAGE(C7:C37) -> 5 | D39: =AVERAGE(D7:D37) -> 25 | E39: 5 | G39: 5.9 | H39: 5.2 | I39: 0.05 | J39: 230 | K39: 10 | L39: 1.45 | N39: =AVERAGE(N7:N37) -> 0 | O39: 25.24653973
A40: מקסימום | C40: =MAX(C7:C37) -> 5 | D40: =MAX(D7:D37) -> 25 | E40: 5 | F40: 0 | G40: 5.9 | H40: 5.2 | I40: 0.05 | J40: 230 | K40: 10 | L40: 1.45 | N40: =MAX(N7:N37) -> 0 | O40: 30.5840708
A41: מינימום | C41: =MIN(C7:C37) -> 5 | D41: =MIN(D7:D37) -> 25 | E41: 5 | F41: 0 | G41: 5.9 | H41: 5.2 | I41: 0.05 | J41: 230 | K41: 10 | L41: 1.45 | N41: =MIN(N7:N37) -> 0 | O41: 21.3993808

Sheet קולחין שלישוני
A2: =סיכום!C11 -> מט"ש נובמבר 2024 | E2: נתוני תפעול - גליון 4 - איכות קולחין שלישוני
A3: יחידת פעולה | C3: מעבדה | W3: מעבדה | X3: שטח-רציף | Y3: מעבדה | Z3: שטח-רציף
A4: תדירות | C4: פעמיים בשבוע | G4: פעם בשבוע | N4: פעמיים בחודש | Q4: פעם בחודש | R4: פעם בשלושה חודשים: ינואר, אפריל, יולי, אוקטובר | W4: מד עכירות נייד | X4: מד עכירות קבוע | Y4: מד כלור כללי נייד | Z4: מד כלור כללי קבוע
A5: תאריך | B5: יום בשבוע | C5: קולי צואתי תא מגע | D5: צח"ב | E5: צח"כ | F5: מוצקים מרחפים | G5: חנקן כללי | H5: חנקן קלדהל | I5: חנקן אמוניאקלי | J5: חנקן חנקיתי | K5: חנקן חנקתי | L5: נתרן | M5: כלורידים | N5: זרחן כללי | O5: בורון | P5: מוליכות | Q5: שמן מינרלי | R5: דטרגנט אניוני | S5: ציאניד | T5: פלואוריד | U5: SAR | V5: סריקת מתכות
C6: ב-100 מ"ל | D6: מג"ל | E6: מג"ל | F6: מג"ל | G6: מג"ל | H6: מג"ל | I6: מג"ל | J6: מג"ל | K6: מג"ל | L6: מג"ל | M6: מג"ל | N6: מג"ל | O6: מג"ל | P6: cm/s | Q6: מג"ל | R6: מג"ל | S6: מג"ל | T6: מג"ל | U6: מג"ל | V6: מג"ל | W6: מ"ג/ליטר | X6: מ"ג/ליטר | Y6: מ"ג/ליטר | Z6: מ"ג/ליטר
A7: =IF(Table!A7<>"",Table!A7,"") -> 2024-11-01 | B7: =IF(Table!A7<>"",Table!A7,"") -> 2024-11-01 | C7: =IF(Table!AT7<>"",Table!AT7,"") ->  | D7: =IF(Table!AU7<>"",Table!AU7,"") ->  | E7: =IF(Table!AV7<>"",Table!AV7,"") ->  | F7: =IF(Table!AW7<>"",Table!AW7,"") ->  | G7: =IF(Table!AX7<>"",Table!AX7,"") ->  | H7: =IF(Table!AY7<>"",Table!AY7,"") ->  | I7: =IF(Table!AZ7<>"",Table!AZ7,"") ->  | J7: =IF(Table!BA7<>"",Table!BA7,"") ->  | K7: =IF(Table!BB7<>"",Table!BB7,"") ->  | L7: =IF(Table!BC7<>"",Table!BC7,"") ->  | M7: =IF(Table!BD7<>"",Table!BD7,"") ->  | N7: =IF(Table!BE7<>"",Table!BE7,"") ->  | O7: =IF(Table!BF7<>"",Table!BF7,"") ->  | P7: =IF(Table!BG7<>"",Table!BG7,"") ->  | Q7: =IF(Table!BH7<>"",Table!BH7,"") ->  | R7: =IF(Table!BI7<>"",Table!BI7,"") ->  | S7: =IF(Table!BJ7<>"",Table!BJ7,"") ->  | T7: =IF(Table!BK7<>"",Table!BK7,"") ->  | U7: =IF(Table!BL7<>"",Table!BL7,"") ->  | V7: =IF(Table!BM7<>"",Table!BM7,"") ->  | W7: =IF(Table!BN7<>"",Table!BN7,"") ->  | X7: =IF(Table!BO7<>"",Table!BO7,"") ->  | Y7: =IF(Table!BP7<>"",Table!BP7,"") ->  | Z7: =IF(Table!BQ7<>"",Table!BQ7,"") -> 
A8: =IF(Table!A8<>"",Table!A8,"") -> 2024-11-02 | B8: =IF(Table!A8<>"",Table!A8,"") -> 2024-11-02 | C8: =IF(Table!AT8<>"",Table!AT8,"") ->  | G8: =IF(Table!AX8<>"",Table!AX8,"") ->  | H8: =IF(Table!AY8<>"",Table!AY8,"") ->  | I8: =IF(Table!AZ8<>"",Table!AZ8,"") ->  | J8: =IF(Table!BA8<>"",Table!BA8,"") ->  | K8: =IF(Table!BB8<>"",Table!BB8,"") ->  | L8: =IF(Table!BC8<>"",Table!BC8,"") ->  | M8: =IF(Table!BD8<>"",Table!BD8,"") ->  | N8: =IF(Table!BE8<>"",Table!BE8,"") ->  | O8: =IF(Table!BF8<>"",Table!BF8,"") ->  | P8: =IF(Table!BG8<>"",Table!BG8,"") ->  | Q8: =IF(Table!BH8<>"",Table!BH8,"") ->  | R8: =IF(Table!BI8<>"",Table!BI8,"") ->  | S8: =IF(Table!BJ8<>"",Table!BJ8,"") ->  | T8: =IF(Table!BK8<>"",Table!BK8,"") ->  | U8: =IF(Table!BL8<>"",Table!BL8,"") ->  | V8: =IF(Table!BM8<>"",Table!BM8,"") ->  | W8: =IF(Table!BN8<>"",Table!BN8,"") ->  | X8: =IF(Table!BO8<>"",Table!BO8,"") ->  | Y8: =IF(Table!BP8<>"",Table!BP8,"") ->  | Z8: =IF(Table!BQ8<>"",Table!BQ8,"") -> 
A9: =IF(Table!A9<>"",Table!A9,"") -> 2024-11-03 | B9: =IF(Table!A9<>"",Table!A9,"") -> 2024-11-03 | C9: =IF(Table!AT9<>"",Table!AT9,"") ->  | D9: =IF(Table!AU9<>"",Table!AU9,"") ->  | E9: =IF(Table!AV9<>"",Table!AV9,"") ->  | F9: =IF(Table!AW9<>"",Table!AW9,"") ->  | G9: =IF(Table!AX9<>"",Table!AX9,"") ->  | H9: =IF(Table!AY9<>"",Table!AY9,"") ->  | I9: =IF(Table!AZ9<>"",Table!AZ9,"") ->  | J9: =IF(Table!BA9<>"",Table!BA9,"") ->  | K9: =IF(Table!BB9<>"",Table!BB9,"") ->  | L9: =IF(Table!BC9<>"",Table!BC9,"") ->  | M9: =IF(Table!BD9<>"",Table!BD9,"") ->  | N9: =IF(Table!BE9<>"",Table!BE9,"") ->  | O9: =IF(Table!BF9<>"",Table!BF9,"") ->  | P9: =IF(Table!BG9<>"",Table!BG9,"") ->  | Q9: =IF(Table!BH9<>"",Table!BH9,"") ->  | R9: =IF(Table!BI9<>"",Table!BI9,"") ->  | S9: =IF(Table!BJ9<>"",Table!BJ9,"") ->  | T9: =IF(Table!BK9<>"",Table!BK9,"") ->  | U9: =IF(Table!BL9<>"",Table!BL9,"") ->  | V9: 0 | W9: =IF(Table!BN9<>"",Table!BN9,"") -> 1.49 | X9: =IF(Table!BO9<>"",Table!BO9,"") -> 1.47 | Y9: =IF(Table!BP9<>"",Table!BP9,"") -> 1.65 | Z9: =IF(Table!BQ9<>"",Table!BQ9,"") -> 1.62
A10: =IF(Table!A10<>"",Table!A10,"") -> 2024-11-04 | B10: =IF(Table!A10<>"",Table!A10,"") -> 2024-11-04 | C10: =IF(Table!AT10<>"",Table!AT10,"") ->  | D10: =IF(Table!AU10<>"",Table!AU10,"") -> 5 | E10: =IF(Table!AV10<>"",Table!AV10,"") -> 13 | F10: =IF(Table!AW10<>"",Table!AW10,"") -> 5 | G10: =IF(Table!AX10<>"",Table!AX10,"") -> 5.8 | H10: =IF(Table!AY10<>"",Table!AY10,"") -> 3.95 | I10: =IF(Table!AZ10<>"",Table!AZ10,"") -> 1.85 | J10: =IF(Table!BA10<>"",Table!BA10,"") ->  | K10: =IF(Table!BB10<>"",Table!BB10,"") -> 1.85 | L10: =IF(Table!BC10<>"",Table!BC10,"") -> 139 | M10: =IF(Table!BD10<>"",Table!BD10,"") -> 229 | N10: =IF(Table!BE10<>"",Table!BE10,"") -> 5.17 | O10: =IF(Table!BF10<>"",Table!BF10,"") -> 0.2 | P10: =IF(Table!BG10<>"",Table!BG10,"") -> 1.46 | Q10: =IF(Table!BH10<>"",Table!BH10,"") -> 0.3 | R10: 0 | S10: 0 | T10: 0 | U10: 0 | V10: =IF(Table!BM10<>"",Table!BM10,"") ->  | W10: =IF(Table!BN10<>"",Table!BN10,"") -> 1.44 | X10: =IF(Table!BO10<>"",Table!BO10,"") -> 1.45 | Y10: =IF(Table!BP10<>"",Table!BP10,"") -> 1.49 | Z10: =IF(Table!BQ10<>"",Table!BQ10,"") -> 1.46
A11: =IF(Table!A11<>"",Table!A11,"") -> 2024-11-05 | B11: =IF(Table!A11<>"",Table!A11,"") -> 2024-11-05 | C11: =IF(Table!AT11<>"",Table!AT11,"") ->  | D11: =IF(Table!AU11<>"",Table!AU11,"") ->  | E11: =IF(Table!AV11<>"",Table!AV11,"") ->  | F11: =IF(Table!AW11<>"",Table!AW11,"") ->  | G11: =IF(Table!AX11<>"",Table!AX11,"") ->  | H11: =IF(Table!AY11<>"",Table!AY11,"") ->  | I11: =IF(Table!AZ11<>"",Table!AZ11,"") ->  | J11: =IF(Table!BA11<>"",Table!BA11,"") ->  | K11: =IF(Table!BB11<>"",Table!BB11,"") ->  | L11: =IF(Table!BC11<>"",Table!BC11,"") ->  | M11: =IF(Table!BD11<>"",Table!BD11,"") ->  | N11: =IF(Table!BE11<>"",Table!BE11,"") ->  | O11: =IF(Table!BF11<>"",Table!BF11,"") ->  | P11: =IF(Table!BG11<>"",Table!BG11,"") ->  | Q11: =IF(Table!BH11<>"",Table!BH11,"") ->  | R11: =IF(Table!BI11<>"",Table!BI11,"") ->  | S11: =IF(Table!BJ11<>"",Table!BJ11,"") ->  | T11: =IF(Table!BK11<>"",Table!BK11,"") ->  | U11: =IF(Table!BL11<>"",Table!BL11,"") ->  | V11: =IF(Table!BM11<>"",Table!BM11,"") ->  | W11: =IF(Table!BN11<>"",Table!BN11,"") -> 1.64 | X11: =IF(Table!BO11<>"",Table!BO11,"") -> 1.6 | Y11: =IF(Table!BP11<>"",Table!BP11,"") -> 1.47 | Z11: =IF(Table!BQ11<>"",Table!BQ11,"") -> 1.44
A12: =IF(Table!A12<>"",Table!A12,"") -> 2024-11-06 | B12: =IF(Table!A12<>"",Table!A12,"") -> 2024-11-06 | C12: =IF(Table!AT12<>"",Table!AT12,"") ->  | D12: =IF(Table!AU12<>"",Table!AU12,"") -> 5 | E12: =IF(Table!AV12<>"",Table!AV12,"") -> 29 | F12: =IF(Table!AW12<>"",Table!AW12,"") -> 5 | G12: =IF(Table!AX12<>"",Table!AX12,"") ->  | H12: =IF(Table!AY12<>"",Table!AY12,"") ->  | I12: =IF(Table!AZ12<>"",Table!AZ12,"") ->  | J12: =IF(Table!BA12<>"",Table!BA12,"") ->  | K12: =IF(Table!BB12<>"",Table!BB12,"") ->  | L12: =IF(Table!BC12<>"",Table!BC12,"") ->  | M12: =IF(Table!BD12<>"",Table!BD12,"") ->  | N12: =IF(Table!BE12<>"",Table!BE12,"") ->  | O12: =IF(Table!BF12<>"",Table!BF12,"") ->  | P12: =IF(Table!BG12<>"",Table!BG12,"") ->  | Q12: =IF(Table!BH12<>"",Table!BH12,"") ->  | R12: =IF(Table!BI12<>"",Table!BI12,"") ->  | S12: =IF(Table!BJ12<>"",Table!BJ12,"") ->  | T12: =IF(Table!BK12<>"",Table!BK12,"") ->  | U12: =IF(Table!BL12<>"",Table!BL12,"") ->  | V12: =IF(Table!BM12<>"",Table!BM12,"") ->  | W12: =IF(Table!BN12<>"",Table!BN12,"") -> 1.82 | X12: =IF(Table!BO12<>"",Table!BO12,"") -> 1.82 | Y12: =IF(Table!BP12<>"",Table!BP12,"") -> 1.38 | Z12: =IF(Table!BQ12<>"",Table!BQ12,"") -> 1.33
A13: =IF(Table!A13<>"",Table!A13,"") -> 2024-11-07 | B13: =IF(Table!A13<>"",Table!A13,"") -> 2024-11-07 | C13: =IF(Table!AT13<>"",Table!AT13,"") ->  | D13: =IF(Table!AU13<>"",Table!AU13,"") ->  | E13: =IF(Table!AV13<>"",Table!AV13,"") ->  | F13: =IF(Table!AW13<>"",Table!AW13,"") ->  | G13: =IF(Table!AX13<>"",Table!AX13,"") ->  | H13: =IF(Table!AY13<>"",Table!AY13,"") ->  | I13: =IF(Table!AZ13<>"",Table!AZ13,"") ->  | J13: =IF(Table!BA13<>"",Table!BA13,"") ->  | K13: =IF(Table!BB13<>"",Table!BB13,"") ->  | L13: =IF(Table!BC13<>"",Table!BC13,"") ->  | M13: =IF(Table!BD13<>"",Table!BD13,"") ->  | N13: =IF(Table!BE13<>"",Table!BE13,"") ->  | O13: =IF(Table!BF13<>"",Table!BF13,"") ->  | P13: =IF(Table!BG13<>"",Table!BG13,"") ->  | Q13: =IF(Table!BH13<>"",Table!BH13,"") ->  | R13: =IF(Table!BI13<>"",Table!BI13,"") ->  | S13: =IF(Table!BJ13<>"",Table!BJ13,"") ->  | T13: =IF(Table!BK13<>"",Table!BK13,"") ->  | U13: =IF(Table!BL13<>"",Table!BL13,"") ->  | V13: =IF(Table!BM13<>"",Table!BM13,"") ->  | W13: =IF(Table!BN13<>"",Table!BN13,"") -> 1.49 | X13: =IF(Table!BO13<>"",Table!BO13,"") -> 1.47 | Y13: =IF(Table!BP13<>"",Table!BP13,"") -> 1.65 | Z13: =IF(Table!BQ13<>"",Table!BQ13,"") -> 1.62
A14: =IF(Table!A14<>"",Table!A14,"") -> 2024-11-08 | B14: =IF(Table!A14<>"",Table!A14,"") -> 2024-11-08 | C14: =IF(Table!AT14<>"",Table!AT14,"") ->  | D14: =IF(Table!AU14<>"",Table!AU14,"") ->  | E14: =IF(Table!AV14<>"",Table!AV14,"") ->  | F14: =IF(Table!AW14<>"",Table!AW14,"") ->  | G14: =IF(Table!AX14<>"",Table!AX14,"") ->  | H14: =IF(Table!AY14<>"",Table!AY14,"") ->  | I14: =IF(Table!AZ14<>"",Table!AZ14,"") ->  | J14: =IF(Table!BA14<>"",Table!BA14,"") ->  | K14: =IF(Table!BB14<>"",Table!BB14,"") ->  | L14: =IF(Table!BC14<>"",Table!BC14,"") ->  | M14: =IF(Table!BD14<>"",Table!BD14,"") ->  | N14: =IF(Table!BE14<>"",Table!BE14,"") ->  | O14: =IF(Table!BF14<>"",Table!BF14,"") ->  | P14: =IF(Table!BG14<>"",Table!BG14,"") ->  | Q14: =IF(Table!BH14<>"",Table!BH14,"") ->  | R14: =IF(Table!BI14<>"",Table!BI14,"") ->  | S14: =IF(Table!BJ14<>"",Table!BJ14,"") ->  | T14: =IF(Table!BK14<>"",Table!BK14,"") ->  | U14: =IF(Table!BL14<>"",Table!BL14,"") ->  | V14: =IF(Table!BM14<>"",Table!BM14,"") ->  | W14: =IF(Table!BN14<>"",Table!BN14,"") ->  | X14: =IF(Table!BO14<>"",Table!BO14,"") ->  | Y14: =IF(Table!BP14<>"",Table!BP14,"") ->  | Z14: =IF(Table!BQ14<>"",Table!BQ14,"") -> 
A15: =IF(Table!A15<>"",Table!A15,"") -> 2024-11-09 | B15: =IF(Table!A15<>"",Table!A15,"") -> 2024-11-09 | C15: =IF(Table!AT15<>"",Table!AT15,"") ->  | D15: =IF(Table!AU15<>"",Table!AU15,"") ->  | E15: =IF(Table!AV15<>"",Table!AV15,"") ->  | F15: =IF(Table!AW15<>"",Table!AW15,"") ->  | G15: =IF(Table!AX15<>"",Table!AX15,"") ->  | H15: =IF(Table!AY15<>"",Table!AY15,"") ->  | I15: =IF(Table!AZ15<>"",Table!AZ15,"") ->  | J15: =IF(Table!BA15<>"",Table!BA15,"") ->  | K15: =IF(Table!BB15<>"",Table!BB15,"") ->  | L15: =IF(Table!BC15<>"",Table!BC15,"") ->  | M15: =IF(Table!BD15<>"",Table!BD15,"") ->  | N15: =IF(Table!BE15<>"",Table!BE15,"") ->  | O15: =IF(Table!BF15<>"",Table!BF15,"") ->  | P15: =IF(Table!BG15<>"",Table!BG15,"") ->  | Q15: =IF(Table!BH15<>"",Table!BH15,"") ->  | R15: =IF(Table!BI15<>"",Table!BI15,"") ->  | S15: =IF(Table!BJ15<>"",Table!BJ15,"") ->  | T15: =IF(Table!BK15<>"",Table!BK15,"") ->  | U15: =IF(Table!BL15<>"",Table!BL15,"") ->  | V15: =IF(Table!BM15<>"",Table!BM15,"") ->  | W15: =IF(Table!BN15<>"",Table!BN15,"") ->  | X15: =IF(Table!BO15<>"",Table!BO15,"") ->  | Y15: =IF(Table!BP15<>"",Table!BP15,"") ->  | Z15: =IF(Table!BQ15<>"",Table!BQ15,"") -> 
A16: =IF(Table!A16<>"",Table!A16,"") -> 2024-11-10 | B16: =IF(Table!A16<>"",Table!A16,"") -> 2024-11-10 | C16: =IF(Table!AT16<>"",Table!AT16,"") ->  | D16: =IF(Table!AU16<>"",Table!AU16,"") ->  | E16: =IF(Table!AV16<>"",Table!AV16,"") ->  | F16: =IF(Table!AW16<>"",Table!AW16,"") ->  | G16: =IF(Table!AX16<>"",Table!AX16,"") ->  | H16: =IF(Table!AY16<>"",Table!AY16,"") ->  | I16: =IF(Table!AZ16<>"",Table!AZ16,"") ->  | J16: =IF(Table!BA16<>"",Table!BA16,"") ->  | K16: =IF(Table!BB16<>"",Table!BB16,"") ->  | L16: =IF(Table!BC16<>"",Table!BC16,"") ->  | M16: =IF(Table!BD16<>"",Table!BD16,"") ->  | N16: =IF(Table!BE16<>"",Table!BE16,"") ->  | O16: =IF(Table!BF16<>"",Table!BF16,"") ->  | P16: =IF(Table!BG16<>"",Table!BG16,"") ->  | Q16: =IF(Table!BH16<>"",Table!BH16,"") ->  | R16: =IF(Table!BI16<>"",Table!BI16,"") ->  | S16: =IF(Table!BJ16<>"",Table!BJ16,"") ->  | T16: =IF(Table!BK16<>"",Table!BK16,"") ->  | U16: =IF(Table!BL16<>"",Table!BL16,"") ->  | V16: =IF(Table!BM16<>"",Table!BM16,"") ->  | W16: =IF(Table!BN16<>"",Table!BN16,"") -> 1.57 | X16: =IF(Table!BO16<>"",Table!BO16,"") -> 1.59 | Y16: =IF(Table!BP16<>"",Table!BP16,"") -> 1.38 | Z16: =IF(Table!BQ16<>"",Table!BQ16,"") -> 1.37
A17: =IF(Table!A17<>"",Table!A17,"") -> 2024-11-11 | B17: =IF(Table!A17<>"",Table!A17,"") -> 2024-11-11 | C17: =IF(Table!AT17<>"",Table!AT17,"") ->  | D17: =IF(Table!AU17<>"",Table!AU17,"") ->  | E17: =IF(Table!AV17<>"",Table!AV17,"") -> 22 | F17: =IF(Table!AW17<>"",Table!AW17,"") -> 5 | G17: =IF(Table!AX17<>"",Table!AX17,"") -> 7 | H17: =IF(Table!AY17<>"",Table!AY17,"") -> 6.08 | I17: =IF(Table!AZ17<>"",Table!AZ17,"") -> 4.76 | J17: =IF(Table!BA17<>"",Table!BA17,"") -> 0.1 | K17: =IF(Table!BB17<>"",Table!BB17,"") -> 0.82 | L17: =IF(Table!BC17<>"",Table!BC17,"") -> 143 | M17: =IF(Table!BD17<>"",Table!BD17,"") -> 229 | N17: =IF(Table!BE17<>"",Table!BE17,"") ->  | O17: =IF(Table!BF17<>"",Table!BF17,"") ->  | P17: =IF(Table!BG17<>"",Table!BG17,"") -> 1.47 | Q17: =IF(Table!BH17<>"",Table!BH17,"") ->  | R17: =IF(Table!BI17<>"",Table!BI17,"") ->  | S17: =IF(Table!BJ17<>"",Table!BJ17,"") ->  | T17: =IF(Table!BK17<>"",Table!BK17,"") ->  | U17: =IF(Table!BL17<>"",Table!BL17,"") ->  | V17: =IF(Table!BM17<>"",Table!BM17,"") ->  | W17: =IF(Table!BN17<>"",Table!BN17,"") -> 1.23 | X17: =IF(Table!BO17<>"",Table!BO17,"") -> 1.24 | Y17: =IF(Table!BP17<>"",Table!BP17,"") -> 1.45 | Z17: =IF(Table!BQ17<>"",Table!BQ17,"") -> 1.42
A18: =IF(Table!A18<>"",Table!A18,"") -> 2024-11-12 | B18: =IF(Table!A18<>"",Table!A18,"") -> 2024-11-12 | C18: =IF(Table!AT18<>"",Table!AT18,"") ->  | D18: =IF(Table!AU18<>"",Table!AU18,"") ->  | E18: =IF(Table!AV18<>"",Table!AV18,"") ->  | F18: =IF(Table!AW18<>"",Table!AW18,"") ->  | G18: =IF(Table!AX18<>"",Table!AX18,"") ->  | H18: =IF(Table!AY18<>"",Table!AY18,"") ->  | I18: =IF(Table!AZ18<>"",Table!AZ18,"") ->  | J18: =IF(Table!BA18<>"",Table!BA18,"") ->  | K18: =IF(Table!BB18<>"",Table!BB18,"") ->  | L18: =IF(Table!BC18<>"",Table!BC18,"") ->  | M18: =IF(Table!BD18<>"",Table!BD18,"") ->  | N18: =IF(Table!BE18<>"",Table!BE18,"") ->  | O18: =IF(Table!BF18<>"",Table!BF18,"") ->  | P18: =IF(Table!BG18<>"",Table!BG18,"") ->  | Q18: =IF(Table!BH18<>"",Table!BH18,"") ->  | R18: =IF(Table!BI18<>"",Table!BI18,"") ->  | S18: =IF(Table!BJ18<>"",Table!BJ18,"") ->  | T18: =IF(Table!BK18<>"",Table!BK18,"") ->  | U18: =IF(Table!BL18<>"",Table!BL18,"") ->  | V18: =IF(Table!BM18<>"",Table!BM18,"") ->  | W18: =IF(Table!BN18<>"",Table!BN18,"") -> 1.34 | X18: =IF(Table!BO18<>"",Table!BO18,"") -> 1.33 | Y18: =IF(Table!BP18<>"",Table!BP18,"") -> 1.52 | Z18: =IF(Table!BQ18<>"",Table!BQ18,"") -> 1.49
A19: =IF(Table!A19<>"",Table!A19,"") -> 2024-11-13 | B19: =IF(Table!A19<>"",Table!A19,"") -> 2024-11-13 | C19: =IF(Table!AT19<>"",Table!AT19,"") -> 1 | D19: =IF(Table!AU19<>"",Table!AU19,"") -> 5 | E19: =IF(Table!AV19<>"",Table!AV19,"") -> 35 | F19: =IF(Table!AW19<>"",Table!AW19,"") -> 5 | G19: =IF(Table!AX19<>"",Table!AX19,"") ->  | H19: =IF(Table!AY19<>"",Table!AY19,"") ->  | I19: =IF(Table!AZ19<>"",Table!AZ19,"") ->  | J19: =IF(Table!BA19<>"",Table!BA19,"") ->  | K19: =IF(Table!BB19<>"",Table!BB19,"") ->  | L19: =IF(Table!BC19<>"",Table!BC19,"") ->  | M19: =IF(Table!BD19<>"",Table!BD19,"") ->  | N19: =IF(Table!BE19<>"",Table!BE19,"") ->  | O19: =IF(Table!BF19<>"",Table!BF19,"") ->  | P19: =IF(Table!BG19<>"",Table!BG19,"") ->  | Q19: =IF(Table!BH19<>"",Table!BH19,"") ->  | R19: =IF(Table!BI19<>"",Table!BI19,"") ->  | S19: =IF(Table!BJ19<>"",Table!BJ19,"") ->  | T19: =IF(Table!BK19<>"",Table!BK19,"") ->  | U19: =IF(Table!BL19<>"",Table!BL19,"") ->  | V19: =IF(Table!BM19<>"",Table!BM19,"") ->  | W19: =IF(Table!BN19<>"",Table!BN19,"") -> 1.41 | X19: =IF(Table!BO19<>"",Table!BO19,"") -> 1.39 | Y19: =IF(Table!BP19<>"",Table!BP19,"") -> 1.36 | Z19: =IF(Table!BQ19<>"",Table!BQ19,"") -> 1.33
A20: =IF(Table!A20<>"",Table!A20,"") -> 2024-11-14 | B20: =IF(Table!A20<>"",Table!A20,"") -> 2024-11-14 | C20: =IF(Table!AT20<>"",Table!AT20,"") ->  | D20: =IF(Table!AU20<>"",Table!AU20,"") ->  | E20: =IF(Table!AV20<>"",Table!AV20,"") ->  | F20: =IF(Table!AW20<>"",Table!AW20,"") ->  | G20: =IF(Table!AX20<>"",Table!AX20,"") ->  | H20: =IF(Table!AY20<>"",Table!AY20,"") ->  | I20: =IF(Table!AZ20<>"",Table!AZ20,"") ->  | J20: =IF(Table!BA20<>"",Table!BA20,"") ->  | K20: =IF(Table!BB20<>"",Table!BB20,"") ->  | L20: =IF(Table!BC20<>"",Table!BC20,"") ->  | M20: =IF(Table!BD20<>"",Table!BD20,"") ->  | N20: =IF(Table!BE20<>"",Table!BE20,"") ->  | O20: =IF(Table!BF20<>"",Table!BF20,"") ->  | P20: =IF(Table!BG20<>"",Table!BG20,"") ->  | Q20: =IF(Table!BH20<>"",Table!BH20,"") ->  | R20: =IF(Table!BI20<>"",Table!BI20,"") ->  | S20: =IF(Table!BJ20<>"",Table!BJ20,"") ->  | T20: =IF(Table!BK20<>"",Table!BK20,"") ->  | U20: =IF(Table!BL20<>"",Table!BL20,"") ->  | V20: =IF(Table!BM20<>"",Table!BM20,"") ->  | W20: =IF(Table!BN20<>"",Table!BN20,"") -> 1.81 | X20: =IF(Table!BO20<>"",Table!BO20,"") -> 1.82 | Y20: =IF(Table!BP20<>"",Table!BP20,"") -> 1.27 | Z20: =IF(Table!BQ20<>"",Table!BQ20,"") -> 1.27
A21: =IF(Table!A21<>"",Table!A21,"") -> 2024-11-15 | B21: =IF(Table!A21<>"",Table!A21,"") -> 2024-11-15 | C21: =IF(Table!AT21<>"",Table!AT21,"") ->  | G21: =IF(Table!AX21<>"",Table!AX21,"") ->  | H21: =IF(Table!AY21<>"",Table!AY21,"") ->  | I21: =IF(Table!AZ21<>"",Table!AZ21,"") ->  | J21: =IF(Table!BA21<>"",Table!BA21,"") ->  | K21: =IF(Table!BB21<>"",Table!BB21,"") ->  | L21: =IF(Table!BC21<>"",Table!BC21,"") ->  | M21: =IF(Table!BD21<>"",Table!BD21,"") ->  | N21: =IF(Table!BE21<>"",Table!BE21,"") ->  | O21: =IF(Table!BF21<>"",Table!BF21,"") ->  | P21: =IF(Table!BG21<>"",Table!BG21,"") ->  | Q21: =IF(Table!BH21<>"",Table!BH21,"") ->  | R21: =IF(Table!BI21<>"",Table!BI21,"") ->  | S21: =IF(Table!BJ21<>"",Table!BJ21,"") ->  | T21: =IF(Table!BK21<>"",Table!BK21,"") ->  | U21: =IF(Table!BL21<>"",Table!BL21,"") ->  | V21: =IF(Table!BM21<>"",Table!BM21,"") ->  | W21: =IF(Table!BN21<>"",Table!BN21,"") ->  | X21: =IF(Table!BO21<>"",Table!BO21,"") ->  | Y21: =IF(Table!BP21<>"",Table!BP21,"") ->  | Z21: =IF(Table!BQ21<>"",Table!BQ21,"") -> 
A22: =IF(Table!A22<>"",Table!A22,"") -> 2024-11-16 | B22: =IF(Table!A22<>"",Table!A22,"") -> 2024-11-16 | C22: =IF(Table!AT22<>"",Table!AT22,"") ->  | D22: =IF(Table!AU22<>"",Table!AU22,"") ->  | E22: =IF(Table!AV22<>"",Table!AV22,"") ->  | F22: =IF(Table!AW22<>"",Table!AW22,"") ->  | G22: =IF(Table!AX22<>"",Table!AX22,"") ->  | H22: =IF(Table!AY22<>"",Table!AY22,"") ->  | I22: =IF(Table!AZ22<>"",Table!AZ22,"") ->  | J22: =IF(Table!BA22<>"",Table!BA22,"") ->  | K22: =IF(Table!BB22<>"",Table!BB22,"") ->  | L22: =IF(Table!BC22<>"",Table!BC22,"") ->  | M22: =IF(Table!BD22<>"",Table!BD22,"") ->  | N22: =IF(Table!BE22<>"",Table!BE22,"") ->  | O22: =IF(Table!BF22<>"",Table!BF22,"") ->  | P22: =IF(Table!BG22<>"",Table!BG22,"") ->  | Q22: =IF(Table!BH22<>"",Table!BH22,"") ->  | R22: =IF(Table!BI22<>"",Table!BI22,"") ->  | S22: =IF(Table!BJ22<>"",Table!BJ22,"") ->  | T22: =IF(Table!BK22<>"",Table!BK22,"") ->  | U22: =IF(Table!BL22<>"",Table!BL22,"") ->  | V22: =IF(Table!BM22<>"",Table!BM22,"") ->  | W22: =IF(Table!BN22<>"",Table!BN22,"") ->  | X22: =IF(Table!BO22<>"",Table!BO22,"") ->  | Y22: =IF(Table!BP22<>"",Table!BP22,"") ->  | Z22: =IF(Table!BQ22<>"",Table!BQ22,"") -> 
A23: =IF(Table!A23<>"",Table!A23,"") -> 2024-11-17 | B23: =IF(Table!A23<>"",Table!A23,"") -> 2024-11-17 | C23: =IF(Table!AT23<>"",Table!AT23,"") ->  | D23: =IF(Table!AU23<>"",Table!AU23,"") ->  | E23: =IF(Table!AV23<>"",Table!AV23,"") ->  | F23: =IF(Table!AW23<>"",Table!AW23,"") ->  | G23: =IF(Table!AX23<>"",Table!AX23,"") ->  | H23: =IF(Table!AY23<>"",Table!AY23,"") ->  | I23: =IF(Table!AZ23<>"",Table!AZ23,"") ->  | J23: =IF(Table!BA23<>"",Table!BA23,"") ->  | K23: =IF(Table!BB23<>"",Table!BB23,"") ->  | L23: =IF(Table!BC23<>"",Table!BC23,"") ->  | M23: =IF(Table!BD23<>"",Table!BD23,"") ->  | N23: =IF(Table!BE23<>"",Table!BE23,"") ->  | O23: =IF(Table!BF23<>"",Table!BF23,"") ->  | P23: =IF(Table!BG23<>"",Table!BG23,"") ->  | Q23: =IF(Table!BH23<>"",Table!BH23,"") ->  | R23: =IF(Table!BI23<>"",Table!BI23,"") ->  | S23: =IF(Table!BJ23<>"",Table!BJ23,"") ->  | T23: =IF(Table!BK23<>"",Table!BK23,"") ->  | U23: =IF(Table!BL23<>"",Table!BL23,"") ->  | V23: =IF(Table!BM23<>"",Table!BM23,"") ->  | W23: =IF(Table!BN23<>"",Table!BN23,"") -> 1.66 | X23: =IF(Table!BO23<>"",Table!BO23,"") -> 1.68 | Y23: =IF(Table!BP23<>"",Table!BP23,"") -> 1.68 | Z23: =IF(Table!BQ23<>"",Table!BQ23,"") -> 1.65
A24: =IF(Table!A24<>"",Table!A24,"") -> 2024-11-18 | B24: =IF(Table!A24<>"",Table!A24,"") -> 2024-11-18 | C24: =IF(Table!AT24<>"",Table!AT24,"") -> 1 | D24: =IF(Table!AU24<>"",Table!AU24,"") -> 5 | E24: =IF(Table!AV24<>"",Table!AV24,"") -> 36 | F24: =IF(Table!AW24<>"",Table!AW24,"") -> 5 | G24: =IF(Table!AX24<>"",Table!AX24,"") -> 8.6 | H24: =IF(Table!AY24<>"",Table!AY24,"") -> 7.07 | I24: =IF(Table!AZ24<>"",Table!AZ24,"") -> 3.91 | J24: =IF(Table!BA24<>"",Table!BA24,"") -> 0.13 | K24: =IF(Table!BB24<>"",Table!BB24,"") -> 1.4 | L24: =IF(Table!BC24<>"",Table!BC24,"") -> 141 | M24: =IF(Table!BD24<>"",Table!BD24,"") -> 231 | N24: =IF(Table!BE24<>"",Table!BE24,"") -> 7.06 | O24: =IF(Table!BF24<>"",Table!BF24,"") -> 0.2 | P24: =IF(Table!BG24<>"",Table!BG24,"") -> 1.48 | Q24: =IF(Table!BH24<>"",Table!BH24,"") ->  | R24: =IF(Table!BI24<>"",Table!BI24,"") ->  | S24: =IF(Table!BJ24<>"",Table!BJ24,"") ->  | T24: =IF(Table!BK24<>"",Table!BK24,"") ->  | U24: =IF(Table!BL24<>"",Table!BL24,"") ->  | V24: =IF(Table!BM24<>"",Table!BM24,"") ->  | W24: =IF(Table!BN24<>"",Table!BN24,"") -> 1.52 | X24: =IF(Table!BO24<>"",Table!BO24,"") -> 1.55 | Y24: =IF(Table!BP24<>"",Table!BP24,"") -> 1.42 | Z24: =IF(Table!BQ24<>"",Table!BQ24,"") -> 1.42
A25: =IF(Table!A25<>"",Table!A25,"") -> 2024-11-19 | B25: =IF(Table!A25<>"",Table!A25,"") -> 2024-11-19 | C25: =IF(Table!AT25<>"",Table!AT25,"") ->  | D25: =IF(Table!AU25<>"",Table!AU25,"") ->  | E25: =IF(Table!AV25<>"",Table!AV25,"") ->  | F25: =IF(Table!AW25<>"",Table!AW25,"") ->  | G25: =IF(Table!AX25<>"",Table!AX25,"") ->  | H25: =IF(Table!AY25<>"",Table!AY25,"") ->  | I25: =IF(Table!AZ25<>"",Table!AZ25,"") ->  | J25: =IF(Table!BA25<>"",Table!BA25,"") ->  | K25: =IF(Table!BB25<>"",Table!BB25,"") ->  | L25: =IF(Table!BC25<>"",Table!BC25,"") ->  | M25: =IF(Table!BD25<>"",Table!BD25,"") ->  | N25: =IF(Table!BE25<>"",Table!BE25,"") ->  | O25: =IF(Table!BF25<>"",Table!BF25,"") ->  | P25: =IF(Table!BG25<>"",Table!BG25,"") ->  | Q25: =IF(Table!BH25<>"",Table!BH25,"") ->  | R25: =IF(Table!BI25<>"",Table!BI25,"") ->  | S25: =IF(Table!BJ25<>"",Table!BJ25,"") ->  | T25: =IF(Table!BK25<>"",Table!BK25,"") ->  | U25: =IF(Table!BL25<>"",Table!BL25,"") ->  | V25: =IF(Table!BM25<>"",Table!BM25,"") ->  | W25: =IF(Table!BN25<>"",Table!BN25,"") -> 1.42 | X25: =IF(Table!BO25<>"",Table!BO25,"") -> 1.44 | Y25: =IF(Table!BP25<>"",Table!BP25,"") -> 1.41 | Z25: =IF(Table!BQ25<>"",Table!BQ25,"") -> 1.38
A26: =IF(Table!A26<>"",Table!A26,"") -> 2024-11-20 | B26: =IF(Table!A26<>"",Table!A26,"") -> 2024-11-20 | C26: =IF(Table!AT26<>"",Table!AT26,"") -> 1 | D26: =IF(Table!AU26<>"",Table!AU26,"") -> 5 | E26: =IF(Table!AV26<>"",Table!AV26,"") -> 27 | F26: =IF(Table!AW26<>"",Table!AW26,"") -> 5 | G26: =IF(Table!AX26<>"",Table!AX26,"") ->  | H26: =IF(Table!AY26<>"",Table!AY26,"") ->  | I26: =IF(Table!AZ26<>"",Table!AZ26,"") ->  | J26: =IF(Table!BA26<>"",Table!BA26,"") ->  | K26: =IF(Table!BB26<>"",Table!BB26,"") ->  | L26: =IF(Table!BC26<>"",Table!BC26,"") ->  | M26: =IF(Table!BD26<>"",Table!BD26,"") ->  | N26: =IF(Table!BE26<>"",Table!BE26,"") ->  | O26: =IF(Table!BF26<>"",Table!BF26,"") ->  | P26: =IF(Table!BG26<>"",Table!BG26,"") ->  | Q26: =IF(Table!BH26<>"",Table!BH26,"") ->  | R26: =IF(Table!BI26<>"",Table!BI26,"") ->  | S26: =IF(Table!BJ26<>"",Table!BJ26,"") ->  | T26: =IF(Table!BK26<>"",Table!BK26,"") ->  | U26: =IF(Table!BL26<>"",Table!BL26,"") ->  | V26: =IF(Table!BM26<>"",Table!BM26,"") ->  | W26: =IF(Table!BN26<>"",Table!BN26,"") -> 1.61 | X26: =IF(Table!BO26<>"",Table!BO26,"") -> 1.63 | Y26: =IF(Table!BP26<>"",Table!BP26,"") -> 1.31 | Z26: =IF(Table!BQ26<>"",Table!BQ26,"") -> 1.29
A27: =IF(Table!A27<>"",Table!A27,"") -> 2024-11-21 | B27: =IF(Table!A27<>"",Table!A27,"") -> 2024-11-21 | C27: =IF(Table!AT27<>"",Table!AT27,"") ->  | D27: =IF(Table!AU27<>"",Table!AU27,"") ->  | E27: =IF(Table!AV27<>"",Table!AV27,"") ->  | F27: =IF(Table!AW27<>"",Table!AW27,"") ->  | G27: =IF(Table!AX27<>"",Table!AX27,"") ->  | H27: =IF(Table!AY27<>"",Table!AY27,"") ->  | I27: =IF(Table!AZ27<>"",Table!AZ27,"") ->  | J27: =IF(Table!BA27<>"",Table!BA27,"") ->  | K27: =IF(Table!BB27<>"",Table!BB27,"") ->  | L27: =IF(Table!BC27<>"",Table!BC27,"") ->  | M27: =IF(Table!BD27<>"",Table!BD27,"") ->  | N27: =IF(Table!BE27<>"",Table!BE27,"") ->  | O27: =IF(Table!BF27<>"",Table!BF27,"") ->  | P27: =IF(Table!BG27<>"",Table!BG27,"") ->  | Q27: =IF(Table!BH27<>"",Table!BH27,"") ->  | R27: =IF(Table!BI27<>"",Table!BI27,"") ->  | S27: =IF(Table!BJ27<>"",Table!BJ27,"") ->  | T27: =IF(Table!BK27<>"",Table!BK27,"") ->  | U27: =IF(Table!BL27<>"",Table!BL27,"") ->  | V27: =IF(Table!BM27<>"",Table!BM27,"") ->  | W27: =IF(Table!BN27<>"",Table!BN27,"") -> 1.81 | X27: =IF(Table!BO27<>"",Table!BO27,"") -> 1.82 | Y27: =IF(Table!BP27<>"",Table!BP27,"") -> 1.27 | Z27: =IF(Table!BQ27<>"",Table!BQ27,"") -> 1.27
A28: =IF(Table!A28<>"",Table!A28,"") -> 2024-11-22 | B28: =IF(Table!A28<>"",Table!A28,"") -> 2024-11-22 | C28: =IF(Table!AT28<>"",Table!AT28,"") ->  | D28: =IF(Table!AU28<>"",Table!AU28,"") ->  | E28: =IF(Table!AV28<>"",Table!AV28,"") ->  | F28: =IF(Table!AW28<>"",Table!AW28,"") ->  | G28: =IF(Table!AX28<>"",Table!AX28,"") ->  | H28: =IF(Table!AY28<>"",Table!AY28,"") ->  | I28: =IF(Table!AZ28<>"",Table!AZ28,"") ->  | J28: =IF(Table!BA28<>"",Table!BA28,"") ->  | K28: =IF(Table!BB28<>"",Table!BB28,"") ->  | L28: =IF(Table!BC28<>"",Table!BC28,"") ->  | M28: =IF(Table!BD28<>"",Table!BD28,"") ->  | N28: =IF(Table!BE28<>"",Table!BE28,"") ->  | O28: =IF(Table!BF28<>"",Table!BF28,"") ->  | P28: =IF(Table!BG28<>"",Table!BG28,"") ->  | Q28: =IF(Table!BH28<>"",Table!BH28,"") ->  | R28: =IF(Table!BI28<>"",Table!BI28,"") ->  | S28: =IF(Table!BJ28<>"",Table!BJ28,"") ->  | T28: =IF(Table!BK28<>"",Table!BK28,"") ->  | U28: =IF(Table!BL28<>"",Table!BL28,"") ->  | V28: =IF(Table!BM28<>"",Table!BM28,"") ->  | W28: =IF(Table!BN28<>"",Table!BN28,"") ->  | X28: =IF(Table!BO28<>"",Table!BO28,"") ->  | Y28: =IF(Table!BP28<>"",Table!BP28,"") ->  | Z28: =IF(Table!BQ28<>"",Table!BQ28,"") -> 
A29: =IF(Table!A29<>"",Table!A29,"") -> 2024-11-23 | B29: =IF(Table!A29<>"",Table!A29,"") -> 2024-11-23 | D29: =IF(Table!AU29<>"",Table!AU29,"") ->  | E29: =IF(Table!AV29<>"",Table!AV29,"") ->  | F29: =IF(Table!AW29<>"",Table!AW29,"") ->  | G29: =IF(Table!AX29<>"",Table!AX29,"") ->  | H29: =IF(Table!AY29<>"",Table!AY29,"") ->  | I29: =IF(Table!AZ29<>"",Table!AZ29,"") ->  | J29: =IF(Table!BA29<>"",Table!BA29,"") ->  | K29: =IF(Table!BB29<>"",Table!BB29,"") ->  | L29: =IF(Table!BC29<>"",Table!BC29,"") ->  | M29: =IF(Table!BD29<>"",Table!BD29,"") ->  | N29: =IF(Table!BE29<>"",Table!BE29,"") ->  | O29: =IF(Table!BF29<>"",Table!BF29,"") ->  | P29: =IF(Table!BG29<>"",Table!BG29,"") ->  | Q29: =IF(Table!BH29<>"",Table!BH29,"") ->  | R29: =IF(Table!BI29<>"",Table!BI29,"") ->  | S29: =IF(Table!BJ29<>"",Table!BJ29,"") ->  | T29: =IF(Table!BK29<>"",Table!BK29,"") ->  | U29: =IF(Table!BL29<>"",Table!BL29,"") ->  | V29: =IF(Table!BM29<>"",Table!BM29,"") ->  | W29: =IF(Table!BN29<>"",Table!BN29,"") ->  | X29: =IF(Table!BO29<>"",Table!BO29,"") ->  | Y29: =IF(Table!BP29<>"",Table!BP29,"") ->  | Z29: =IF(Table!BQ29<>"",Table!BQ29,"") -> 
A30: =IF(Table!A30<>"",Table!A30,"") -> 2024-11-24 | B30: =IF(Table!A30<>"",Table!A30,"") -> 2024-11-24 | C30: =IF(Table!AT30<>"",Table!AT30,"") ->  | D30: =IF(Table!AU30<>"",Table!AU30,"") ->  | E30: =IF(Table!AV30<>"",Table!AV30,"") ->  | F30: =IF(Table!AW30<>"",Table!AW30,"") ->  | G30: =IF(Table!AX30<>"",Table!AX30,"") ->  | H30: =IF(Table!AY30<>"",Table!AY30,"") ->  | I30: =IF(Table!AZ30<>"",Table!AZ30,"") ->  | J30: =IF(Table!BA30<>"",Table!BA30,"") ->  | K30: =IF(Table!BB30<>"",Table!BB30,"") ->  | L30: =IF(Table!BC30<>"",Table!BC30,"") ->  | M30: =IF(Table!BD30<>"",Table!BD30,"") ->  | N30: =IF(Table!BE30<>"",Table!BE30,"") ->  | O30: =IF(Table!BF30<>"",Table!BF30,"") ->  | P30: =IF(Table!BG30<>"",Table!BG30,"") ->  | Q30: =IF(Table!BH30<>"",Table!BH30,"") ->  | R30: =IF(Table!BI30<>"",Table!BI30,"") ->  | S30: =IF(Table!BJ30<>"",Table!BJ30,"") ->  | T30: =IF(Table!BK30<>"",Table!BK30,"") ->  | U30: =IF(Table!BL30<>"",Table!BL30,"") ->  | V30: =IF(Table!BM30<>"",Table!BM30,"") ->  | W30: =IF(Table!BN30<>"",Table!BN30,"") -> 1.91 | X30: =IF(Table!BO30<>"",Table!BO30,"") -> 1.93 | Y30: =IF(Table!BP30<>"",Table!BP30,"") -> 1.81 | Z30: =IF(Table!BQ30<>"",Table!BQ30,"") -> 1.78
A31: =IF(Table!A31<>"",Table!A31,"") -> 2024-11-25 | B31: =IF(Table!A31<>"",Table!A31,"") -> 2024-11-25 | C31: =IF(Table!AT31<>"",Table!AT31,"") -> 1 | D31: =IF(Table!AU31<>"",Table!AU31,"") -> 5 | E31: =IF(Table!AV31<>"",Table!AV31,"") -> 22 | F31: =IF(Table!AW31<>"",Table!AW31,"") -> 5 | G31: =IF(Table!AX31<>"",Table!AX31,"") -> 10 | H31: =IF(Table!AY31<>"",Table!AY31,"") -> 8.1 | I31: =IF(Table!AZ31<>"",Table!AZ31,"") -> 6.19 | J31: =IF(Table!BA31<>"",Table!BA31,"") -> 0.13 | K31: =IF(Table!BB31<>"",Table!BB31,"") -> 1.77 | L31: =IF(Table!BC31<>"",Table!BC31,"") -> 135 | M31: =IF(Table!BD31<>"",Table!BD31,"") -> 231 | N31: =IF(Table!BE31<>"",Table!BE31,"") ->  | O31: =IF(Table!BF31<>"",Table!BF31,"") ->  | P31: =IF(Table!BG31<>"",Table!BG31,"") -> 1.48 | Q31: =IF(Table!BH31<>"",Table!BH31,"") ->  | R31: =IF(Table!BI31<>"",Table!BI31,"") ->  | S31: =IF(Table!BJ31<>"",Table!BJ31,"") ->  | T31: =IF(Table!BK31<>"",Table!BK31,"") ->  | U31: =IF(Table!BL31<>"",Table!BL31,"") ->  | V31: =IF(Table!BM31<>"",Table!BM31,"") ->  | W31: =IF(Table!BN31<>"",Table!BN31,"") -> 1.54 | X31: =IF(Table!BO31<>"",Table!BO31,"") -> 1.54 | Y31: =IF(Table!BP31<>"",Table!BP31,"") -> 1.84 | Z31: =IF(Table!BQ31<>"",Table!BQ31,"") -> 1.84
A32: =IF(Table!A32<>"",Table!A32,"") -> 2024-11-26 | B32: =IF(Table!A32<>"",Table!A32,"") -> 2024-11-26 | C32: =IF(Table!AT32<>"",Table!AT32,"") ->  | D32: =IF(Table!AU32<>"",Table!AU32,"") ->  | E32: =IF(Table!AV32<>"",Table!AV32,"") ->  | F32: =IF(Table!AW32<>"",Table!AW32,"") ->  | G32: =IF(Table!AX32<>"",Table!AX32,"") ->  | H32: =IF(Table!AY32<>"",Table!AY32,"") ->  | I32: =IF(Table!AZ32<>"",Table!AZ32,"") ->  | J32: =IF(Table!BA32<>"",Table!BA32,"") ->  | K32: =IF(Table!BB32<>"",Table!BB32,"") ->  | L32: =IF(Table!BC32<>"",Table!BC32,"") ->  | M32: =IF(Table!BD32<>"",Table!BD32,"") ->  | N32: =IF(Table!BE32<>"",Table!BE32,"") ->  | O32: =IF(Table!BF32<>"",Table!BF32,"") ->  | P32: =IF(Table!BG32<>"",Table!BG32,"") ->  | Q32: =IF(Table!BH32<>"",Table!BH32,"") ->  | R32: =IF(Table!BI32<>"",Table!BI32,"") ->  | S32: =IF(Table!BJ32<>"",Table!BJ32,"") ->  | T32: =IF(Table!BK32<>"",Table!BK32,"") ->  | U32: =IF(Table!BL32<>"",Table!BL32,"") ->  | V32: =IF(Table!BM32<>"",Table!BM32,"") ->  | W32: =IF(Table!BN32<>"",Table!BN32,"") -> 1.82 | X32: =IF(Table!BO32<>"",Table!BO32,"") -> 1.84 | Y32: =IF(Table!BP32<>"",Table!BP32,"") -> 1.52 | Z32: =IF(Table!BQ32<>"",Table!BQ32,"") -> 1.51
A33: =IF(Table!A33<>"",Table!A33,"") -> 2024-11-27 | B33: =IF(Table!A33<>"",Table!A33,"") -> 2024-11-27 | C33: =IF(Table!AT29<>"",Table!AT29,"") ->  | D33: =IF(Table!AU33<>"",Table!AU33,"") -> 5 | E33: =IF(Table!AV33<>"",Table!AV33,"") -> 28 | F33: =IF(Table!AW33<>"",Table!AW33,"") -> 5 | G33: =IF(Table!AX33<>"",Table!AX33,"") ->  | H33: =IF(Table!AY33<>"",Table!AY33,"") ->  | I33: =IF(Table!AZ33<>"",Table!AZ33,"") ->  | J33: =IF(Table!BA33<>"",Table!BA33,"") ->  | K33: =IF(Table!BB33<>"",Table!BB33,"") ->  | L33: =IF(Table!BC33<>"",Table!BC33,"") ->  | M33: =IF(Table!BD33<>"",Table!BD33,"") ->  | N33: =IF(Table!BE33<>"",Table!BE33,"") ->  | O33: =IF(Table!BF33<>"",Table!BF33,"") ->  | P33: =IF(Table!BG33<>"",Table!BG33,"") ->  | Q33: =IF(Table!BH33<>"",Table!BH33,"") ->  | R33: =IF(Table!BI33<>"",Table!BI33,"") ->  | S33: =IF(Table!BJ33<>"",Table!BJ33,"") ->  | T33: =IF(Table!BK33<>"",Table!BK33,"") ->  | U33: =IF(Table!BL33<>"",Table!BL33,"") ->  | V33: =IF(Table!BM33<>"",Table!BM33,"") ->  | W33: =IF(Table!BN33<>"",Table!BN33,"") -> 1.72 | X33: =IF(Table!BO33<>"",Table!BO33,"") -> 1.74 | Y33: =IF(Table!BP33<>"",Table!BP33,"") -> 1.46 | Z33: =IF(Table!BQ33<>"",Table!BQ33,"") -> 1.46
A34: =IF(Table!A34<>"",Table!A34,"") -> 2024-11-28 | B34: =IF(Table!A34<>"",Table!A34,"") -> 2024-11-28 | C34: =IF(Table!AT34<>"",Table!AT34,"") ->  | D34: =IF(Table!AU34<>"",Table!AU34,"") ->  | E34: =IF(Table!AV34<>"",Table!AV34,"") ->  | F34: =IF(Table!AW34<>"",Table!AW34,"") ->  | G34: =IF(Table!AX34<>"",Table!AX34,"") ->  | H34: =IF(Table!AY34<>"",Table!AY34,"") ->  | I34: =IF(Table!AZ34<>"",Table!AZ34,"") ->  | J34: =IF(Table!BA34<>"",Table!BA34,"") ->  | K34: =IF(Table!BB34<>"",Table!BB34,"") ->  | L34: =IF(Table!BC34<>"",Table!BC34,"") ->  | M34: =IF(Table!BD34<>"",Table!BD34,"") ->  | N34: =IF(Table!BE34<>"",Table!BE34,"") ->  | O34: =IF(Table!BF34<>"",Table!BF34,"") ->  | P34: =IF(Table!BG34<>"",Table!BG34,"") ->  | Q34: =IF(Table!BH34<>"",Table!BH34,"") ->  | R34: =IF(Table!BI34<>"",Table!BI34,"") ->  | S34: =IF(Table!BJ34<>"",Table!BJ34,"") ->  | T34: =IF(Table!BK34<>"",Table!BK34,"") ->  | U34: =IF(Table!BL34<>"",Table!BL34,"") ->  | V34: =IF(Table!BM34<>"",Table!BM34,"") ->  | W34: =IF(Table!BN34<>"",Table!BN34,"") -> 1.68 | X34: =IF(Table!BO34<>"",Table!BO34,"") -> 1.71 | Y34: =IF(Table!BP34<>"",Table!BP34,"") -> 1.39 | Z34: =IF(Table!BQ34<>"",Table!BQ34,"") -> 1.38
A35: =IF(Table!A35<>"",Table!A35,"") -> 2024-11-29 | B35: =IF(Table!A35<>"",Table!A35,"") -> 2024-11-29 | C35: =IF(Table!AT35<>"",Table!AT35,"") ->  | D35: =IF(Table!AU35<>"",Table!AU35,"") ->  | E35: =IF(Table!AV35<>"",Table!AV35,"") ->  | F35: =IF(Table!AW35<>"",Table!AW35,"") ->  | G35: =IF(Table!AX35<>"",Table!AX35,"") ->  | H35: =IF(Table!AY35<>"",Table!AY35,"") ->  | I35: =IF(Table!AZ35<>"",Table!AZ35,"") ->  | J35: =IF(Table!BA35<>"",Table!BA35,"") ->  | K35: =IF(Table!BB35<>"",Table!BB35,"") ->  | L35: =IF(Table!BC35<>"",Table!BC35,"") ->  | M35: =IF(Table!BD35<>"",Table!BD35,"") ->  | N35: =IF(Table!BE35<>"",Table!BE35,"") ->  | O35: =IF(Table!BF35<>"",Table!BF35,"") ->  | P35: =IF(Table!BG35<>"",Table!BG35,"") ->  | Q35: =IF(Table!BH35<>"",Table!BH35,"") ->  | R35: =IF(Table!BI35<>"",Table!BI35,"") ->  | S35: =IF(Table!BJ35<>"",Table!BJ35,"") ->  | T35: =IF(Table!BK35<>"",Table!BK35,"") ->  | U35: =IF(Table!BL35<>"",Table!BL35,"") ->  | V35: =IF(Table!BM35<>"",Table!BM35,"") ->  | W35: =IF(Table!BN35<>"",Table!BN35,"") ->  | X35: =IF(Table!BO35<>"",Table!BO35,"") ->  | Y35: =IF(Table!BP35<>"",Table!BP35,"") ->  | Z35: =IF(Table!BQ35<>"",Table!BQ35,"") -> 
A36: =IF(Table!A36<>"",Table!A36,"") -> 2024-11-30 | B36: =IF(Table!A36<>"",Table!A36,"") -> 2024-11-30 | C36: =IF(Table!AT36<>"",Table!AT36,"") ->  | D36: =IF(Table!AU36<>"",Table!AU36,"") ->  | E36: =IF(Table!AV36<>"",Table!AV36,"") ->  | F36: =IF(Table!AW36<>"",Table!AW36,"") ->  | G36: =IF(Table!AX36<>"",Table!AX36,"") ->  | H36: =IF(Table!AY36<>"",Table!AY36,"") ->  | I36: =IF(Table!AZ36<>"",Table!AZ36,"") ->  | J36: =IF(Table!BA36<>"",Table!BA36,"") ->  | K36: =IF(Table!BB36<>"",Table!BB36,"") ->  | L36: =IF(Table!BC36<>"",Table!BC36,"") ->  | M36: =IF(Table!BD36<>"",Table!BD36,"") ->  | N36: =IF(Table!BE36<>"",Table!BE36,"") ->  | O36: =IF(Table!BF36<>"",Table!BF36,"") ->  | P36: =IF(Table!BG36<>"",Table!BG36,"") ->  | Q36: =IF(Table!BH36<>"",Table!BH36,"") ->  | R36: =IF(Table!BI36<>"",Table!BI36,"") ->  | S36: =IF(Table!BJ36<>"",Table!BJ36,"") ->  | T36: =IF(Table!BK36<>"",Table!BK36,"") ->  | U36: =IF(Table!BL36<>"",Table!BL36,"") ->  | V36: =IF(Table!BM36<>"",Table!BM36,"") ->  | W36: =IF(Table!BN36<>"",Table!BN36,"") ->  | X36: =IF(Table!BO36<>"",Table!BO36,"") ->  | Y36: =IF(Table!BP36<>"",Table!BP36,"") ->  | Z36: =IF(Table!BQ36<>"",Table!BQ36,"") -> 
A37: =IF(Table!A37<>"",Table!A37,"") -> 2024-12-01 | B37: =IF(Table!A37<>"",Table!A37,"") -> 2024-12-01 | C37: =IF(Table!AT37<>"",Table!AT37,"") ->  | D37: =IF(Table!AU37<>"",Table!AU37,"") ->  | E37: =IF(Table!AV37<>"",Table!AV37,"") ->  | F37: =IF(Table!AW37<>"",Table!AW37,"") ->  | G37: =IF(Table!AX37<>"",Table!AX37,"") ->  | H37: =IF(Table!AY37<>"",Table!AY37,"") ->  | I37: =IF(Table!AZ37<>"",Table!AZ37,"") ->  | J37: =IF(Table!BA37<>"",Table!BA37,"") ->  | K37: =IF(Table!BB37<>"",Table!BB37,"") ->  | L37: =IF(Table!BC37<>"",Table!BC37,"") ->  | M37: =IF(Table!BD37<>"",Table!BD37,"") ->  | N37: =IF(Table!BE37<>"",Table!BE37,"") ->  | O37: =IF(Table!BF37<>"",Table!BF37,"") ->  | P37: =IF(Table!BG37<>"",Table!BG37,"") ->  | Q37: =IF(Table!BH37<>"",Table!BH37,"") ->  | R37: =IF(Table!BI37<>"",Table!BI37,"") ->  | S37: =IF(Table!BJ37<>"",Table!BJ37,"") ->  | T37: =IF(Table!BK37<>"",Table!BK37,"") ->  | U37: =IF(Table!BL37<>"",Table!BL37,"") ->  | V37: =IF(Table!BM37<>"",Table!BM37,"") ->  | W37: =IF(Table!BN37<>"",Table!BN37,"") ->  | X37: =IF(Table!BO37<>"",Table!BO37,"") ->  | Y37: =IF(Table!BP37<>"",Table!BP37,"") ->  | Z37: =IF(Table!BQ37<>"",Table!BQ37,"") -> 
A38: סה"כ לחודש
A39: ממוצע | C39: =AVERAGE(C7:C37) -> 1 | D39: =AVERAGE(D7:D37) -> 5 | E39: 26.5 | F39: 5 | G39: 7.85 | H39: 6.3 | I39: 4.1775 | J39: 0.12 | K39: 1.46 | L39: 139.5 | M39: 230 | N39: 6.115 | O39: 0.2 | P39: 1.4725 | Q39: 0.3 | R39: 0 | S39: 0 | T39: 0 | U39: 0 | V39: 0 | W39: 1.5965 | X39: 1.603 | Y39: 1.4865 | Z39: 1.4665
A40: מקסימום | C40: =MAX(C7:C37) -> 1 | D40: =MAX(D7:D37) -> 5 | E40: 36 | F40: 5 | G40: 10 | H40: 8.1 | I40: 6.19 | J40: 0.13 | K40: 1.85 | L40: 143 | M40: 231 | N40: 7.06 | O40: 0.2 | P40: 1.48 | Q40: 0.3 | R40: 0 | S40: 0 | T40: 0 | U40: 0 | V40: 0 | W40: 1.91 | X40: 1.93 | Y40: 1.84 | Z40: 1.84
A41: מינימום | C41: =MIN(C8:C38) -> 1 | D41: =MIN(D8:D38) -> 5 | E41: 13 | F41: 5 | G41: 5.8 | H41: 3.95 | I41: 1.85 | J41: 0.1 | K41: 0.82 | L41: 135 | M41: 229 | N41: 5.17 | O41: 0.2 | P41: 1.46 | Q41: 0.3 | R41: 0 | S41: 0 | T41: 0 | U41: 0 | V41: 0 | W41: 1.23 | X41: 1.24 | Y41: 1.27 | Z41: 1.27

Sheet יחידת טיפול
A2: =סיכום!C11 -> מט"ש נובמבר 2024 | E2: נתוני תפעול - גליון 5 - יחידות טיפול
A3: יחידת פעולה | C3: יחידת טיפול 1 | K3: יחידת טיפול 2
A4: תדירות | C4: מעבדה | I4: מד חמצן מומס | K4: מעבדה | Q4: מד חמצן מומס | S4: כמות מ"מ בריאקטורים | T4: גיל בוצה
A5: תאריך | B5: יום בשבוע | C5: מוצקים מרחפים | D5: מוצקים נדיפים | E5: שיקוע | F5: SVI | G5: יחס נדיף | H5: F / M | I5: נייד | J5: קבוע | K5: מוצקים מרחפים | L5: מוצקים נדיפים | M5: שיקוע | N5: SVI | O5: יחס נדיף | P5: F / M | Q5: נייד | R5: קבוע
C6: מ"ג/ליטר | E6: 30 דק' | F6: מ"ל/גר' | G6: % | I6: מ"ג/ליטר | K6: מ"ג/ליטר | M6: 30 דק' | N6: מ"ל/גר' | O6: % | Q6: מ"ג/ליטר | S6: טון | T6: יום
A7: =IF(Table!A7<>"",Table!A7,"") -> 2024-11-01 | B7: =IF(Table!A7<>"",Table!A7,"") -> 2024-11-01 | C7: =IF(Table!BT7<>"",Table!BT7,"") ->  | D7: =IF(Table!BU7<>"",Table!BU7,"") ->  | E7: =IF(Table!BV7<>"",Table!BV7,"") ->  | F7: =IF(AND(E7<>"",C7<>""),E7*1000/C7, "") ->  | G7: =IF(AND(D7<>"",C7<>""),D7/C7, "") ->  | H7: =IF(AND(ספיקות!E7<>"",'איכות שפכים'!C7<>"",D7<>"",Table!CS7<>""),(ספיקות!E7*'איכות שפכים'!C7/1000)/(D7/1000*Table!CS7), "") ->  | I7: =IF(Table!BR7<>"",Table!BR7,"") ->  | J7: =IF(Table!BS7<>"",Table!BS7,"") ->  | K7: =IF(Table!BY7<>"",Table!BY7,"") ->  | L7: =IF(Table!BZ7<>"",Table!BZ7,"") ->  | M7: =IF(Table!CA7<>"",Table!CA7,"") ->  | N7: =IF(AND(M7<>"",K7<>""),M7*1000/K7, "") ->  | O7: =IF(AND(L7<>"",K7<>""),L7/K7, "") ->  | P7: =IF(AND(ספיקות!E7<>"",'איכות שפכים'!C7<>"",L7<>"",Table!CS7<>""),(ספיקות!E7*'איכות שפכים'!C7/1000)/(L7/1000*Table!CS7), "") ->  | Q7: =IF(Table!BW7<>"",Table!BW7,"") ->  | R7: =IF(Table!BX7<>"",Table!BX7,"") ->  | S7: =IF(K7<>"",(K7*Table!CS7)/1000000,"") -> 
A8: =IF(Table!A8<>"",Table!A8,"") -> 2024-11-02 | B8: =IF(Table!A8<>"",Table!A8,"") -> 2024-11-02 | C8: =IF(Table!BT8<>"",Table!BT8,"") ->  | D8: =IF(Table!BU8<>"",Table!BU8,"") ->  | E8: =IF(Table!BV8<>"",Table!BV8,"") ->  | F8: =IF(AND(E8<>"",C8<>""),E8*1000/C8, "") ->  | G8: =IF(AND(D8<>"",C8<>""),D8/C8, "") ->  | H8: =IF(AND(ספיקות!E8<>"",'איכות שפכים'!C8<>"",D8<>"",Table!CS8<>""),(ספיקות!E8*'איכות שפכים'!C8/1000)/(D8/1000*Table!CS8), "") ->  | I8: =IF(Table!BR8<>"",Table!BR8,"") ->  | J8: =IF(Table!BS8<>"",Table!BS8,"") ->  | K8: =IF(Table!BY8<>"",Table!BY8,"") ->  | L8: =IF(Table!BZ8<>"",Table!BZ8,"") ->  | M8: =IF(Table!CA8<>"",Table!CA8,"") ->  | N8: =IF(AND(M8<>"",K8<>""),M8*1000/K8, "") ->  | O8: =IF(AND(L8<>"",K8<>""),L8/K8, "") ->  | P8: =IF(AND(ספיקות!E8<>"",'איכות שפכים'!C8<>"",L8<>"",Table!CS8<>""),(ספיקות!E8*'איכות שפכים'!C8/1000)/(L8/1000*Table!CS8), "") ->  | Q8: =IF(Table!BW8<>"",Table!BW8,"") ->  | R8: =IF(Table!BX8<>"",Table!BX8,"") ->  | S8: =IF(K8<>"",(K8*Table!CS8)/1000000,"") -> 
A9: =IF(Table!A9<>"",Table!A9,"") -> 2024-11-03 | B9: =IF(Table!A9<>"",Table!A9,"") -> 2024-11-03 | C9: =IF(Table!BT9<>"",Table!BT9,"") ->  | D9: =IF(Table!BU9<>"",Table!BU9,"") ->  | E9: =IF(Table!BV9<>"",Table!BV9,"") ->  | H9: =IF(AND(ספיקות!E9<>"",'איכות שפכים'!C9<>"",D9<>"",Table!CS9<>""),(ספיקות!E9*'איכות שפכים'!C9/1000)/(D9/1000*Table!CS9), "") ->  | I9: =IF(Table!BR9<>"",Table!BR9,"") ->  | J9: =IF(Table!BS9<>"",Table!BS9,"") ->  | K9: =IF(Table!BY9<>"",Table!BY9,"") ->  | L9: =IF(Table!BZ9<>"",Table!BZ9,"") ->  | M9: =IF(Table!CA9<>"",Table!CA9,"") -> 370 | P9: =IF(AND(ספיקות!E9<>"",'איכות שפכים'!C9<>"",L9<>"",Table!CS9<>""),(ספיקות!E9*'איכות שפכים'!C9/1000)/(L9/1000*Table!CS9), "") ->  | Q9: =IF(Table!BW9<>"",Table!BW9,"") -> 1.3 | R9: =IF(Table!BX9<>"",Table!BX9,"") -> 1.3 | S9: =IF(K9<>"",(K9*Table!CS9)/1000000,"") ->  | T9: 0
A10: =IF(Table!A10<>"",Table!A10,"") -> 2024-11-04 | B10: =IF(Table!A10<>"",Table!A10,"") -> 2024-11-04 | C10: =IF(Table!BT10<>"",Table!BT10,"") ->  | D10: =IF(Table!BU10<>"",Table!BU10,"") ->  | E10: =IF(Table!BV10<>"",Table!BV10,"") ->  | H10: =IF(AND(ספיקות!E10<>"",'איכות שפכים'!C10<>"",D10<>"",Table!CS10<>""),(ספיקות!E10*'איכות שפכים'!C10/1000)/(D10/1000*Table!CS10), "") ->  | I10: =IF(Table!BR10<>"",Table!BR10,"") ->  | J10: =IF(Table!BS10<>"",Table!BS10,"") ->  | K10: =IF(Table!BY10<>"",Table!BY10,"") ->  | L10: =IF(Table!BZ10<>"",Table!BZ10,"") ->  | M10: =IF(Table!CA10<>"",Table!CA10,"") -> 380 | P10: =IF(AND(ספיקות!E10<>"",'איכות שפכים'!C10<>"",L10<>"",Table!CS10<>""),(ספיקות!E10*'איכות שפכים'!C10/1000)/(L10/1000*Table!CS10), "") ->  | Q10: =IF(Table!BW10<>"",Table!BW10,"") -> 1 | R10: =IF(Table!BX10<>"",Table!BX10,"") -> 1 | S10: =IF(K10<>"",(K10*Table!CS10)/1000000,"") -> 
A11: =IF(Table!A11<>"",Table!A11,"") -> 2024-11-05 | B11: =IF(Table!A11<>"",Table!A11,"") -> 2024-11-05 | C11: =IF(Table!BT11<>"",Table!BT11,"") ->  | D11: =IF(Table!BU11<>"",Table!BU11,"") ->  | E11: =IF(Table!BV11<>"",Table!BV11,"") ->  | H11: =IF(AND(ספיקות!E11<>"",'איכות שפכים'!C11<>"",D11<>"",Table!CS11<>""),(ספיקות!E11*'איכות שפכים'!C11/1000)/(D11/1000*Table!CS11), "") ->  | I11: =IF(Table!BR11<>"",Table!BR11,"") ->  | J11: =IF(Table!BS11<>"",Table!BS11,"") ->  | K11: =IF(Table!BY11<>"",Table!BY11,"") ->  | L11: =IF(Table!BZ11<>"",Table!BZ11,"") ->  | M11: =IF(Table!CA11<>"",Table!CA11,"") -> 350 | P11: =IF(AND(ספיקות!E11<>"",'איכות שפכים'!C11<>"",L11<>"",Table!CS11<>""),(ספיקות!E11*'איכות שפכים'!C11/1000)/(L11/1000*Table!CS11), "") ->  | Q11: =IF(Table!BW11<>"",Table!BW11,"") -> 1.2 | R11: =IF(Table!BX11<>"",Table!BX11,"") -> 1.3 | S11: =IF(K11<>"",(K11*Table!CS11)/1000000,"") -> 
A12: =IF(Table!A12<>"",Table!A12,"") -> 2024-11-06 | B12: =IF(Table!A12<>"",Table!A12,"") -> 2024-11-06 | C12: =IF(Table!BT12<>"",Table!BT12,"") ->  | D12: =IF(Table!BU12<>"",Table!BU12,"") ->  | E12: =IF(Table!BV12<>"",Table!BV12,"") ->  | H12: =IF(AND(ספיקות!E12<>"",'איכות שפכים'!C12<>"",D12<>"",Table!CS12<>""),(ספיקות!E12*'איכות שפכים'!C12/1000)/(D12/1000*Table!CS12), "") ->  | I12: =IF(Table!BR12<>"",Table!BR12,"") ->  | J12: =IF(Table!BS12<>"",Table!BS12,"") ->  | K12: =IF(Table!BY12<>"",Table!BY12,"") ->  | L12: =IF(Table!BZ12<>"",Table!BZ12,"") ->  | M12: =IF(Table!CA12<>"",Table!CA12,"") -> 360 | P12: =IF(AND(ספיקות!E12<>"",'איכות שפכים'!C12<>"",L12<>"",Table!CS12<>""),(ספיקות!E12*'איכות שפכים'!C12/1000)/(L12/1000*Table!CS12), "") ->  | Q12: =IF(Table!BW12<>"",Table!BW12,"") -> 1.4 | R12: =IF(Table!BX12<>"",Table!BX12,"") -> 1.4 | S12: =IF(K12<>"",(K12*Table!CS12)/1000000,"") -> 
A13: =IF(Table!A13<>"",Table!A13,"") -> 2024-11-07 | B13: =IF(Table!A13<>"",Table!A13,"") -> 2024-11-07 | C13: =IF(Table!BT13<>"",Table!BT13,"") ->  | D13: =IF(Table!BU13<>"",Table!BU13,"") ->  | E13: =IF(Table!BV13<>"",Table!BV13,"") ->  | H13: =IF(AND(ספיקות!E13<>"",'איכות שפכים'!C13<>"",D13<>"",Table!CS13<>""),(ספיקות!E13*'איכות שפכים'!C13/1000)/(D13/1000*Table!CS13), "") ->  | I13: =IF(Table!BR13<>"",Table!BR13,"") ->  | J13: =IF(Table!BS13<>"",Table!BS13,"") ->  | K13: =IF(Table!BY13<>"",Table!BY13,"") ->  | L13: =IF(Table!BZ13<>"",Table!BZ13,"") ->  | M13: =IF(Table!CA13<>"",Table!CA13,"") -> 370 | P13: =IF(AND(ספיקות!E13<>"",'איכות שפכים'!C13<>"",L13<>"",Table!CS13<>""),(ספיקות!E13*'איכות שפכים'!C13/1000)/(L13/1000*Table!CS13), "") ->  | Q13: =IF(Table!BW13<>"",Table!BW13,"") -> 1.3 | R13: =IF(Table!BX13<>"",Table!BX13,"") -> 1.3 | S13: =IF(K13<>"",(K13*Table!CS13)/1000000,"") -> 
A14: =IF(Table!A14<>"",Table!A14,"") -> 2024-11-08 | B14: =IF(Table!A14<>"",Table!A14,"") -> 2024-11-08 | C14: =IF(Table!BT14<>"",Table!BT14,"") ->  | D14: =IF(Table!BU14<>"",Table!BU14,"") ->  | E14: =IF(Table!BV14<>"",Table!BV14,"") ->  | H14: =IF(AND(ספיקות!E14<>"",'איכות שפכים'!C14<>"",D14<>"",Table!CS14<>""),(ספיקות!E14*'איכות שפכים'!C14/1000)/(D14/1000*Table!CS14), "") ->  | I14: =IF(Table!BR14<>"",Table!BR14,"") ->  | J14: =IF(Table!BS14<>"",Table!BS14,"") ->  | K14: =IF(Table!BY14<>"",Table!BY14,"") ->  | L14: =IF(Table!BZ14<>"",Table!BZ14,"") ->  | M14: =IF(Table!CA14<>"",Table!CA14,"") ->  | P14: =IF(AND(ספיקות!E14<>"",'איכות שפכים'!C14<>"",L14<>"",Table!CS14<>""),(ספיקות!E14*'איכות שפכים'!C14/1000)/(L14/1000*Table!CS14), "") ->  | Q14: =IF(Table!BW14<>"",Table!BW14,"") ->  | R14: =IF(Table!BX14<>"",Table!BX14,"") ->  | S14: =IF(K14<>"",(K14*Table!CS14)/1000000,"") -> 
A15: =IF(Table!A15<>"",Table!A15,"") -> 2024-11-09 | B15: =IF(Table!A15<>"",Table!A15,"") -> 2024-11-09 | C15: =IF(Table!BT15<>"",Table!BT15,"") ->  | D15: =IF(Table!BU15<>"",Table!BU15,"") ->  | E15: =IF(Table!BV15<>"",Table!BV15,"") ->  | H15: =IF(AND(ספיקות!E15<>"",'איכות שפכים'!C15<>"",D15<>"",Table!CS15<>""),(ספיקות!E15*'איכות שפכים'!C15/1000)/(D15/1000*Table!CS15), "") ->  | I15: =IF(Table!BR15<>"",Table!BR15,"") ->  | J15: =IF(Table!BS15<>"",Table!BS15,"") ->  | K15: =IF(Table!BY15<>"",Table!BY15,"") ->  | L15: =IF(Table!BZ15<>"",Table!BZ15,"") ->  | M15: =IF(Table!CA15<>"",Table!CA15,"") ->  | P15: =IF(AND(ספיקות!E15<>"",'איכות שפכים'!C15<>"",L15<>"",Table!CS15<>""),(ספיקות!E15*'איכות שפכים'!C15/1000)/(L15/1000*Table!CS15), "") ->  | Q15: =IF(Table!BW15<>"",Table!BW15,"") ->  | R15: =IF(Table!BX15<>"",Table!BX15,"") ->  | S15: =IF(K15<>"",(K15*Table!CS15)/1000000,"") -> 
A16: =IF(Table!A16<>"",Table!A16,"") -> 2024-11-10 | B16: =IF(Table!A16<>"",Table!A16,"") -> 2024-11-10 | C16: =IF(Table!BT16<>"",Table!BT16,"") ->  | D16: =IF(Table!BU16<>"",Table!BU16,"") ->  | E16: =IF(Table!BV16<>"",Table!BV16,"") ->  | H16: =IF(AND(ספיקות!E16<>"",'איכות שפכים'!C16<>"",D16<>"",Table!CS16<>""),(ספיקות!E16*'איכות שפכים'!C16/1000)/(D16/1000*Table!CS16), "") ->  | I16: =IF(Table!BR16<>"",Table!BR16,"") ->  | J16: =IF(Table!BS16<>"",Table!BS16,"") ->  | K16: =IF(Table!BY16<>"",Table!BY16,"") ->  | L16: =IF(Table!BZ16<>"",Table!BZ16,"") ->  | M16: =IF(Table!CA16<>"",Table!CA16,"") -> 340 | P16: =IF(AND(ספיקות!E16<>"",'איכות שפכים'!C16<>"",L16<>"",Table!CS16<>""),(ספיקות!E16*'איכות שפכים'!C16/1000)/(L16/1000*Table!CS16), "") ->  | Q16: =IF(Table!BW16<>"",Table!BW16,"") -> 0.8 | R16: =IF(Table!BX16<>"",Table!BX16,"") -> 0.9 | S16: =IF(K16<>"",(K16*Table!CS16)/1000000,"") -> 
A17: =IF(Table!A17<>"",Table!A17,"") -> 2024-11-11 | B17: =IF(Table!A17<>"",Table!A17,"") -> 2024-11-11 | C17: =IF(Table!BT17<>"",Table!BT17,"") ->  | D17: =IF(Table!BU17<>"",Table!BU17,"") ->  | E17: =IF(Table!BV17<>"",Table!BV17,"") ->  | H17: =IF(AND(ספיקות!E17<>"",'איכות שפכים'!C17<>"",D17<>"",Table!CS17<>""),(ספיקות!E17*'איכות שפכים'!C17/1000)/(D17/1000*Table!CS17), "") ->  | I17: =IF(Table!BR17<>"",Table!BR17,"") ->  | J17: =IF(Table!BS17<>"",Table!BS17,"") ->  | K17: =IF(Table!BY17<>"",Table!BY17,"") ->  | L17: =IF(Table!BZ17<>"",Table!BZ17,"") ->  | M17: =IF(Table!CA17<>"",Table!CA17,"") -> 370 | P17: =IF(AND(ספיקות!E17<>"",'איכות שפכים'!C17<>"",L17<>"",Table!CS17<>""),(ספיקות!E17*'איכות שפכים'!C17/1000)/(L17/1000*Table!CS17), "") ->  | Q17: =IF(Table!BW17<>"",Table!BW17,"") -> 1.1 | R17: =IF(Table!BX17<>"",Table!BX17,"") -> 1 | S17: =IF(K17<>"",(K17*Table!CS17)/1000000,"") -> 
A18: =IF(Table!A18<>"",Table!A18,"") -> 2024-11-12 | B18: =IF(Table!A18<>"",Table!A18,"") -> 2024-11-12 | C18: =IF(Table!BT18<>"",Table!BT18,"") ->  | D18: =IF(Table!BU18<>"",Table!BU18,"") ->  | E18: =IF(Table!BV18<>"",Table!BV18,"") ->  | H18: =IF(AND(ספיקות!E18<>"",'איכות שפכים'!C18<>"",D18<>"",Table!CS18<>""),(ספיקות!E18*'איכות שפכים'!C18/1000)/(D18/1000*Table!CS18), "") ->  | I18: =IF(Table!BR18<>"",Table!BR18,"") ->  | J18: =IF(Table!BS18<>"",Table!BS18,"") ->  | K18: =IF(Table!BY18<>"",Table!BY18,"") ->  | L18: =IF(Table!BZ18<>"",Table!BZ18,"") ->  | M18: =IF(Table!CA18<>"",Table!CA18,"") -> 360 | P18: =IF(AND(ספיקות!E18<>"",'איכות שפכים'!C18<>"",L18<>"",Table!CS18<>""),(ספיקות!E18*'איכות שפכים'!C18/1000)/(L18/1000*Table!CS18), "") ->  | Q18: =IF(Table!BW18<>"",Table!BW18,"") -> 1.1 | R18: =IF(Table!BX18<>"",Table!BX18,"") -> 1.1 | S18: =IF(K18<>"",(K18*Table!CS18)/1000000,"") -> 
A19: =IF(Table!A19<>"",Table!A19,"") -> 2024-11-13 | B19: =IF(Table!A19<>"",Table!A19,"") -> 2024-11-13 | C19: =IF(Table!BT19<>"",Table!BT19,"") ->  | D19: =IF(Table!BU19<>"",Table!BU19,"") ->  | E19: =IF(Table!BV19<>"",Table!BV19,"") ->  | H19: =IF(AND(ספיקות!E19<>"",'איכות שפכים'!C19<>"",D19<>"",Table!CS19<>""),(ספיקות!E19*'איכות שפכים'!C19/1000)/(D19/1000*Table!CS19), "") ->  | I19: =IF(Table!BR19<>"",Table!BR19,"") ->  | J19: =IF(Table!BS19<>"",Table!BS19,"") ->  | K19: =IF(Table!BY19<>"",Table!BY19,"") ->  | L19: =IF(Table!BZ19<>"",Table!BZ19,"") ->  | M19: =IF(Table!CA19<>"",Table!CA19,"") -> 350 | P19: =IF(AND(ספיקות!E19<>"",'איכות שפכים'!C19<>"",L19<>"",Table!CS19<>""),(ספיקות!E19*'איכות שפכים'!C19/1000)/(L19/1000*Table!CS19), "") ->  | Q19: =IF(Table!BW19<>"",Table!BW19,"") -> 0.7 | R19: =IF(Table!BX19<>"",Table!BX19,"") -> 0.7 | S19: =IF(K19<>"",(K19*Table!CS19)/1000000,"") -> 
A20: =IF(Table!A20<>"",Table!A20,"") -> 2024-11-14 | B20: =IF(Table!A20<>"",Table!A20,"") -> 2024-11-14 | C20: =IF(Table!BT20<>"",Table!BT20,"") ->  | D20: =IF(Table!BU20<>"",Table!BU20,"") ->  | E20: =IF(Table!BV20<>"",Table!BV20,"") ->  | H20: =IF(AND(ספיקות!E20<>"",'איכות שפכים'!C20<>"",D20<>"",Table!CS20<>""),(ספיקות!E20*'איכות שפכים'!C20/1000)/(D20/1000*Table!CS20), "") ->  | I20: =IF(Table!BR20<>"",Table!BR20,"") ->  | J20: =IF(Table!BS20<>"",Table!BS20,"") ->  | K20: =IF(Table!BY20<>"",Table!BY20,"") ->  | L20: =IF(Table!BZ20<>"",Table!BZ20,"") ->  | M20: =IF(Table!CA20<>"",Table!CA20,"") -> 360 | P20: =IF(AND(ספיקות!E20<>"",'איכות שפכים'!C20<>"",L20<>"",Table!CS20<>""),(ספיקות!E20*'איכות שפכים'!C20/1000)/(L20/1000*Table!CS20), "") ->  | Q20: =IF(Table!BW20<>"",Table!BW20,"") -> 0.7 | R20: =IF(Table!BX20<>"",Table!BX20,"") -> 0.7 | S20: =IF(K20<>"",(K20*Table!CS20)/1000000,"") -> 
A21: =IF(Table!A21<>"",Table!A21,"") -> 2024-11-15 | B21: =IF(Table!A21<>"",Table!A21,"") -> 2024-11-15 | C21: =IF(Table!BT21<>"",Table!BT21,"") ->  | D21: =IF(Table!BU21<>"",Table!BU21,"") ->  | E21: =IF(Table!BV21<>"",Table!BV21,"") ->  | H21: =IF(AND(ספיקות!E21<>"",'איכות שפכים'!C21<>"",D21<>"",Table!CS21<>""),(ספיקות!E21*'איכות שפכים'!C21/1000)/(D21/1000*Table!CS21), "") ->  | I21: =IF(Table!BR21<>"",Table!BR21,"") ->  | J21: =IF(Table!BS21<>"",Table!BS21,"") ->  | K21: =IF(Table!BY21<>"",Table!BY21,"") ->  | L21: =IF(Table!BZ21<>"",Table!BZ21,"") ->  | M21: =IF(Table!CA21<>"",Table!CA21,"") ->  | P21: =IF(AND(ספיקות!E21<>"",'איכות שפכים'!C21<>"",L21<>"",Table!CS21<>""),(ספיקות!E21*'איכות שפכים'!C21/1000)/(L21/1000*Table!CS21), "") ->  | Q21: =IF(Table!BW21<>"",Table!BW21,"") ->  | R21: =IF(Table!BX21<>"",Table!BX21,"") ->  | S21: =IF(K21<>"",(K21*Table!CS21)/1000000,"") -> 
A22: =IF(Table!A22<>"",Table!A22,"") -> 2024-11-16 | B22: =IF(Table!A22<>"",Table!A22,"") -> 2024-11-16 | C22: =IF(Table!BT22<>"",Table!BT22,"") ->  | D22: =IF(Table!BU22<>"",Table!BU22,"") ->  | E22: =IF(Table!BV22<>"",Table!BV22,"") ->  | H22: =IF(AND(ספיקות!E22<>"",'איכות שפכים'!C22<>"",D22<>"",Table!CS22<>""),(ספיקות!E22*'איכות שפכים'!C22/1000)/(D22/1000*Table!CS22), "") ->  | I22: =IF(Table!BR22<>"",Table!BR22,"") ->  | J22: =IF(Table!BS22<>"",Table!BS22,"") ->  | K22: =IF(Table!BY22<>"",Table!BY22,"") ->  | L22: =IF(Table!BZ22<>"",Table!BZ22,"") ->  | M22: =IF(Table!CA22<>"",Table!CA22,"") ->  | P22: =IF(AND(ספיקות!E22<>"",'איכות שפכים'!C22<>"",L22<>"",Table!CS22<>""),(ספיקות!E22*'איכות שפכים'!C22/1000)/(L22/1000*Table!CS22), "") ->  | Q22: =IF(Table!BW22<>"",Table!BW22,"") ->  | R22: =IF(Table!BX22<>"",Table!BX22,"") ->  | S22: =IF(K22<>"",(K22*Table!CS22)/1000000,"") -> 
A23: =IF(Table!A23<>"",Table!A23,"") -> 2024-11-17 | B23: =IF(Table!A23<>"",Table!A23,"") -> 2024-11-17 | C23: =IF(Table!BT23<>"",Table!BT23,"") ->  | D23: =IF(Table!BU23<>"",Table!BU23,"") ->  | E23: =IF(Table!BV23<>"",Table!BV23,"") ->  | H23: =IF(AND(ספיקות!E23<>"",'איכות שפכים'!C23<>"",D23<>"",Table!CS23<>""),(ספיקות!E23*'איכות שפכים'!C23/1000)/(D23/1000*Table!CS23), "") ->  | I23: =IF(Table!BR23<>"",Table!BR23,"") ->  | J23: =IF(Table!BS23<>"",Table!BS23,"") ->  | K23: =IF(Table!BY23<>"",Table!BY23,"") ->  | L23: =IF(Table!BZ23<>"",Table!BZ23,"") ->  | M23: =IF(Table!CA23<>"",Table!CA23,"") -> 370 | P23: =IF(AND(ספיקות!E23<>"",'איכות שפכים'!C23<>"",L23<>"",Table!CS23<>""),(ספיקות!E23*'איכות שפכים'!C23/1000)/(L23/1000*Table!CS23), "") ->  | Q23: =IF(Table!BW23<>"",Table!BW23,"") -> 0.6 | R23: =IF(Table!BX23<>"",Table!BX23,"") -> 0.6 | S23: =IF(K23<>"",(K23*Table!CS23)/1000000,"") -> 
A24: =IF(Table!A24<>"",Table!A24,"") -> 2024-11-18 | B24: =IF(Table!A24<>"",Table!A24,"") -> 2024-11-18 | C24: =IF(Table!BT24<>"",Table!BT24,"") ->  | D24: =IF(Table!BU24<>"",Table!BU24,"") ->  | E24: =IF(Table!BV24<>"",Table!BV24,"") ->  | H24: =IF(AND(ספיקות!E24<>"",'איכות שפכים'!C24<>"",D24<>"",Table!CS24<>""),(ספיקות!E24*'איכות שפכים'!C24/1000)/(D24/1000*Table!CS24), "") ->  | I24: =IF(Table!BR24<>"",Table!BR24,"") ->  | J24: =IF(Table!BS24<>"",Table!BS24,"") ->  | K24: =IF(Table!BY24<>"",Table!BY24,"") ->  | L24: =IF(Table!BZ24<>"",Table!BZ24,"") ->  | M24: =IF(Table!CA24<>"",Table!CA24,"") -> 360 | P24: =IF(AND(ספיקות!E24<>"",'איכות שפכים'!C24<>"",L24<>"",Table!CS24<>""),(ספיקות!E24*'איכות שפכים'!C24/1000)/(L24/1000*Table!CS24), "") ->  | Q24: =IF(Table!BW24<>"",Table!BW24,"") -> 0.4 | R24: =IF(Table!BX24<>"",Table!BX24,"") -> 0.4 | S24: =IF(K24<>"",(K24*Table!CS24)/1000000,"") -> 
A25: =IF(Table!A25<>"",Table!A25,"") -> 2024-11-19 | B25: =IF(Table!A25<>"",Table!A25,"") -> 2024-11-19 | C25: =IF(Table!BT25<>"",Table!BT25,"") ->  | D25: =IF(Table!BU25<>"",Table!BU25,"") ->  | E25: =IF(Table!BV25<>"",Table!BV25,"") ->  | H25: =IF(AND(ספיקות!E25<>"",'איכות שפכים'!C25<>"",D25<>"",Table!CS25<>""),(ספיקות!E25*'איכות שפכים'!C25/1000)/(D25/1000*Table!CS25), "") ->  | I25: =IF(Table!BR25<>"",Table!BR25,"") ->  | J25: =IF(Table!BS25<>"",Table!BS25,"") ->  | K25: =IF(Table!BY25<>"",Table!BY25,"") ->  | L25: =IF(Table!BZ25<>"",Table!BZ25,"") ->  | M25: =IF(Table!CA25<>"",Table!CA25,"") -> 380 | P25: =IF(AND(ספיקות!E25<>"",'איכות שפכים'!C25<>"",L25<>"",Table!CS25<>""),(ספיקות!E25*'איכות שפכים'!C25/1000)/(L25/1000*Table!CS25), "") ->  | Q25: =IF(Table!BW25<>"",Table!BW25,"") -> 0.7 | R25: =IF(Table!BX25<>"",Table!BX25,"") -> 0.6 | S25: =IF(K25<>"",(K25*Table!CS25)/1000000,"") -> 
A26: =IF(Table!A26<>"",Table!A26,"") -> 2024-11-20 | B26: =IF(Table!A26<>"",Table!A26,"") -> 2024-11-20 | C26: =IF(Table!BT26<>"",Table!BT26,"") ->  | D26: =IF(Table!BU26<>"",Table!BU26,"") ->  | E26: =IF(Table!BV26<>"",Table!BV26,"") ->  | H26: =IF(AND(ספיקות!E26<>"",'איכות שפכים'!C26<>"",D26<>"",Table!CS26<>""),(ספיקות!E26*'איכות שפכים'!C26/1000)/(D26/1000*Table!CS26), "") ->  | I26: =IF(Table!BR26<>"",Table!BR26,"") ->  | J26: =IF(Table!BS26<>"",Table!BS26,"") ->  | K26: =IF(Table!BY26<>"",Table!BY26,"") ->  | L26: =IF(Table!BZ26<>"",Table!BZ26,"") ->  | M26: =IF(Table!CA26<>"",Table!CA26,"") -> 390 | P26: =IF(AND(ספיקות!E26<>"",'איכות שפכים'!C26<>"",L26<>"",Table!CS26<>""),(ספיקות!E26*'איכות שפכים'!C26/1000)/(L26/1000*Table!CS26), "") ->  | Q26: =IF(Table!BW26<>"",Table!BW26,"") -> 0.6 | R26: =IF(Table!BX26<>"",Table!BX26,"") -> 0.6 | S26: =IF(K26<>"",(K26*Table!CS26)/1000000,"") -> 
A27: =IF(Table!A27<>"",Table!A27,"") -> 2024-11-21 | B27: =IF(Table!A27<>"",Table!A27,"") -> 2024-11-21 | C27: =IF(Table!BT27<>"",Table!BT27,"") ->  | D27: =IF(Table!BU27<>"",Table!BU27,"") ->  | E27: =IF(Table!BV27<>"",Table!BV27,"") ->  | H27: =IF(AND(ספיקות!E27<>"",'איכות שפכים'!C27<>"",D27<>"",Table!CS27<>""),(ספיקות!E27*'איכות שפכים'!C27/1000)/(D27/1000*Table!CS27), "") ->  | I27: =IF(Table!BR27<>"",Table!BR27,"") ->  | J27: =IF(Table!BS27<>"",Table!BS27,"") ->  | K27: =IF(Table!BY27<>"",Table!BY27,"") ->  | L27: =IF(Table!BZ27<>"",Table!BZ27,"") ->  | M27: =IF(Table!CA27<>"",Table!CA27,"") -> 400 | P27: =IF(AND(ספיקות!E27<>"",'איכות שפכים'!C27<>"",L27<>"",Table!CS27<>""),(ספיקות!E27*'איכות שפכים'!C27/1000)/(L27/1000*Table!CS27), "") ->  | Q27: =IF(Table!BW27<>"",Table!BW27,"") -> 0.5 | R27: =IF(Table!BX27<>"",Table!BX27,"") -> 0.5 | S27: =IF(K27<>"",(K27*Table!CS27)/1000000,"") -> 
A28: =IF(Table!A28<>"",Table!A28,"") -> 2024-11-22 | B28: =IF(Table!A28<>"",Table!A28,"") -> 2024-11-22 | C28: =IF(Table!BT28<>"",Table!BT28,"") ->  | D28: =IF(Table!BU28<>"",Table!BU28,"") ->  | E28: =IF(Table!BV28<>"",Table!BV28,"") ->  | H28: =IF(AND(ספיקות!E28<>"",'איכות שפכים'!C28<>"",D28<>"",Table!CS28<>""),(ספיקות!E28*'איכות שפכים'!C28/1000)/(D28/1000*Table!CS28), "") ->  | I28: =IF(Table!BR28<>"",Table!BR28,"") ->  | J28: =IF(Table!BS28<>"",Table!BS28,"") ->  | K28: =IF(Table!BY28<>"",Table!BY28,"") ->  | L28: =IF(Table!BZ28<>"",Table!BZ28,"") ->  | M28: =IF(Table!CA28<>"",Table!CA28,"") ->  | P28: =IF(AND(ספיקות!E28<>"",'איכות שפכים'!C28<>"",L28<>"",Table!CS28<>""),(ספיקות!E28*'איכות שפכים'!C28/1000)/(L28/1000*Table!CS28), "") ->  | Q28: =IF(Table!BW28<>"",Table!BW28,"") ->  | R28: =IF(Table!BX28<>"",Table!BX28,"") ->  | S28: =IF(K28<>"",(K28*Table!CS28)/1000000,"") -> 
A29: =IF(Table!A29<>"",Table!A29,"") -> 2024-11-23 | B29: =IF(Table!A29<>"",Table!A29,"") -> 2024-11-23 | C29: =IF(Table!BT29<>"",Table!BT29,"") ->  | D29: =IF(Table!BU29<>"",Table!BU29,"") ->  | E29: =IF(Table!BV29<>"",Table!BV29,"") ->  | H29: =IF(AND(ספיקות!E29<>"",'איכות שפכים'!C29<>"",D29<>"",Table!CS29<>""),(ספיקות!E29*'איכות שפכים'!C29/1000)/(D29/1000*Table!CS29), "") ->  | I29: =IF(Table!BR29<>"",Table!BR29,"") ->  | J29: =IF(Table!BS29<>"",Table!BS29,"") ->  | K29: =IF(Table!BY29<>"",Table!BY29,"") ->  | L29: =IF(Table!BZ29<>"",Table!BZ29,"") ->  | M29: =IF(Table!CA29<>"",Table!CA29,"") ->  | P29: =IF(AND(ספיקות!E29<>"",'איכות שפכים'!C29<>"",L29<>"",Table!CS29<>""),(ספיקות!E29*'איכות שפכים'!C29/1000)/(L29/1000*Table!CS29), "") ->  | Q29: =IF(Table!BW29<>"",Table!BW29,"") ->  | R29: =IF(Table!BX29<>"",Table!BX29,"") ->  | S29: =IF(K29<>"",(K29*Table!CS29)/1000000,"") -> 
A30: =IF(Table!A30<>"",Table!A30,"") -> 2024-11-24 | B30: =IF(Table!A30<>"",Table!A30,"") -> 2024-11-24 | C30: =IF(Table!BT30<>"",Table!BT30,"") ->  | D30: =IF(Table!BU30<>"",Table!BU30,"") ->  | E30: =IF(Table!BV30<>"",Table!BV30,"") ->  | H30: =IF(AND(ספיקות!E30<>"",'איכות שפכים'!C30<>"",D30<>"",Table!CS30<>""),(ספיקות!E30*'איכות שפכים'!C30/1000)/(D30/1000*Table!CS30), "") ->  | I30: =IF(Table!BR30<>"",Table!BR30,"") ->  | J30: =IF(Table!BS30<>"",Table!BS30,"") ->  | K30: =IF(Table!BY30<>"",Table!BY30,"") ->  | L30: =IF(Table!BZ30<>"",Table!BZ30,"") ->  | M30: =IF(Table!CA30<>"",Table!CA30,"") -> 390 | P30: =IF(AND(ספיקות!E30<>"",'איכות שפכים'!C30<>"",L30<>"",Table!CS30<>""),(ספיקות!E30*'איכות שפכים'!C30/1000)/(L30/1000*Table!CS30), "") ->  | Q30: =IF(Table!BW30<>"",Table!BW30,"") -> 1 | R30: =IF(Table!BX30<>"",Table!BX30,"") -> 0.9 | S30: =IF(K30<>"",(K30*Table!CS30)/1000000,"") -> 
A31: =IF(Table!A31<>"",Table!A31,"") -> 2024-11-25 | B31: =IF(Table!A31<>"",Table!A31,"") -> 2024-11-25 | C31: =IF(Table!BT31<>"",Table!BT31,"") ->  | D31: =IF(Table!BU31<>"",Table!BU31,"") ->  | E31: =IF(Table!BV31<>"",Table!BV31,"") ->  | H31: =IF(AND(ספיקות!E31<>"",'איכות שפכים'!C31<>"",D31<>"",Table!CS31<>""),(ספיקות!E31*'איכות שפכים'!C31/1000)/(D31/1000*Table!CS31), "") ->  | I31: =IF(Table!BR31<>"",Table!BR31,"") ->  | J31: =IF(Table!BS31<>"",Table!BS31,"") ->  | K31: =IF(Table!BY31<>"",Table!BY31,"") ->  | L31: =IF(Table!BZ31<>"",Table!BZ31,"") ->  | M31: =IF(Table!CA31<>"",Table!CA31,"") -> 400 | P31: =IF(AND(ספיקות!E31<>"",'איכות שפכים'!C31<>"",L31<>"",Table!CS31<>""),(ספיקות!E31*'איכות שפכים'!C31/1000)/(L31/1000*Table!CS31), "") ->  | Q31: =IF(Table!BW31<>"",Table!BW31,"") -> 0.9 | R31: =IF(Table!BX31<>"",Table!BX31,"") -> 0.9 | S31: =IF(K31<>"",(K31*Table!CS31)/1000000,"") -> 
A32: =IF(Table!A32<>"",Table!A32,"") -> 2024-11-26 | B32: =IF(Table!A32<>"",Table!A32,"") -> 2024-11-26 | C32: =IF(Table!BT32<>"",Table!BT32,"") ->  | D32: =IF(Table!BU32<>"",Table!BU32,"") ->  | E32: =IF(Table!BV32<>"",Table!BV32,"") ->  | H32: =IF(AND(ספיקות!E32<>"",'איכות שפכים'!C32<>"",D32<>"",Table!CS32<>""),(ספיקות!E32*'איכות שפכים'!C32/1000)/(D32/1000*Table!CS32), "") ->  | I32: =IF(Table!BR32<>"",Table!BR32,"") ->  | J32: =IF(Table!BS32<>"",Table!BS32,"") ->  | K32: =IF(Table!BY32<>"",Table!BY32,"") ->  | L32: =IF(Table!BZ32<>"",Table!BZ32,"") ->  | M32: =IF(Table!CA32<>"",Table!CA32,"") -> 390 | P32: =IF(AND(ספיקות!E32<>"",'איכות שפכים'!C32<>"",L32<>"",Table!CS32<>""),(ספיקות!E32*'איכות שפכים'!C32/1000)/(L32/1000*Table!CS32), "") ->  | Q32: =IF(Table!BW32<>"",Table!BW32,"") -> 0.8 | R32: =IF(Table!BX32<>"",Table!BX32,"") -> 0.8 | S32: =IF(K32<>"",(K32*Table!CS32)/1000000,"") -> 
A33: =IF(Table!A33<>"",Table!A33,"") -> 2024-11-27 | B33: =IF(Table!A33<>"",Table!A33,"") -> 2024-11-27 | C33: =IF(Table!BT33<>"",Table!BT33,"") ->  | D33: =IF(Table!BU33<>"",Table!BU33,"") ->  | E33: =IF(Table!BV33<>"",Table!BV33,"") ->  | H33: =IF(AND(ספיקות!E33<>"",'איכות שפכים'!C33<>"",D33<>"",Table!CS33<>""),(ספיקות!E33*'איכות שפכים'!C33/1000)/(D33/1000*Table!CS33), "") ->  | I33: =IF(Table!BR33<>"",Table!BR33,"") ->  | J33: =IF(Table!BS33<>"",Table!BS33,"") ->  | K33: =IF(Table!BY33<>"",Table!BY33,"") ->  | L33: =IF(Table!BZ33<>"",Table!BZ33,"") ->  | M33: =IF(Table!CA33<>"",Table!CA33,"") -> 410 | P33: =IF(AND(ספיקות!E33<>"",'איכות שפכים'!C33<>"",L33<>"",Table!CS33<>""),(ספיקות!E33*'איכות שפכים'!C33/1000)/(L33/1000*Table!CS33), "") ->  | Q33: =IF(Table!BW33<>"",Table!BW33,"") -> 0.7 | R33: =IF(Table!BX33<>"",Table!BX33,"") -> 0.6 | S33: =IF(K33<>"",(K33*Table!CS33)/1000000,"") -> 
A34: =IF(Table!A34<>"",Table!A34,"") -> 2024-11-28 | B34: =IF(Table!A34<>"",Table!A34,"") -> 2024-11-28 | C34: =IF(Table!BT34<>"",Table!BT34,"") ->  | D34: =IF(Table!BU34<>"",Table!BU34,"") ->  | E34: =IF(Table!BV34<>"",Table!BV34,"") ->  | H34: =IF(AND(ספיקות!E34<>"",'איכות שפכים'!C34<>"",D34<>"",Table!CS34<>""),(ספיקות!E34*'איכות שפכים'!C34/1000)/(D34/1000*Table!CS34), "") ->  | I34: =IF(Table!BR34<>"",Table!BR34,"") ->  | J34: =IF(Table!BS34<>"",Table!BS34,"") ->  | K34: =IF(Table!BY34<>"",Table!BY34,"") ->  | L34: =IF(Table!BZ34<>"",Table!BZ34,"") ->  | M34: =IF(Table!CA34<>"",Table!CA34,"") -> 390 | P34: =IF(AND(ספיקות!E34<>"",'איכות שפכים'!C34<>"",L34<>"",Table!CS34<>""),(ספיקות!E34*'איכות שפכים'!C34/1000)/(L34/1000*Table!CS34), "") ->  | Q34: =IF(Table!BW34<>"",Table!BW34,"") -> 1 | R34: =IF(Table!BX34<>"",Table!BX34,"") -> 0.9 | S34: =IF(K34<>"",(K34*Table!CS34)/1000000,"") -> 
A35: =IF(Table!A35<>"",Table!A35,"") -> 2024-11-29 | B35: =IF(Table!A35<>"",Table!A35,"") -> 2024-11-29 | C35: =IF(Table!BT35<>"",Table!BT35,"") ->  | D35: =IF(Table!BU35<>"",Table!BU35,"") ->  | E35: =IF(Table!BV35<>"",Table!BV35,"") ->  | H35: =IF(AND(ספיקות!E35<>"",'איכות שפכים'!C35<>"",D35<>"",Table!CS35<>""),(ספיקות!E35*'איכות שפכים'!C35/1000)/(D35/1000*Table!CS35), "") ->  | I35: =IF(Table!BR35<>"",Table!BR35,"") ->  | J35: =IF(Table!BS35<>"",Table!BS35,"") ->  | K35: =IF(Table!BY35<>"",Table!BY35,"") ->  | L35: =IF(Table!BZ35<>"",Table!BZ35,"") ->  | M35: =IF(Table!CA35<>"",Table!CA35,"") ->  | P35: =IF(AND(ספיקות!E35<>"",'איכות שפכים'!C35<>"",L35<>"",Table!CS35<>""),(ספיקות!E35*'איכות שפכים'!C35/1000)/(L35/1000*Table!CS35), "") ->  | Q35: =IF(Table!BW35<>"",Table!BW35,"") ->  | R35: =IF(Table!BX35<>"",Table!BX35,"") ->  | S35: =IF(K35<>"",(K35*Table!CS35)/1000000,"") -> 
A36: =IF(Table!A36<>"",Table!A36,"") -> 2024-11-30 | B36: =IF(Table!A36<>"",Table!A36,"") -> 2024-11-30 | C36: =IF(Table!BR36<>"",Table!BR36,"") ->  | D36: =IF(Table!BS36<>"",Table!BS36,"") ->  | E36: =IF(Table!BT36<>"",Table!BT36,"") ->  | H36: =IF(AND(ספיקות!E36<>"",'איכות שפכים'!C36<>"",D36<>"",Table!CQ36<>""),(ספיקות!E36*'איכות שפכים'!C36/1000)/(D36/1000*Table!CQ36), "") ->  | I36: =IF(Table!BP36<>"",Table!BP36,"") ->  | J36: =IF(Table!BQ36<>"",Table!BQ36,"") ->  | K36: =IF(Table!BY36<>"",Table!BY36,"") ->  | L36: =IF(Table!BZ36<>"",Table!BZ36,"") ->  | M36: =IF(Table!CA36<>"",Table!CA36,"") ->  | N36: =IF(AND(M36<>"",K36<>""),M36*1000/K36, "") ->  | O36: =IF(AND(L36<>"",K36<>""),L36/K36, "") ->  | P36: =IF(AND(ספיקות!E36<>"",'איכות שפכים'!C36<>"",L36<>"",Table!CS36<>""),(ספיקות!E36*'איכות שפכים'!C36/1000)/(L36/1000*Table!CS36), "") ->  | Q36: =IF(Table!BW36<>"",Table!BW36,"") ->  | R36: =IF(Table!BX36<>"",Table!BX36,"") ->  | S36: =IF(K36<>"",(K36*Table!CS36)/1000000,"") -> 
A37: =IF(Table!A37<>"",Table!A37,"") -> 2024-12-01 | B37: =IF(Table!A37<>"",Table!A37,"") -> 2024-12-01 | C37: =IF(Table!BR37<>"",Table!BR37,"") ->  | D37: =IF(Table!BS37<>"",Table!BS37,"") ->  | E37: =IF(Table!BT37<>"",Table!BT37,"") ->  | H37: =IF(AND(ספיקות!E37<>"",'איכות שפכים'!C37<>"",D37<>"",Table!CQ37<>""),(ספיקות!E37*'איכות שפכים'!C37/1000)/(D37/1000*Table!CQ37), "") ->  | I37: =IF(Table!BP37<>"",Table!BP37,"") ->  | J37: =IF(Table!BQ37<>"",Table!BQ37,"") ->  | K37: =IF(Table!BY37<>"",Table!BY37,"") ->  | L37: =IF(Table!BZ37<>"",Table!BZ37,"") ->  | M37: =IF(Table!CA37<>"",Table!CA37,"") ->  | N37: =IF(AND(M37<>"",K37<>""),M37*1000/K37, "") ->  | O37: =IF(AND(L37<>"",K37<>""),L37/K37, "") ->  | P37: =IF(AND(ספיקות!E37<>"",'איכות שפכים'!C37<>"",L37<>"",Table!CS37<>""),(ספיקות!E37*'איכות שפכים'!C37/1000)/(L37/1000*Table!CS37), "") ->  | Q37: =IF(Table!BW37<>"",Table!BW37,"") ->  | R37: =IF(Table!BX37<>"",Table!BX37,"") ->  | S37: =IF(K37<>"",(K37*Table!CS37)/1000000,"") -> 
A38: סה"כ לחודש
A39: ממוצע | C39: =AVERAGE(C7:C37) ->  | D39: =AVERAGE(D7:D37) ->  | M39: 374.5 | Q39: 0.89 | R39: 0.875 | S39: =AVERAGE(S7:S37) ->  | T39: =S39/('טיפול וסילוק בוצה'!G39*'טיפול וסילוק בוצה'!C40/3000) -> 
A40: מקסימום | C40: =MAX(C7:C37) -> 0 | D40: =MAX(D7:D37) -> 0 | E40: 0 | F40: 0 | G40: 0 | H40: 0 | I40: 0 | J40: 0 | K40: 0 | L40: 0 | M40: 410 | N40: 0 | O40: 0 | P40: 0 | Q40: 1.4 | R40: 1.4
A41: מינימום | C41: =MIN(C7:C37) -> 0 | D41: =MIN(D7:D37) -> 0 | E41: 0 | F41: 0 | G41: 0 | H41: 0 | I41: 0 | J41: 0 | K41: 0 | L41: 0 | M41: 340 | N41: 0 | O41: 0 | P41: 0 | Q41: 0.4 | R41: 0.4

Sheet טיפול וסילוק בוצה
A2: =סיכום!C11 -> מט"ש נובמבר 2024 | F2: נתוני תפעול - גליון 6 - טיפול וסילוק בוצה
A3: יחידת פעולה | C3: מעכל | G3: בוצה יבשה | R3: בוצה יבשה | S3: גבבה | T3: גרוסת
A4: תדירות | C4: פעם בשבוע | F4: פעמיים בחודש | G4: ספיקה מצטברת בוצה לייבוש | H4: ספיקה יומית בוצה לייבוש | I4: מעבדה | R4: פינוי בוצה יבשה לאתר קומפוסט | S4: פינוי גבבה | T4: פינוי גרוסת
A5: תאריך | B5: יום בשבוע | C5: TS% | D5: VS% | E5: VS/TS | F5: SOUR | I5: TS% | J5: VS% | K5: VS/TS | L5: קוליפורמים פאקליים | M5: זרחן כללי | N5: חנקן אמוניאקלי | O5: PH | P5: חנקן כללי | Q5: סריקת מתכות
C6: % | D6: % | E6: % | F6: מג"ל | H6: מ"ק/יום | I6: % | J6: % | K6: % | L6: ב-100 גר' | M6: מ"ג/גר' | R6: טון/יום | S6: טון/יום | T6: טון/יום
A7: =IF(Table!A7<>"",Table!A7,"") -> 2024-11-01 | B7: =IF(Table!A7<>"",Table!A7,"") -> 2024-11-01 | C7: =IF(Table!CB7<>"",Table!CB7,"") ->  | D7: =IF(Table!CC7<>"",Table!CC7,"") ->  | E7: =IF(D7<>"",IF(C7<>"",D7/C7,""),"") ->  | F7: =IF(Table!CD7<>"",Table!CD7,"") ->  | G7: =IF(Table!CE7<>"",Table!CE7,"") -> 10330 | H7: =IF(AND(G8<>"",G7<>""),G8-G7, "") -> 0 | I7: =IF(Table!CG7<>"",Table!CG7,"") ->  | J7: =IF(Table!CH7<>"",Table!CH7,"") ->  | L7: =IF(Table!CI7<>"",Table!CI7,"") ->  | M7: =IF(Table!CJ7<>"",Table!CJ7,"") ->  | N7: =IF(Table!CK7<>"",Table!CK7,"") ->  | O7: =IF(Table!CL7<>"",Table!CL7,"") ->  | P7: =IF(Table!CM7<>"",Table!CM7,"") ->  | Q7: =IF(Table!CN7<>"",Table!CN7,"") ->  | R7: =IF(Table!CO7<>"",Table!CO7,"") ->  | S7: =IF(Table!CP7<>"",Table!CP7,"") ->  | T7: =IF(Table!CQ7<>"",Table!CQ7,"") -> 
A8: =IF(Table!A8<>"",Table!A8,"") -> 2024-11-02 | B8: =IF(Table!A8<>"",Table!A8,"") -> 2024-11-02 | C8: =IF(Table!CB8<>"",Table!CB8,"") ->  | D8: =IF(Table!CC8<>"",Table!CC8,"") ->  | E8: =IF(D8<>"",IF(C8<>"",D8/C8,""),"") ->  | F8: =IF(Table!CD8<>"",Table!CD8,"") ->  | G8: =IF(Table!CE8<>"",Table!CE8,"") -> 10330 | H8: =IF(AND(G9<>"",G8<>""),G9-G8, "") -> 0 | I8: =IF(Table!CG8<>"",Table!CG8,"") ->  | J8: =IF(Table!CH8<>"",Table!CH8,"") ->  | K8: =IF(J8<>"",IF(I8<>"",J8/I8,""),"") ->  | L8: =IF(Table!CI8<>"",Table!CI8,"") ->  | M8: =IF(Table!CJ8<>"",Table!CJ8,"") ->  | N8: =IF(Table!CK8<>"",Table!CK8,"") ->  | O8: =IF(Table!CL8<>"",Table!CL8,"") ->  | P8: =IF(Table!CM8<>"",Table!CM8,"") ->  | Q8: =IF(Table!CN8<>"",Table!CN8,"") ->  | R8: =IF(Table!CO8<>"",Table!CO8,"") ->  | S8: =IF(Table!CP8<>"",Table!CP8,"") ->  | T8: =IF(Table!CQ8<>"",Table!CQ8,"") -> 
A9: =IF(Table!A9<>"",Table!A9,"") -> 2024-11-03 | B9: =IF(Table!A9<>"",Table!A9,"") -> 2024-11-03 | C9: =IF(Table!CB9<>"",Table!CB9,"") ->  | D9: =IF(Table!CC9<>"",Table!CC9,"") ->  | F9: 0 | G9: =IF(Table!CE9<>"",Table!CE9,"") -> 10330 | H9: 0 | I9: =IF(Table!CG9<>"",Table!CG9,"") ->  | J9: =IF(Table!CH9<>"",Table!CH9,"") ->  | K9: 0 | L9: =IF(Table!CI9<>"",Table!CI9,"") ->  | M9: =IF(Table!CJ9<>"",Table!CJ9,"") ->  | N9: =IF(Table!CK9<>"",Table!CK9,"") ->  | O9: =IF(Table!CL9<>"",Table!CL9,"") ->  | P9: =IF(Table!CM9<>"",Table!CM9,"") ->  | Q9: =IF(Table!CN9<>"",Table!CN9,"") ->  | R9: =IF(Table!CO9<>"",Table!CO9,"") ->  | S9: =IF(Table!CP9<>"",Table!CP9,"") ->  | T9: =IF(Table!CQ9<>"",Table!CQ9,"") -> 
A10: =IF(Table!A10<>"",Table!A10,"") -> 2024-11-04 | B10: =IF(Table!A10<>"",Table!A10,"") -> 2024-11-04 | C10: =IF(Table!CB10<>"",Table!CB10,"") ->  | D10: =IF(Table!CC10<>"",Table!CC10,"") ->  | E10: =IF(D10<>"",IF(C10<>"",D10/C10,""),"") ->  | F10: =IF(Table!CD10<>"",Table!CD10,"") ->  | G10: =IF(Table!CE10<>"",Table!CE10,"") -> 10330 | H10: 41 | I10: =IF(Table!CG10<>"",Table!CG10,"") -> 18 | J10: =IF(Table!CH10<>"",Table!CH10,"") -> 12.6 | K10: 0.7 | L10: =IF(Table!CI10<>"",Table!CI10,"") ->  | M10: =IF(Table!CJ10<>"",Table!CJ10,"") -> 13204 | N10: =IF(Table!CK10<>"",Table!CK10,"") -> 1875 | O10: =IF(Table!CL10<>"",Table!CL10,"") ->  | P10: 0 | Q10: 0 | R10: 0 | S10: =IF(Table!CP10<>"",Table!CP10,"") ->  | T10: =IF(Table!CQ10<>"",Table!CQ10,"") -> 
A11: =IF(Table!A11<>"",Table!A11,"") -> 2024-11-05 | B11: =IF(Table!A11<>"",Table!A11,"") -> 2024-11-05 | C11: =IF(Table!CB11<>"",Table!CB11,"") ->  | D11: =IF(Table!CC11<>"",Table!CC11,"") ->  | F11: =IF(Table!CD11<>"",Table!CD11,"") ->  | G11: =IF(Table!CE11<>"",Table!CE11,"") -> 10371 | H11: 47 | I11: =IF(Table!CG11<>"",Table!CG11,"") ->  | J11: =IF(Table!CH11<>"",Table!CH11,"") ->  | L11: =IF(Table!CI11<>"",Table!CI11,"") ->  | M11: =IF(Table!CJ11<>"",Table!CJ11,"") ->  | N11: =IF(Table!CK11<>"",Table!CK11,"") ->  | O11: =IF(Table!CL11<>"",Table!CL11,"") ->  | P11: =IF(Table!CM11<>"",Table!CM11,"") ->  | Q11: =IF(Table!CN11<>"",Table!CN11,"") ->  | R11: =IF(Table!CO11<>"",Table!CO11,"") ->  | S11: =IF(Table!CP11<>"",Table!CP11,"") ->  | T11: =IF(Table!CQ11<>"",Table!CQ11,"") -> 
A12: =IF(Table!A12<>"",Table!A12,"") -> 2024-11-06 | B12: =IF(Table!A12<>"",Table!A12,"") -> 2024-11-06 | C12: =IF(Table!CB12<>"",Table!CB12,"") ->  | D12: =IF(Table!CC12<>"",Table!CC12,"") ->  | F12: =IF(Table!CD12<>"",Table!CD12,"") ->  | G12: =IF(Table!CE12<>"",Table!CE12,"") -> 10418 | H12: 45 | I12: =IF(Table!CG12<>"",Table!CG12,"") ->  | J12: =IF(Table!CH12<>"",Table!CH12,"") ->  | L12: 0 | M12: 0 | N12: 0 | O12: 0 | R12: =IF(Table!CO12<>"",Table!CO12,"") ->  | S12: =IF(Table!CP12<>"",Table!CP12,"") ->  | T12: =IF(Table!CQ12<>"",Table!CQ12,"") -> 
A13: =IF(Table!A13<>"",Table!A13,"") -> 2024-11-07 | B13: =IF(Table!A13<>"",Table!A13,"") -> 2024-11-07 | C13: =IF(Table!CB13<>"",Table!CB13,"") ->  | D13: =IF(Table!CC13<>"",Table!CC13,"") ->  | F13: =IF(Table!CD13<>"",Table!CD13,"") ->  | G13: =IF(Table!CE13<>"",Table!CE13,"") -> 10463 | H13: 48 | I13: =IF(Table!CG13<>"",Table!CG13,"") ->  | J13: =IF(Table!CH13<>"",Table!CH13,"") ->  | L13: =IF(Table!CI13<>"",Table!CI13,"") ->  | M13: =IF(Table!CJ13<>"",Table!CJ13,"") ->  | N13: =IF(Table!CK13<>"",Table!CK13,"") ->  | O13: =IF(Table!CL13<>"",Table!CL13,"") ->  | P13: =IF(Table!CM13<>"",Table!CM13,"") ->  | Q13: =IF(Table!CN13<>"",Table!CN13,"") ->  | R13: =IF(Table!CO13<>"",Table!CO13,"") ->  | S13: =IF(Table!CP13<>"",Table!CP13,"") ->  | T13: =IF(Table!CQ13<>"",Table!CQ13,"") -> 
A14: =IF(Table!A14<>"",Table!A14,"") -> 2024-11-08 | B14: =IF(Table!A14<>"",Table!A14,"") -> 2024-11-08 | C14: =IF(Table!CB14<>"",Table!CB14,"") ->  | D14: =IF(Table!CC14<>"",Table!CC14,"") ->  | F14: =IF(Table!CD14<>"",Table!CD14,"") ->  | G14: =IF(Table!CE14<>"",Table!CE14,"") -> 10511 | H14: 47 | I14: =IF(Table!CG14<>"",Table!CG14,"") ->  | J14: =IF(Table!CH14<>"",Table!CH14,"") ->  | L14: =IF(Table!CI14<>"",Table!CI14,"") ->  | M14: =IF(Table!CJ14<>"",Table!CJ14,"") ->  | N14: =IF(Table!CK14<>"",Table!CK14,"") ->  | O14: =IF(Table!CL14<>"",Table!CL14,"") ->  | P14: =IF(Table!CM14<>"",Table!CM14,"") ->  | Q14: =IF(Table!CN14<>"",Table!CN14,"") ->  | R14: =IF(Table!CO14<>"",Table!CO14,"") ->  | S14: =IF(Table!CP14<>"",Table!CP14,"") ->  | T14: =IF(Table!CQ14<>"",Table!CQ14,"") -> 
A15: =IF(Table!A15<>"",Table!A15,"") -> 2024-11-09 | B15: =IF(Table!A15<>"",Table!A15,"") -> 2024-11-09 | C15: =IF(Table!CB15<>"",Table!CB15,"") ->  | D15: =IF(Table!CC15<>"",Table!CC15,"") ->  | F15: =IF(Table!CD15<>"",Table!CD15,"") ->  | G15: =IF(Table!CE15<>"",Table!CE15,"") -> 10558 | H15: 0 | I15: =IF(Table!CG15<>"",Table!CG15,"") ->  | J15: =IF(Table!CH15<>"",Table!CH15,"") ->  | L15: =IF(Table!CI15<>"",Table!CI15,"") ->  | M15: =IF(Table!CJ15<>"",Table!CJ15,"") ->  | N15: =IF(Table!CK15<>"",Table!CK15,"") ->  | O15: =IF(Table!CL15<>"",Table!CL15,"") ->  | P15: =IF(Table!CM15<>"",Table!CM15,"") ->  | Q15: =IF(Table!CN15<>"",Table!CN15,"") ->  | R15: =IF(Table!CO15<>"",Table!CO15,"") ->  | S15: =IF(Table!CP15<>"",Table!CP15,"") ->  | T15: =IF(Table!CQ15<>"",Table!CQ15,"") -> 
A16: =IF(Table!A16<>"",Table!A16,"") -> 2024-11-10 | B16: =IF(Table!A16<>"",Table!A16,"") -> 2024-11-10 | C16: =IF(Table!CB16<>"",Table!CB16,"") ->  | D16: =IF(Table!CC16<>"",Table!CC16,"") ->  | F16: =IF(Table!CD16<>"",Table!CD16,"") ->  | G16: =IF(Table!CE16<>"",Table!CE16,"") -> 10558 | H16: 0 | I16: =IF(Table!CG16<>"",Table!CG16,"") ->  | J16: =IF(Table!CH16<>"",Table!CH16,"") ->  | L16: =IF(Table!CI16<>"",Table!CI16,"") ->  | M16: =IF(Table!CJ16<>"",Table!CJ16,"") ->  | N16: =IF(Table!CK16<>"",Table!CK16,"") ->  | O16: =IF(Table!CL16<>"",Table!CL16,"") ->  | P16: =IF(Table!CM16<>"",Table!CM16,"") ->  | Q16: =IF(Table!CN16<>"",Table!CN16,"") ->  | R16: =IF(Table!CO16<>"",Table!CO16,"") ->  | S16: =IF(Table!CP16<>"",Table!CP16,"") ->  | T16: =IF(Table!CQ16<>"",Table!CQ16,"") -> 
A17: =IF(Table!A17<>"",Table!A17,"") -> 2024-11-11 | B17: =IF(Table!A17<>"",Table!A17,"") -> 2024-11-11 | C17: =IF(Table!CB17<>"",Table!CB17,"") ->  | D17: =IF(Table!CC17<>"",Table!CC17,"") ->  | F17: =IF(Table!CD17<>"",Table!CD17,"") ->  | G17: =IF(Table!CE17<>"",Table!CE17,"") -> 10558 | H17: 0 | I17: =IF(Table!CG17<>"",Table!CG17,"") ->  | J17: =IF(Table!CH17<>"",Table!CH17,"") ->  | L17: =IF(Table!CI17<>"",Table!CI17,"") ->  | M17: =IF(Table!CJ17<>"",Table!CJ17,"") ->  | N17: =IF(Table!CK17<>"",Table!CK17,"") ->  | O17: =IF(Table!CL17<>"",Table!CL17,"") ->  | P17: =IF(Table!CM17<>"",Table!CM17,"") ->  | Q17: =IF(Table!CN17<>"",Table!CN17,"") ->  | R17: =IF(Table!CO17<>"",Table!CO17,"") ->  | S17: =IF(Table!CP17<>"",Table!CP17,"") ->  | T17: =IF(Table!CQ17<>"",Table!CQ17,"") -> 
A18: =IF(Table!A18<>"",Table!A18,"") -> 2024-11-12 | B18: =IF(Table!A18<>"",Table!A18,"") -> 2024-11-12 | C18: =IF(Table!CB18<>"",Table!CB18,"") ->  | D18: =IF(Table!CC18<>"",Table!CC18,"") ->  | F18: =IF(Table!CD18<>"",Table!CD18,"") ->  | G18: =IF(Table!CE18<>"",Table!CE18,"") -> 10558 | H18: 0 | I18: =IF(Table!CG18<>"",Table!CG18,"") ->  | J18: =IF(Table!CH18<>"",Table!CH18,"") ->  | L18: =IF(Table!CI18<>"",Table!CI18,"") ->  | M18: =IF(Table!CJ18<>"",Table!CJ18,"") ->  | N18: =IF(Table!CK18<>"",Table!CK18,"") ->  | O18: =IF(Table!CL18<>"",Table!CL18,"") ->  | P18: =IF(Table!CM18<>"",Table!CM18,"") ->  | Q18: =IF(Table!CN18<>"",Table!CN18,"") ->  | R18: =IF(Table!CO18<>"",Table!CO18,"") -> 24.8 | S18: =IF(Table!CP18<>"",Table!CP18,"") ->  | T18: =IF(Table!CQ18<>"",Table!CQ18,"") -> 
A19: =IF(Table!A19<>"",Table!A19,"") -> 2024-11-13 | B19: =IF(Table!A19<>"",Table!A19,"") -> 2024-11-13 | C19: =IF(Table!CB19<>"",Table!CB19,"") ->  | D19: =IF(Table!CC19<>"",Table!CC19,"") ->  | F19: =IF(Table!CD19<>"",Table!CD19,"") ->  | G19: =IF(Table!CE19<>"",Table!CE19,"") -> 10558 | H19: 0 | I19: =IF(Table!CG19<>"",Table!CG19,"") ->  | J19: =IF(Table!CH19<>"",Table!CH19,"") ->  | R19: =IF(Table!CO19<>"",Table!CO19,"") ->  | S19: =IF(Table!CP19<>"",Table!CP19,"") ->  | T19: =IF(Table!CQ19<>"",Table!CQ19,"") -> 2.54
A20: =IF(Table!A20<>"",Table!A20,"") -> 2024-11-14 | B20: =IF(Table!A20<>"",Table!A20,"") -> 2024-11-14 | C20: =IF(Table!CB20<>"",Table!CB20,"") ->  | D20: =IF(Table!CC20<>"",Table!CC20,"") ->  | F20: =IF(Table!CD20<>"",Table!CD20,"") ->  | G20: =IF(Table!CE20<>"",Table!CE20,"") -> 10558 | H20: 0 | I20: =IF(Table!CG20<>"",Table!CG20,"") ->  | J20: =IF(Table!CH20<>"",Table!CH20,"") ->  | L20: =IF(Table!CI20<>"",Table!CI20,"") ->  | M20: =IF(Table!CJ20<>"",Table!CJ20,"") ->  | N20: =IF(Table!CK20<>"",Table!CK20,"") ->  | O20: =IF(Table!CL20<>"",Table!CL20,"") ->  | P20: =IF(Table!CM20<>"",Table!CM20,"") ->  | Q20: =IF(Table!CN20<>"",Table!CN20,"") ->  | R20: =IF(Table!CO20<>"",Table!CO20,"") ->  | S20: =IF(Table!CP20<>"",Table!CP20,"") ->  | T20: =IF(Table!CQ20<>"",Table!CQ20,"") -> 
A21: =IF(Table!A21<>"",Table!A21,"") -> 2024-11-15 | B21: =IF(Table!A21<>"",Table!A21,"") -> 2024-11-15 | C21: =IF(Table!CB21<>"",Table!CB21,"") ->  | D21: =IF(Table!CC21<>"",Table!CC21,"") ->  | F21: =IF(Table!CD21<>"",Table!CD21,"") ->  | G21: =IF(Table!CE21<>"",Table!CE21,"") -> 10558 | H21: 0 | I21: =IF(Table!CG21<>"",Table!CG21,"") ->  | J21: =IF(Table!CH21<>"",Table!CH21,"") ->  | L21: =IF(Table!CI21<>"",Table!CI21,"") ->  | M21: =IF(Table!CJ21<>"",Table!CJ21,"") ->  | N21: =IF(Table!CK21<>"",Table!CK21,"") ->  | O21: =IF(Table!CL21<>"",Table!CL21,"") ->  | P21: =IF(Table!CM21<>"",Table!CM21,"") ->  | Q21: =IF(Table!CN21<>"",Table!CN21,"") ->  | R21: =IF(Table!CO21<>"",Table!CO21,"") ->  | S21: =IF(Table!CP21<>"",Table!CP21,"") ->  | T21: =IF(Table!CQ21<>"",Table!CQ21,"") -> 
A22: =IF(Table!A22<>"",Table!A22,"") -> 2024-11-16 | B22: =IF(Table!A22<>"",Table!A22,"") -> 2024-11-16 | C22: =IF(Table!CB22<>"",Table!CB22,"") ->  | D22: =IF(Table!CC22<>"",Table!CC22,"") ->  | F22: =IF(Table!CD22<>"",Table!CD22,"") ->  | G22: =IF(Table!CE22<>"",Table!CE22,"") -> 10558 | H22: 0 | I22: =IF(Table!CG22<>"",Table!CG22,"") ->  | J22: =IF(Table!CH22<>"",Table!CH22,"") ->  | L22: =IF(Table!CI22<>"",Table!CI22,"") ->  | M22: =IF(Table!CJ22<>"",Table!CJ22,"") ->  | N22: =IF(Table!CK22<>"",Table!CK22,"") ->  | O22: =IF(Table!CL22<>"",Table!CL22,"") ->  | P22: =IF(Table!CM22<>"",Table!CM22,"") ->  | Q22: =IF(Table!CN22<>"",Table!CN22,"") ->  | R22: =IF(Table!CO22<>"",Table!CO22,"") ->  | S22: =IF(Table!CP22<>"",Table!CP22,"") ->  | T22: =IF(Table!CQ22<>"",Table!CQ22,"") -> 
A23: =IF(Table!A23<>"",Table!A23,"") -> 2024-11-17 | B23: =IF(Table!A23<>"",Table!A23,"") -> 2024-11-17 | C23: =IF(Table!CB23<>"",Table!CB23,"") ->  | D23: =IF(Table!CC23<>"",Table!CC23,"") ->  | F23: =IF(Table!CD23<>"",Table!CD23,"") ->  | G23: =IF(Table!CE23<>"",Table!CE23,"") -> 10558 | H23: 0 | I23: =IF(Table!CG23<>"",Table!CG23,"") ->  | J23: =IF(Table!CH23<>"",Table!CH23,"") ->  | L23: =IF(Table!CI23<>"",Table!CI23,"") ->  | M23: =IF(Table!CJ23<>"",Table!CJ23,"") ->  | N23: =IF(Table!CK23<>"",Table!CK23,"") ->  | O23: =IF(Table!CL23<>"",Table!CL23,"") ->  | P23: =IF(Table!CM23<>"",Table!CM23,"") ->  | Q23: =IF(Table!CN23<>"",Table!CN23,"") ->  | R23: =IF(Table!CO23<>"",Table!CO23,"") ->  | S23: =IF(Table!CP23<>"",Table!CP23,"") ->  | T23: =IF(Table!CQ23<>"",Table!CQ23,"") -> 
A24: =IF(Table!A24<>"",Table!A24,"") -> 2024-11-18 | B24: =IF(Table!A24<>"",Table!A24,"") -> 2024-11-18 | C24: =IF(Table!CB24<>"",Table!CB24,"") ->  | D24: =IF(Table!CC24<>"",Table!CC24,"") ->  | F24: =IF(Table!CD24<>"",Table!CD24,"") ->  | G24: =IF(Table!CE24<>"",Table!CE24,"") -> 10558 | H24: 0 | I24: =IF(Table!CG24<>"",Table!CG24,"") ->  | J24: =IF(Table!CH24<>"",Table!CH24,"") ->  | L24: =IF(Table!CI24<>"",Table!CI24,"") ->  | M24: =IF(Table!CJ24<>"",Table!CJ24,"") ->  | N24: =IF(Table!CK24<>"",Table!CK24,"") ->  | O24: =IF(Table!CL24<>"",Table!CL24,"") ->  | P24: =IF(Table!CM24<>"",Table!CM24,"") ->  | Q24: =IF(Table!CN24<>"",Table!CN24,"") ->  | R24: =IF(Table!CO24<>"",Table!CO24,"") ->  | S24: =IF(Table!CP24<>"",Table!CP24,"") ->  | T24: =IF(Table!CQ24<>"",Table!CQ24,"") -> 
A25: =IF(Table!A25<>"",Table!A25,"") -> 2024-11-19 | B25: =IF(Table!A25<>"",Table!A25,"") -> 2024-11-19 | C25: =IF(Table!CB25<>"",Table!CB25,"") ->  | D25: =IF(Table!CC25<>"",Table!CC25,"") ->  | F25: =IF(Table!CD25<>"",Table!CD25,"") ->  | G25: =IF(Table!CE25<>"",Table!CE25,"") -> 10558 | H25: 0 | I25: =IF(Table!CG25<>"",Table!CG25,"") ->  | J25: =IF(Table!CH25<>"",Table!CH25,"") ->  | L25: =IF(Table!CI25<>"",Table!CI25,"") ->  | M25: =IF(Table!CJ25<>"",Table!CJ25,"") ->  | N25: =IF(Table!CK25<>"",Table!CK25,"") ->  | O25: =IF(Table!CL25<>"",Table!CL25,"") ->  | P25: =IF(Table!CM25<>"",Table!CM25,"") ->  | Q25: =IF(Table!CN25<>"",Table!CN25,"") ->  | R25: =IF(Table!CO25<>"",Table!CO25,"") ->  | S25: =IF(Table!CP25<>"",Table!CP25,"") ->  | T25: =IF(Table!CQ25<>"",Table!CQ25,"") -> 
A26: =IF(Table!A26<>"",Table!A26,"") -> 2024-11-20 | B26: =IF(Table!A26<>"",Table!A26,"") -> 2024-11-20 | C26: =IF(Table!CB26<>"",Table!CB26,"") ->  | D26: =IF(Table!CC26<>"",Table!CC26,"") ->  | F26: =IF(Table!CD26<>"",Table!CD26,"") ->  | G26: =IF(Table!CE26<>"",Table!CE26,"") -> 10558 | H26: 0 | I26: =IF(Table!CG26<>"",Table!CG26,"") ->  | J26: =IF(Table!CH26<>"",Table!CH26,"") ->  | L26: =IF(Table!CI26<>"",Table!CI26,"") ->  | M26: =IF(Table!CJ26<>"",Table!CJ26,"") ->  | N26: =IF(Table!CK26<>"",Table!CK26,"") ->  | O26: =IF(Table!CL26<>"",Table!CL26,"") ->  | P26: =IF(Table!CM26<>"",Table!CM26,"") ->  | Q26: =IF(Table!CN26<>"",Table!CN26,"") ->  | R26: =IF(Table!CO26<>"",Table!CO26,"") ->  | S26: =IF(Table!CP26<>"",Table!CP26,"") ->  | T26: =IF(Table!CQ26<>"",Table!CQ26,"") -> 
A27: =IF(Table!A27<>"",Table!A27,"") -> 2024-11-21 | B27: =IF(Table!A27<>"",Table!A27,"") -> 2024-11-21 | C27: =IF(Table!CB27<>"",Table!CB27,"") ->  | D27: =IF(Table!CC27<>"",Table!CC27,"") ->  | F27: =IF(Table!CD27<>"",Table!CD27,"") ->  | G27: =IF(Table!CE27<>"",Table!CE27,"") -> 10558 | H27: 0 | I27: =IF(Table!CG27<>"",Table!CG27,"") ->  | J27: =IF(Table!CH27<>"",Table!CH27,"") ->  | L27: =IF(Table!CI27<>"",Table!CI27,"") ->  | M27: =IF(Table!CJ27<>"",Table!CJ27,"") ->  | N27: =IF(Table!CK27<>"",Table!CK27,"") ->  | O27: =IF(Table!CL27<>"",Table!CL27,"") ->  | P27: =IF(Table!CM27<>"",Table!CM27,"") ->  | Q27: =IF(Table!CN27<>"",Table!CN27,"") ->  | R27: =IF(Table!CO27<>"",Table!CO27,"") ->  | S27: =IF(Table!CP27<>"",Table!CP27,"") ->  | T27: =IF(Table!CQ27<>"",Table!CQ27,"") -> 
A28: =IF(Table!A28<>"",Table!A28,"") -> 2024-11-22 | B28: =IF(Table!A28<>"",Table!A28,"") -> 2024-11-22 | C28: =IF(Table!CB28<>"",Table!CB28,"") ->  | D28: =IF(Table!CC28<>"",Table!CC28,"") ->  | F28: =IF(Table!CD28<>"",Table!CD28,"") ->  | G28: =IF(Table!CE28<>"",Table!CE28,"") -> 10558 | H28: 0 | I28: =IF(Table!CG28<>"",Table!CG28,"") ->  | J28: =IF(Table!CH28<>"",Table!CH28,"") ->  | L28: =IF(Table!CI28<>"",Table!CI28,"") ->  | M28: =IF(Table!CJ28<>"",Table!CJ28,"") ->  | N28: =IF(Table!CK28<>"",Table!CK28,"") ->  | O28: =IF(Table!CL28<>"",Table!CL28,"") ->  | P28: =IF(Table!CM28<>"",Table!CM28,"") ->  | Q28: =IF(Table!CN28<>"",Table!CN28,"") ->  | R28: =IF(Table!CO28<>"",Table!CO28,"") ->  | S28: =IF(Table!CP28<>"",Table!CP28,"") ->  | T28: =IF(Table!CQ28<>"",Table!CQ28,"") -> 
A29: =IF(Table!A29<>"",Table!A29,"") -> 2024-11-23 | B29: =IF(Table!A29<>"",Table!A29,"") -> 2024-11-23 | C29: =IF(Table!CB29<>"",Table!CB29,"") ->  | D29: =IF(Table!CC29<>"",Table!CC29,"") ->  | F29: =IF(Table!CD29<>"",Table!CD29,"") ->  | G29: =IF(Table!CE29<>"",Table!CE29,"") -> 10558 | H29: 0 | I29: =IF(Table!CG29<>"",Table!CG29,"") ->  | J29: =IF(Table!CH29<>"",Table!CH29,"") ->  | L29: =IF(Table!CI29<>"",Table!CI29,"") ->  | M29: =IF(Table!CJ29<>"",Table!CJ29,"") ->  | N29: =IF(Table!CK29<>"",Table!CK29,"") ->  | O29: =IF(Table!CL29<>"",Table!CL29,"") ->  | P29: =IF(Table!CM29<>"",Table!CM29,"") ->  | Q29: =IF(Table!CN29<>"",Table!CN29,"") ->  | R29: =IF(Table!CO29<>"",Table!CO29,"") ->  | S29: =IF(Table!CP29<>"",Table!CP29,"") ->  | T29: =IF(Table!CQ29<>"",Table!CQ29,"") -> 
A30: =IF(Table!A30<>"",Table!A30,"") -> 2024-11-24 | B30: =IF(Table!A30<>"",Table!A30,"") -> 2024-11-24 | C30: =IF(Table!CB30<>"",Table!CB30,"") ->  | D30: =IF(Table!CC30<>"",Table!CC30,"") ->  | F30: =IF(Table!CD30<>"",Table!CD30,"") ->  | G30: =IF(Table!CE30<>"",Table!CE30,"") -> 10558 | H30: 0 | I30: =IF(Table!CG30<>"",Table!CG30,"") ->  | J30: =IF(Table!CH30<>"",Table!CH30,"") ->  | L30: =IF(Table!CI30<>"",Table!CI30,"") ->  | M30: =IF(Table!CJ30<>"",Table!CJ30,"") ->  | N30: =IF(Table!CK30<>"",Table!CK30,"") ->  | O30: =IF(Table!CL30<>"",Table!CL30,"") ->  | P30: =IF(Table!CM30<>"",Table!CM30,"") ->  | Q30: =IF(Table!CN30<>"",Table!CN30,"") ->  | R30: =IF(Table!CO30<>"",Table!CO30,"") ->  | S30: =IF(Table!CP30<>"",Table!CP30,"") ->  | T30: =IF(Table!CQ30<>"",Table!CQ30,"") -> 
A31: =IF(Table!A31<>"",Table!A31,"") -> 2024-11-25 | B31: =IF(Table!A31<>"",Table!A31,"") -> 2024-11-25 | C31: =IF(Table!CB31<>"",Table!CB31,"") ->  | D31: =IF(Table!CC31<>"",Table!CC31,"") ->  | F31: =IF(Table!CD31<>"",Table!CD31,"") ->  | G31: =IF(Table!CE31<>"",Table!CE31,"") -> 10558 | H31: 0 | I31: =IF(Table!CG31<>"",Table!CG31,"") ->  | J31: =IF(Table!CH31<>"",Table!CH31,"") ->  | L31: =IF(Table!CI31<>"",Table!CI31,"") ->  | M31: =IF(Table!CJ31<>"",Table!CJ31,"") ->  | N31: =IF(Table!CK31<>"",Table!CK31,"") ->  | O31: =IF(Table!CL31<>"",Table!CL31,"") ->  | P31: =IF(Table!CM31<>"",Table!CM31,"") ->  | Q31: =IF(Table!CN31<>"",Table!CN31,"") ->  | R31: =IF(Table!CO31<>"",Table!CO31,"") ->  | S31: =IF(Table!CP31<>"",Table!CP31,"") ->  | T31: =IF(Table!CQ31<>"",Table!CQ31,"") -> 
A32: =IF(Table!A32<>"",Table!A32,"") -> 2024-11-26 | B32: =IF(Table!A32<>"",Table!A32,"") -> 2024-11-26 | C32: =IF(Table!CB32<>"",Table!CB32,"") ->  | D32: =IF(Table!CC32<>"",Table!CC32,"") ->  | F32: =IF(Table!CD32<>"",Table!CD32,"") ->  | G32: =IF(Table!CE32<>"",Table!CE32,"") -> 10558 | H32: 0 | I32: =IF(Table!CG32<>"",Table!CG32,"") ->  | J32: =IF(Table!CH32<>"",Table!CH32,"") ->  | L32: =IF(Table!CI32<>"",Table!CI32,"") ->  | M32: =IF(Table!CJ32<>"",Table!CJ32,"") ->  | N32: =IF(Table!CK32<>"",Table!CK32,"") ->  | O32: =IF(Table!CL32<>"",Table!CL32,"") ->  | P32: =IF(Table!CM32<>"",Table!CM32,"") ->  | Q32: =IF(Table!CN32<>"",Table!CN32,"") ->  | R32: =IF(Table!CO32<>"",Table!CO32,"") ->  | S32: =IF(Table!CP32<>"",Table!CP32,"") ->  | T32: =IF(Table!CQ32<>"",Table!CQ32,"") -> 
A33: =IF(Table!A33<>"",Table!A33,"") -> 2024-11-27 | B33: =IF(Table!A33<>"",Table!A33,"") -> 2024-11-27 | C33: =IF(Table!CB33<>"",Table!CB33,"") ->  | D33: =IF(Table!CC33<>"",Table!CC33,"") ->  | F33: =IF(Table!CD33<>"",Table!CD33,"") ->  | G33: =IF(Table!CE33<>"",Table!CE33,"") -> 10558 | H33: 0 | I33: =IF(Table!CG33<>"",Table!CG33,"") ->  | J33: =IF(Table!CH33<>"",Table!CH33,"") ->  | L33: =IF(Table!CI33<>"",Table!CI33,"") ->  | M33: =IF(Table!CJ33<>"",Table!CJ33,"") ->  | N33: =IF(Table!CK33<>"",Table!CK33,"") ->  | O33: =IF(Table!CL33<>"",Table!CL33,"") ->  | P33: =IF(Table!CM33<>"",Table!CM33,"") ->  | Q33: =IF(Table!CN33<>"",Table!CN33,"") ->  | R33: =IF(Table!CO33<>"",Table!CO33,"") ->  | S33: =IF(Table!CP33<>"",Table!CP33,"") ->  | T33: =IF(Table!CQ33<>"",Table!CQ33,"") -> 
A34: =IF(Table!A34<>"",Table!A34,"") -> 2024-11-28 | B34: =IF(Table!A34<>"",Table!A34,"") -> 2024-11-28 | C34: =IF(Table!CB34<>"",Table!CB34,"") ->  | D34: =IF(Table!CC34<>"",Table!CC34,"") ->  | F34: =IF(Table!CD34<>"",Table!CD34,"") ->  | G34: =IF(Table!CE34<>"",Table!CE34,"") -> 10558 | H34: 0 | I34: =IF(Table!CG34<>"",Table!CG34,"") ->  | J34: =IF(Table!CH34<>"",Table!CH34,"") ->  | L34: =IF(Table!CI34<>"",Table!CI34,"") ->  | M34: =IF(Table!CJ34<>"",Table!CJ34,"") ->  | N34: =IF(Table!CK34<>"",Table!CK34,"") ->  | O34: =IF(Table!CL34<>"",Table!CL34,"") ->  | P34: =IF(Table!CM34<>"",Table!CM34,"") ->  | Q34: =IF(Table!CN34<>"",Table!CN34,"") ->  | R34: =IF(Table!CO34<>"",Table!CO34,"") ->  | S34: =IF(Table!CP34<>"",Table!CP34,"") ->  | T34: =IF(Table!CQ34<>"",Table!CQ34,"") -> 
A35: =IF(Table!A35<>"",Table!A35,"") -> 2024-11-29 | B35: =IF(Table!A35<>"",Table!A35,"") -> 2024-11-29 | C35: =IF(Table!CB35<>"",Table!CB35,"") ->  | D35: =IF(Table!CC35<>"",Table!CC35,"") ->  | F35: =IF(Table!CD35<>"",Table!CD35,"") ->  | G35: =IF(Table!CE35<>"",Table!CE35,"") -> 10558 | H35: 0 | I35: =IF(Table!CG35<>"",Table!CG35,"") ->  | J35: =IF(Table!CH35<>"",Table!CH35,"") ->  | L35: =IF(Table!CI35<>"",Table!CI35,"") ->  | M35: =IF(Table!CJ35<>"",Table!CJ35,"") ->  | N35: =IF(Table!CK35<>"",Table!CK35,"") ->  | O35: =IF(Table!CL35<>"",Table!CL35,"") ->  | P35: =IF(Table!CM35<>"",Table!CM35,"") ->  | Q35: =IF(Table!CN35<>"",Table!CN35,"") ->  | R35: =IF(Table!CO35<>"",Table!CO35,"") ->  | S35: =IF(Table!CP35<>"",Table!CP35,"") ->  | T35: =IF(Table!CQ35<>"",Table!CQ35,"") -> 
A36: =IF(Table!A36<>"",Table!A36,"") -> 2024-11-30 | B36: =IF(Table!A36<>"",Table!A36,"") -> 2024-11-30 | C36: =IF(Table!CB36<>"",Table!CB36,"") ->  | D36: =IF(Table!CC36<>"",Table!CC36,"") ->  | F36: =IF(Table!CD36<>"",Table!CD36,"") ->  | G36: =IF(Table!CE36<>"",Table!CE36,"") -> 10558 | H36: =IF(AND(G37<>"",G36<>""),G37-G36, "") -> 0 | I36: =IF(Table!CG36<>"",Table!CG36,"") ->  | J36: =IF(Table!CH36<>"",Table!CH36,"") ->  | L36: =IF(Table!CI36<>"",Table!CI36,"") ->  | M36: =IF(Table!CJ36<>"",Table!CJ36,"") ->  | N36: =IF(Table!CK36<>"",Table!CK36,"") ->  | O36: =IF(Table!CL36<>"",Table!CL36,"") ->  | P36: =IF(Table!CM36<>"",Table!CM36,"") ->  | Q36: =IF(Table!CN36<>"",Table!CN36,"") ->  | R36: =IF(Table!CO36<>"",Table!CO36,"") ->  | S36: =IF(Table!CP36<>"",Table!CP36,"") ->  | T36: =IF(Table!CQ36<>"",Table!CQ36,"") -> 
A37: =IF(Table!A37<>"",Table!A37,"") -> 2024-12-01 | B37: =IF(Table!A37<>"",Table!A37,"") -> 2024-12-01 | C37: =IF(Table!CB37<>"",Table!CB37,"") ->  | D37: =IF(Table!CC37<>"",Table!CC37,"") ->  | F37: =IF(Table!CD37<>"",Table!CD37,"") ->  | G37: =IF(Table!CE37<>"",Table!CE37,"") -> 10558 | H37: =IF(AND(G38<>"",G37<>""),G38-G37, "") ->  | I37: =IF(Table!CG37<>"",Table!CG37,"") ->  | J37: =IF(Table!CH37<>"",Table!CH37,"") ->  | L37: =IF(Table!CI37<>"",Table!CI37,"") ->  | M37: =IF(Table!CJ37<>"",Table!CJ37,"") ->  | N37: =IF(Table!CK37<>"",Table!CK37,"") ->  | O37: =IF(Table!CL37<>"",Table!CL37,"") ->  | P37: =IF(Table!CM37<>"",Table!CM37,"") ->  | Q37: =IF(Table!CN37<>"",Table!CN37,"") ->  | R37: =IF(Table!CO37<>"",Table!CO37,"") ->  | S37: =IF(Table!CP37<>"",Table!CP37,"") ->  | T37: =IF(Table!CQ37<>"",Table!CQ37,"") -> 
A38: =ספיקות!A38 -> 2024-12-02 | B38: =ספיקות!B38 -> 2024-12-02 | C38: =IF(Table!CB38<>"",Table!CB38,"") ->  | D38: =IF(Table!CC38<>"",Table!CC38,"") ->  | F38: =IF(Table!CD38<>"",Table!CD38,"") ->  | G38: =IF(Table!CE38<>"",Table!CE38,"") ->  | I38: =IF(Table!CG38<>"",Table!CG38,"") ->  | J38: =IF(Table!CH38<>"",Table!CH38,"") ->  | L38: =IF(Table!CI38<>"",Table!CI38,"") ->  | M38: =IF(Table!CJ38<>"",Table!CJ38,"") ->  | N38: =IF(Table!CK38<>"",Table!CK38,"") ->  | O38: =IF(Table!CL38<>"",Table!CL38,"") ->  | P38: =IF(Table!CM38<>"",Table!CM38,"") ->  | Q38: =IF(Table!CN38<>"",Table!CN38,"") ->  | R38: =IF(Table!CO38<>"",Table!CO38,"") ->  | S38: =IF(Table!CP38<>"",Table!CP38,"") ->  | T38: =IF(Table!CQ38<>"",Table!CQ38,"") -> 
A39: סה"כ לחודש | G39: =IF(G38<>"",G38-G7,IF(G37<>"",G37-G7,IF(G36<>"",G36-G7,G35-G7))) -> 228 | H39: =SUM(H7:H38) -> 228 | L39: =SUM(L7:L38) -> 0 | M39: 13204 | N39: 1875 | O39: 0 | P39: 0 | R39: 24.8 | S39: 0 | T39: 2.54
A40: ממוצע | C40: =AVERAGE(C7:C38) ->  | F40: 0 | H40: 7.6 | I40: 18 | J40: 12.6 | L40: 0 | M40: 6602 | N40: 937.5 | O40: 0 | P40: 0 | R40: 12.4 | T40: 2.54
A41: מקסימום | C41: =MAX(C7:C38) -> 0 | D41: 0 | F41: 0 | H41: 48 | I41: 18 | J41: 12.6 | L41: 0 | M41: 13204 | N41: 1875 | O41: 0 | P41: 0 | R41: 24.8 | S41: 0 | T41: 2.54
A42: מינימום | C42: =MIN(C7:C38) -> 0 | D42: 0 | F42: 0 | H42: 0 | I42: 18 | J42: 12.6 | L42: 0 | M42: 0 | N42: 0 | O42: 0 | P42: 0 | R42: 0 | S42: 0 | T42: 2.54

Sheet עומסי שפכים וצריכת אנרגיה
A2: =סיכום!C11 -> מט"ש נובמבר 2024 | E2: נתוני תפעול - גליון 7 - עומסי שפכים וצריכת אנרגיה
A3: יחידת פעולה | C3: שפכים | D3: ח י ש ו ב ע ו מ ס י ם | I3: אחוזי הרחקה שפכים- קולחין שניוני | N3: צריכת אנרגיה
A4: תאריך | B4: יום בשבוע | C4: ספיקה יומית | D4: צח"ב | E4: צח"כ | F4: מוצקים מרחפים | G4: חנקן אמוניאקלי | H4: זרחן כללי | I4: הרחקת צח"ב כללי | J4: הרחקת צח"כ כללי | K4: הרחקת מוצקים מרחפים | L4: הרחקת חנקן אמוניאקלי | M4: הרחקת זרחן כללי | N4: קריאת מונה | P4: סה"כ צריכה סגולית יומית | Q4: לק"ג צחב מורחק
O5: צריכה יומית
C6: מ"ק/יום | D6: ק"ג/יום | E6: ק"ג/יום | F6: ק"ג/יום | G6: ק"ג/יום | H6: ק"ג/יום | I6: % | J6: % | K6: % | L6: % | M6: % | O6: קוו"טש /יום | Q6: קוו"ש/ק"ג צח"ב
A7: =IF(Table!A7<>"",Table!A7,"") -> 2024-11-01 | B7: =IF(Table!A7<>"",Table!A7,"") -> 2024-11-01 | C7: =ספיקות!J7 -> 1526 | D7: =IF(AND(C7<>"",'איכות שפכים'!C7<>""),C7*'איכות שפכים'!C7/1000, "") ->  | E7: =IF(AND(C7<>"",'איכות שפכים'!D7<>""),C7*'איכות שפכים'!D7/1000, "") ->  | F7: =IF(AND(C7<>"",'איכות שפכים'!E7<>""),C7*'איכות שפכים'!E7/1000, "") ->  | G7: =IF(AND(C7<>"",'איכות שפכים'!F7<>""),C7*'איכות שפכים'!F7/1000, "") ->  | H7: =IF(AND(C7<>"",'איכות שפכים'!I7<>""),C7*'איכות שפכים'!I7/1000, "") ->  | I7: =IF(AND('קולחין שניוני'!C7<>"",'איכות שפכים'!C7<>""),100%-('קולחין שניוני'!C7/'איכות שפכים'!C7), "") ->  | J7: =IF(AND('קולחין שניוני'!D7<>"",'איכות שפכים'!D7<>""),100%-('קולחין שניוני'!D7/'איכות שפכים'!D7), "") ->  | K7: =IF(AND('קולחין שניוני'!E7<>"",'איכות שפכים'!E7<>""),100%-('קולחין שניוני'!E7/'איכות שפכים'!E7), "") ->  | L7: =IF(AND('קולחין שניוני'!F7<>"",'איכות שפכים'!F7<>""),100%-('קולחין שניוני'!F7/'איכות שפכים'!F7), "") ->  | M7: =IF(AND('קולחין שניוני'!H7<>"",'איכות שפכים'!I7<>""),100%-('קולחין שניוני'!H7/'איכות שפכים'!I7), "") ->  | O7: =IF(Table!CR7<>"",Table!CR7,"") -> 1416 | P7: =IF(AND(O7<>"",C7<>""),O7/C7, "") -> 0.9279161206 | Q7: =IF(AND(O7<>"",D7<>""),O7/D7, "") -> 
A8: =IF(Table!A8<>"",Table!A8,"") -> 2024-11-02 | B8: =IF(Table!A8<>"",Table!A8,"") -> 2024-11-02 | C8: =ספיקות!J8 -> 1440 | D8: =IF(AND(C8<>"",'איכות שפכים'!C8<>""),C8*'איכות שפכים'!C8/1000, "") ->  | E8: =IF(AND(C8<>"",'איכות שפכים'!D8<>""),C8*'איכות שפכים'!D8/1000, "") ->  | F8: =IF(AND(C8<>"",'איכות שפכים'!E8<>""),C8*'איכות שפכים'!E8/1000, "") ->  | G8: =IF(AND(C8<>"",'איכות שפכים'!F8<>""),C8*'איכות שפכים'!F8/1000, "") ->  | H8: =IF(AND(C8<>"",'איכות שפכים'!I8<>""),C8*'איכות שפכים'!I8/1000, "") ->  | I8: =IF(AND('קולחין שניוני'!C8<>"",'איכות שפכים'!C8<>""),100%-('קולחין שניוני'!C8/'איכות שפכים'!C8), "") ->  | J8: =IF(AND('קולחין שניוני'!D8<>"",'איכות שפכים'!D8<>""),100%-('קולחין שניוני'!D8/'איכות שפכים'!D8), "") ->  | K8: =IF(AND('קולחין שניוני'!E8<>"",'איכות שפכים'!E8<>""),100%-('קולחין שניוני'!E8/'איכות שפכים'!E8), "") ->  | L8: =IF(AND('קולחין שניוני'!F8<>"",'איכות שפכים'!F8<>""),100%-('קולחין שניוני'!F8/'איכות שפכים'!F8), "") ->  | M8: =IF(AND('קולחין שניוני'!H8<>"",'איכות שפכים'!I8<>""),100%-('קולחין שניוני'!H8/'איכות שפכים'!I8), "") ->  | O8: =IF(Table!CR8<>"",Table!CR8,"") -> 786 | P8: =IF(AND(O8<>"",C8<>""),O8/C8, "") -> 0.5458333333 | Q8: =IF(AND(O8<>"",D8<>""),O8/D8, "") -> 
A9: =IF(Table!A9<>"",Table!A9,"") -> 2024-11-03 | B9: =IF(Table!A9<>"",Table!A9,"") -> 2024-11-03 | C9: =ספיקות!J9 -> 1555 | D9: =IF(AND(C9<>"",'איכות שפכים'!C9<>""),C9*'איכות שפכים'!C9/1000, "") ->  | E9: =IF(AND(C9<>"",'איכות שפכים'!D9<>""),C9*'איכות שפכים'!D9/1000, "") ->  | F9: =IF(AND(C9<>"",'איכות שפכים'!E9<>""),C9*'איכות שפכים'!E9/1000, "") ->  | G9: =IF(AND(C9<>"",'איכות שפכים'!F9<>""),C9*'איכות שפכים'!F9/1000, "") ->  | H9: =IF(AND(C9<>"",'איכות שפכים'!I9<>""),C9*'איכות שפכים'!I9/1000, "") ->  | I9: =IF(AND('קולחין שניוני'!C9<>"",'איכות שפכים'!C9<>""),100%-('קולחין שניוני'!C9/'איכות שפכים'!C9), "") ->  | J9: =IF(AND('קולחין שניוני'!D9<>"",'איכות שפכים'!D9<>""),100%-('קולחין שניוני'!D9/'איכות שפכים'!D9), "") ->  | K9: =IF(AND('קולחין שניוני'!E9<>"",'איכות שפכים'!E9<>""),100%-('קולחין שניוני'!E9/'איכות שפכים'!E9), "") ->  | L9: =IF(AND('קולחין שניוני'!F9<>"",'איכות שפכים'!F9<>""),100%-('קולחין שניוני'!F9/'איכות שפכים'!F9), "") ->  | M9: =IF(AND('קולחין שניוני'!H9<>"",'איכות שפכים'!I9<>""),100%-('קולחין שניוני'!H9/'איכות שפכים'!I9), "") ->  | O9: =IF(Table!CR9<>"",Table!CR9,"") -> 1962 | P9: 1.261736334
A10: =IF(Table!A10<>"",Table!A10,"") -> 2024-11-04 | B10: =IF(Table!A10<>"",Table!A10,"") -> 2024-11-04 | C10: =ספיקות!J10 -> 1457 | D10: =IF(AND(C10<>"",'איכות שפכים'!C10<>""),C10*'איכות שפכים'!C10/1000, "") -> 431.272 | E10: =IF(AND(C10<>"",'איכות שפכים'!D10<>""),C10*'איכות שפכים'!D10/1000, "") -> 1046.126 | F10: =IF(AND(C10<>"",'איכות שפכים'!E10<>""),C10*'איכות שפכים'!E10/1000, "") -> 428.358 | G10: =IF(AND(C10<>"",'איכות שפכים'!F10<>""),C10*'איכות שפכים'!F10/1000, "") -> 50.77645 | H10: =IF(AND(C10<>"",'איכות שפכים'!I10<>""),C10*'איכות שפכים'!I10/1000, "") -> 9.3248 | I10: =IF(AND('קולחין שניוני'!C10<>"",'איכות שפכים'!C10<>""),100%-('קולחין שניוני'!C10/'איכות שפכים'!C10), "") -> 0.9831081081 | J10: =IF(AND('קולחין שניוני'!D10<>"",'איכות שפכים'!D10<>""),100%-('קולחין שניוני'!D10/'איכות שפכים'!D10), "") -> 0.9651810585 | K10: =IF(AND('קולחין שניוני'!E10<>"",'איכות שפכים'!E10<>""),100%-('קולחין שניוני'!E10/'איכות שפכים'!E10), "") -> 0.9829931973 | L10: =IF(AND('קולחין שניוני'!F10<>"",'איכות שפכים'!F10<>""),100%-('קולחין שניוני'!F10/'איכות שפכים'!F10), "") ->  | M10: =IF(AND('קולחין שניוני'!H10<>"",'איכות שפכים'!I10<>""),100%-('קולחין שניוני'!H10/'איכות שפכים'!I10), "") -> 0.1875 | O10: =IF(Table!CR10<>"",Table!CR10,"") -> 1986 | P10: 1.363074811 | Q10: 4.60498247
A11: =IF(Table!A11<>"",Table!A11,"") -> 2024-11-05 | B11: =IF(Table!A11<>"",Table!A11,"") -> 2024-11-05 | C11: =ספיקות!J11 -> 1480 | D11: =IF(AND(C11<>"",'איכות שפכים'!C11<>""),C11*'איכות שפכים'!C11/1000, "") ->  | E11: =IF(AND(C11<>"",'איכות שפכים'!D11<>""),C11*'איכות שפכים'!D11/1000, "") ->  | F11: =IF(AND(C11<>"",'איכות שפכים'!E11<>""),C11*'איכות שפכים'!E11/1000, "") ->  | G11: =IF(AND(C11<>"",'איכות שפכים'!F11<>""),C11*'איכות שפכים'!F11/1000, "") ->  | H11: =IF(AND(C11<>"",'איכות שפכים'!I11<>""),C11*'איכות שפכים'!I11/1000, "") ->  | I11: =IF(AND('קולחין שניוני'!C11<>"",'איכות שפכים'!C11<>""),100%-('קולחין שניוני'!C11/'איכות שפכים'!C11), "") ->  | J11: =IF(AND('קולחין שניוני'!D11<>"",'איכות שפכים'!D11<>""),100%-('קולחין שניוני'!D11/'איכות שפכים'!D11), "") ->  | K11: =IF(AND('קולחין שניוני'!E11<>"",'איכות שפכים'!E11<>""),100%-('קולחין שניוני'!E11/'איכות שפכים'!E11), "") ->  | L11: =IF(AND('קולחין שניוני'!F11<>"",'איכות שפכים'!F11<>""),100%-('קולחין שניוני'!F11/'איכות שפכים'!F11), "") ->  | M11: =IF(AND('קולחין שניוני'!H11<>"",'איכות שפכים'!I11<>""),100%-('קולחין שניוני'!H11/'איכות שפכים'!I11), "") ->  | O11: =IF(Table!CR11<>"",Table!CR11,"") -> 2094 | P11: 1.414864865
A12: =IF(Table!A12<>"",Table!A12,"") -> 2024-11-06 | B12: =IF(Table!A12<>"",Table!A12,"") -> 2024-11-06 | C12: =ספיקות!J12 -> 1470 | D12: =IF(AND(C12<>"",'איכות שפכים'!C12<>""),C12*'איכות שפכים'!C12/1000, "") ->  | E12: =IF(AND(C12<>"",'איכות שפכים'!D12<>""),C12*'איכות שפכים'!D12/1000, "") ->  | F12: =IF(AND(C12<>"",'איכות שפכים'!E12<>""),C12*'איכות שפכים'!E12/1000, "") ->  | G12: =IF(AND(C12<>"",'איכות שפכים'!F12<>""),C12*'איכות שפכים'!F12/1000, "") ->  | H12: =IF(AND(C12<>"",'איכות שפכים'!I12<>""),C12*'איכות שפכים'!I12/1000, "") ->  | I12: =IF(AND('קולחין שניוני'!C12<>"",'איכות שפכים'!C12<>""),100%-('קולחין שניוני'!C12/'איכות שפכים'!C12), "") ->  | J12: =IF(AND('קולחין שניוני'!D12<>"",'איכות שפכים'!D12<>""),100%-('קולחין שניוני'!D12/'איכות שפכים'!D12), "") ->  | K12: =IF(AND('קולחין שניוני'!E12<>"",'איכות שפכים'!E12<>""),100%-('קולחין שניוני'!E12/'איכות שפכים'!E12), "") ->  | L12: =IF(AND('קולחין שניוני'!F12<>"",'איכות שפכים'!F12<>""),100%-('קולחין שניוני'!F12/'איכות שפכים'!F12), "") ->  | M12: =IF(AND('קולחין שניוני'!H12<>"",'איכות שפכים'!I12<>""),100%-('קולחין שניוני'!H12/'איכות שפכים'!I12), "") ->  | O12: =IF(Table!CR12<>"",Table!CR12,"") -> 1980 | P12: 1.346938776
A13: =IF(Table!A13<>"",Table!A13,"") -> 2024-11-07 | B13: =IF(Table!A13<>"",Table!A13,"") -> 2024-11-07 | C13: =ספיקות!J13 -> 1504 | D13: =IF(AND(C13<>"",'איכות שפכים'!C13<>""),C13*'איכות שפכים'!C13/1000, "") ->  | E13: =IF(AND(C13<>"",'איכות שפכים'!D13<>""),C13*'איכות שפכים'!D13/1000, "") ->  | F13: =IF(AND(C13<>"",'איכות שפכים'!E13<>""),C13*'איכות שפכים'!E13/1000, "") ->  | G13: =IF(AND(C13<>"",'איכות שפכים'!F13<>""),C13*'איכות שפכים'!F13/1000, "") ->  | H13: =IF(AND(C13<>"",'איכות שפכים'!I13<>""),C13*'איכות שפכים'!I13/1000, "") ->  | I13: =IF(AND('קולחין שניוני'!C13<>"",'איכות שפכים'!C13<>""),100%-('קולחין שניוני'!C13/'איכות שפכים'!C13), "") ->  | J13: =IF(AND('קולחין שניוני'!D13<>"",'איכות שפכים'!D13<>""),100%-('קולחין שניוני'!D13/'איכות שפכים'!D13), "") ->  | K13: =IF(AND('קולחין שניוני'!E13<>"",'איכות שפכים'!E13<>""),100%-('קולחין שניוני'!E13/'איכות שפכים'!E13), "") ->  | L13: =IF(AND('קולחין שניוני'!F13<>"",'איכות שפכים'!F13<>""),100%-('קולחין שניוני'!F13/'איכות שפכים'!F13), "") ->  | M13: =IF(AND('קולחין שניוני'!H13<>"",'איכות שפכים'!I13<>""),100%-('קולחין שניוני'!H13/'איכות שפכים'!I13), "") ->  | O13: =IF(Table!CR13<>"",Table!CR13,"") -> 2142 | P13: 1.424202128
A14: =IF(Table!A14<>"",Table!A14,"") -> 2024-11-08 | B14: =IF(Table!A14<>"",Table!A14,"") -> 2024-11-08 | C14: =ספיקות!J14 -> 1527 | D14: =IF(AND(C14<>"",'איכות שפכים'!C14<>""),C14*'איכות שפכים'!C14/1000, "") ->  | E14: =IF(AND(C14<>"",'איכות שפכים'!D14<>""),C14*'איכות שפכים'!D14/1000, "") ->  | F14: =IF(AND(C14<>"",'איכות שפכים'!E14<>""),C14*'איכות שפכים'!E14/1000, "") ->  | G14: =IF(AND(C14<>"",'איכות שפכים'!F14<>""),C14*'איכות שפכים'!F14/1000, "") ->  | H14: =IF(AND(C14<>"",'איכות שפכים'!I14<>""),C14*'איכות שפכים'!I14/1000, "") ->  | I14: =IF(AND('קולחין שניוני'!C14<>"",'איכות שפכים'!C14<>""),100%-('קולחין שניוני'!C14/'איכות שפכים'!C14), "") ->  | J14: =IF(AND('קולחין שניוני'!D14<>"",'איכות שפכים'!D14<>""),100%-('קולחין שניוני'!D14/'איכות שפכים'!D14), "") ->  | K14: =IF(AND('קולחין שניוני'!E14<>"",'איכות שפכים'!E14<>""),100%-('קולחין שניוני'!E14/'איכות שפכים'!E14), "") ->  | L14: =IF(AND('קולחין שניוני'!F14<>"",'איכות שפכים'!F14<>""),100%-('קולחין שניוני'!F14/'איכות שפכים'!F14), "") ->  | M14: =IF(AND('קולחין שניוני'!H14<>"",'איכות שפכים'!I14<>""),100%-('קולחין שניוני'!H14/'איכות שפכים'!I14), "") ->  | O14: =IF(Table!CR14<>"",Table!CR14,"") -> 1494 | P14: 0.978388998
A15: =IF(Table!A15<>"",Table!A15,"") -> 2024-11-09 | B15: =IF(Table!A15<>"",Table!A15,"") -> 2024-11-09 | C15: =ספיקות!J15 -> 1516 | D15: =IF(AND(C15<>"",'איכות שפכים'!C15<>""),C15*'איכות שפכים'!C15/1000, "") ->  | E15: =IF(AND(C15<>"",'איכות שפכים'!D15<>""),C15*'איכות שפכים'!D15/1000, "") ->  | F15: =IF(AND(C15<>"",'איכות שפכים'!E15<>""),C15*'איכות שפכים'!E15/1000, "") ->  | G15: =IF(AND(C15<>"",'איכות שפכים'!F15<>""),C15*'איכות שפכים'!F15/1000, "") ->  | H15: =IF(AND(C15<>"",'איכות שפכים'!I15<>""),C15*'איכות שפכים'!I15/1000, "") ->  | I15: =IF(AND('קולחין שניוני'!C15<>"",'איכות שפכים'!C15<>""),100%-('קולחין שניוני'!C15/'איכות שפכים'!C15), "") ->  | J15: =IF(AND('קולחין שניוני'!D15<>"",'איכות שפכים'!D15<>""),100%-('קולחין שניוני'!D15/'איכות שפכים'!D15), "") ->  | K15: =IF(AND('קולחין שניוני'!E15<>"",'איכות שפכים'!E15<>""),100%-('קולחין שניוני'!E15/'איכות שפכים'!E15), "") ->  | L15: =IF(AND('קולחין שניוני'!F15<>"",'איכות שפכים'!F15<>""),100%-('קולחין שניוני'!F15/'איכות שפכים'!F15), "") ->  | M15: =IF(AND('קולחין שניוני'!H15<>"",'איכות שפכים'!I15<>""),100%-('קולחין שניוני'!H15/'איכות שפכים'!I15), "") ->  | O15: =IF(Table!CR15<>"",Table!CR15,"") -> 972 | P15: 0.6411609499
A16: =IF(Table!A16<>"",Table!A16,"") -> 2024-11-10 | B16: =IF(Table!A16<>"",Table!A16,"") -> 2024-11-10 | C16: =ספיקות!J16 -> 1548 | D16: =IF(AND(C16<>"",'איכות שפכים'!C16<>""),C16*'איכות שפכים'!C16/1000, "") ->  | E16: =IF(AND(C16<>"",'איכות שפכים'!D16<>""),C16*'איכות שפכים'!D16/1000, "") ->  | F16: =IF(AND(C16<>"",'איכות שפכים'!E16<>""),C16*'איכות שפכים'!E16/1000, "") ->  | G16: =IF(AND(C16<>"",'איכות שפכים'!F16<>""),C16*'איכות שפכים'!F16/1000, "") ->  | H16: =IF(AND(C16<>"",'איכות שפכים'!I16<>""),C16*'איכות שפכים'!I16/1000, "") ->  | I16: =IF(AND('קולחין שניוני'!C16<>"",'איכות שפכים'!C16<>""),100%-('קולחין שניוני'!C16/'איכות שפכים'!C16), "") ->  | J16: =IF(AND('קולחין שניוני'!D16<>"",'איכות שפכים'!D16<>""),100%-('קולחין שניוני'!D16/'איכות שפכים'!D16), "") ->  | K16: =IF(AND('קולחין שניוני'!E16<>"",'איכות שפכים'!E16<>""),100%-('קולחין שניוני'!E16/'איכות שפכים'!E16), "") ->  | L16: =IF(AND('קולחין שניוני'!F16<>"",'איכות שפכים'!F16<>""),100%-('קולחין שניוני'!F16/'איכות שפכים'!F16), "") ->  | M16: =IF(AND('קולחין שניוני'!H16<>"",'איכות שפכים'!I16<>""),100%-('קולחין שניוני'!H16/'איכות שפכים'!I16), "") ->  | O16: =IF(Table!CR16<>"",Table!CR16,"") -> 2016 | P16: 1.302325581
A17: =IF(Table!A17<>"",Table!A17,"") -> 2024-11-11 | B17: =IF(Table!A17<>"",Table!A17,"") -> 2024-11-11 | C17: =ספיקות!J17 -> 1469 | D17: =IF(AND(C17<>"",'איכות שפכים'!C17<>""),C17*'איכות שפכים'!C17/1000, "") ->  | E17: =IF(AND(C17<>"",'איכות שפכים'!D17<>""),C17*'איכות שפכים'!D17/1000, "") ->  | F17: =IF(AND(C17<>"",'איכות שפכים'!E17<>""),C17*'איכות שפכים'!E17/1000, "") ->  | G17: =IF(AND(C17<>"",'איכות שפכים'!F17<>""),C17*'איכות שפכים'!F17/1000, "") ->  | H17: =IF(AND(C17<>"",'איכות שפכים'!I17<>""),C17*'איכות שפכים'!I17/1000, "") ->  | I17: =IF(AND('קולחין שניוני'!C17<>"",'איכות שפכים'!C17<>""),100%-('קולחין שניוני'!C17/'איכות שפכים'!C17), "") ->  | J17: =IF(AND('קולחין שניוני'!D17<>"",'איכות שפכים'!D17<>""),100%-('קולחין שניוני'!D17/'איכות שפכים'!D17), "") ->  | K17: =IF(AND('קולחין שניוני'!E17<>"",'איכות שפכים'!E17<>""),100%-('קולחין שניוני'!E17/'איכות שפכים'!E17), "") ->  | L17: =IF(AND('קולחין שניוני'!F17<>"",'איכות שפכים'!F17<>""),100%-('קולחין שניוני'!F17/'איכות שפכים'!F17), "") ->  | M17: =IF(AND('קולחין שניוני'!H17<>"",'איכות שפכים'!I17<>""),100%-('קולחין שניוני'!H17/'איכות שפכים'!I17), "") ->  | O17: =IF(Table!CR17<>"",Table!CR17,"") -> 1812 | P17: 1.233492172
A18: =IF(Table!A18<>"",Table!A18,"") -> 2024-11-12 | B18: =IF(Table!A18<>"",Table!A18,"") -> 2024-11-12 | C18: =ספיקות!J18 -> 1395 | D18: =IF(AND(C18<>"",'איכות שפכים'!C18<>""),C18*'איכות שפכים'!C18/1000, "") ->  | E18: =IF(AND(C18<>"",'איכות שפכים'!D18<>""),C18*'איכות שפכים'!D18/1000, "") ->  | F18: =IF(AND(C18<>"",'איכות שפכים'!E18<>""),C18*'איכות שפכים'!E18/1000, "") ->  | G18: =IF(AND(C18<>"",'איכות שפכים'!F18<>""),C18*'איכות שפכים'!F18/1000, "") ->  | H18: =IF(AND(C18<>"",'איכות שפכים'!I18<>""),C18*'איכות שפכים'!I18/1000, "") ->  | I18: =IF(AND('קולחין שניוני'!C18<>"",'איכות שפכים'!C18<>""),100%-('קולחין שניוני'!C18/'איכות שפכים'!C18), "") ->  | J18: =IF(AND('קולחין שניוני'!D18<>"",'איכות שפכים'!D18<>""),100%-('קולחין שניוני'!D18/'איכות שפכים'!D18), "") ->  | K18: =IF(AND('קולחין שניוני'!E18<>"",'איכות שפכים'!E18<>""),100%-('קולחין שניוני'!E18/'איכות שפכים'!E18), "") ->  | L18: =IF(AND('קולחין שניוני'!F18<>"",'איכות שפכים'!F18<>""),100%-('קולחין שניוני'!F18/'איכות שפכים'!F18), "") ->  | M18: =IF(AND('קולחין שניוני'!H18<>"",'איכות שפכים'!I18<>""),100%-('קולחין שניוני'!H18/'איכות שפכים'!I18), "") ->  | O18: =IF(Table!CR18<>"",Table!CR18,"") -> 1848 | P18: 1.324731183
A19: =IF(Table!A19<>"",Table!A19,"") -> 2024-11-13 | B19: =IF(Table!A19<>"",Table!A19,"") -> 2024-11-13 | C19: =ספיקות!J19 -> 1337 | D19: =IF(AND(C19<>"",'איכות שפכים'!C19<>""),C19*'איכות שפכים'!C19/1000, "") ->  | E19: =IF(AND(C19<>"",'איכות שפכים'!D19<>""),C19*'איכות שפכים'!D19/1000, "") ->  | F19: =IF(AND(C19<>"",'איכות שפכים'!E19<>""),C19*'איכות שפכים'!E19/1000, "") ->  | G19: =IF(AND(C19<>"",'איכות שפכים'!F19<>""),C19*'איכות שפכים'!F19/1000, "") ->  | H19: =IF(AND(C19<>"",'איכות שפכים'!I19<>""),C19*'איכות שפכים'!I19/1000, "") ->  | I19: =IF(AND('קולחין שניוני'!C19<>"",'איכות שפכים'!C19<>""),100%-('קולחין שניוני'!C19/'איכות שפכים'!C19), "") ->  | J19: =IF(AND('קולחין שניוני'!D19<>"",'איכות שפכים'!D19<>""),100%-('קולחין שניוני'!D19/'איכות שפכים'!D19), "") ->  | K19: =IF(AND('קולחין שניוני'!E19<>"",'איכות שפכים'!E19<>""),100%-('קולחין שניוני'!E19/'איכות שפכים'!E19), "") ->  | L19: =IF(AND('קולחין שניוני'!F19<>"",'איכות שפכים'!F19<>""),100%-('קולחין שניוני'!F19/'איכות שפכים'!F19), "") ->  | M19: =IF(AND('קולחין שניוני'!H19<>"",'איכות שפכים'!I19<>""),100%-('קולחין שניוני'!H19/'איכות שפכים'!I19), "") ->  | O19: =IF(Table!CR19<>"",Table!CR19,"") -> 1614 | P19: 1.207180254
A20: =IF(Table!A20<>"",Table!A20,"") -> 2024-11-14 | B20: =IF(Table!A20<>"",Table!A20,"") -> 2024-11-14 | C20: =ספיקות!J20 -> 1278 | D20: =IF(AND(C20<>"",'איכות שפכים'!C20<>""),C20*'איכות שפכים'!C20/1000, "") ->  | E20: =IF(AND(C20<>"",'איכות שפכים'!D20<>""),C20*'איכות שפכים'!D20/1000, "") ->  | F20: =IF(AND(C20<>"",'איכות שפכים'!E20<>""),C20*'איכות שפכים'!E20/1000, "") ->  | G20: =IF(AND(C20<>"",'איכות שפכים'!F20<>""),C20*'איכות שפכים'!F20/1000, "") ->  | H20: =IF(AND(C20<>"",'איכות שפכים'!I20<>""),C20*'איכות שפכים'!I20/1000, "") ->  | I20: =IF(AND('קולחין שניוני'!C20<>"",'איכות שפכים'!C20<>""),100%-('קולחין שניוני'!C20/'איכות שפכים'!C20), "") ->  | J20: =IF(AND('קולחין שניוני'!D20<>"",'איכות שפכים'!D20<>""),100%-('קולחין שניוני'!D20/'איכות שפכים'!D20), "") ->  | K20: =IF(AND('קולחין שניוני'!E20<>"",'איכות שפכים'!E20<>""),100%-('קולחין שניוני'!E20/'איכות שפכים'!E20), "") ->  | L20: =IF(AND('קולחין שניוני'!F20<>"",'איכות שפכים'!F20<>""),100%-('קולחין שניוני'!F20/'איכות שפכים'!F20), "") ->  | M20: =IF(AND('קולחין שניוני'!H20<>"",'איכות שפכים'!I20<>""),100%-('קולחין שניוני'!H20/'איכות שפכים'!I20), "") ->  | O20: =IF(Table!CR20<>"",Table!CR20,"") -> 1806 | P20: 1.41314554
A21: =IF(Table!A21<>"",Table!A21,"") -> 2024-11-15 | B21: =IF(Table!A21<>"",Table!A21,"") -> 2024-11-15 | C21: =ספיקות!J21 -> 1388 | D21: =IF(AND(C21<>"",'איכות שפכים'!C21<>""),C21*'איכות שפכים'!C21/1000, "") ->  | E21: =IF(AND(C21<>"",'איכות שפכים'!D21<>""),C21*'איכות שפכים'!D21/1000, "") ->  | F21: =IF(AND(C21<>"",'איכות שפכים'!E21<>""),C21*'איכות שפכים'!E21/1000, "") ->  | G21: =IF(AND(C21<>"",'איכות שפכים'!F21<>""),C21*'איכות שפכים'!F21/1000, "") ->  | H21: =IF(AND(C21<>"",'איכות שפכים'!I21<>""),C21*'איכות שפכים'!I21/1000, "") ->  | I21: =IF(AND('קולחין שניוני'!C21<>"",'איכות שפכים'!C21<>""),100%-('קולחין שניוני'!C21/'איכות שפכים'!C21), "") ->  | J21: =IF(AND('קולחין שניוני'!D21<>"",'איכות שפכים'!D21<>""),100%-('קולחין שניוני'!D21/'איכות שפכים'!D21), "") ->  | K21: =IF(AND('קולחין שניוני'!E21<>"",'איכות שפכים'!E21<>""),100%-('קולחין שניוני'!E21/'איכות שפכים'!E21), "") ->  | L21: =IF(AND('קולחין שניוני'!F21<>"",'איכות שפכים'!F21<>""),100%-('קולחין שניוני'!F21/'איכות שפכים'!F21), "") ->  | M21: =IF(AND('קולחין שניוני'!H21<>"",'איכות שפכים'!I21<>""),100%-('קולחין שניוני'!H21/'איכות שפכים'!I21), "") ->  | O21: =IF(Table!CR21<>"",Table!CR21,"") -> 1236 | P21: 0.8904899135
A22: =IF(Table!A22<>"",Table!A22,"") -> 2024-11-16 | B22: =IF(Table!A22<>"",Table!A22,"") -> 2024-11-16 | C22: =ספיקות!J22 -> 1299 | D22: =IF(AND(C22<>"",'איכות שפכים'!C22<>""),C22*'איכות שפכים'!C22/1000, "") ->  | E22: =IF(AND(C22<>"",'איכות שפכים'!D22<>""),C22*'איכות שפכים'!D22/1000, "") ->  | F22: =IF(AND(C22<>"",'איכות שפכים'!E22<>""),C22*'איכות שפכים'!E22/1000, "") ->  | G22: =IF(AND(C22<>"",'איכות שפכים'!F22<>""),C22*'איכות שפכים'!F22/1000, "") ->  | H22: =IF(AND(C22<>"",'איכות שפכים'!I22<>""),C22*'איכות שפכים'!I22/1000, "") ->  | I22: =IF(AND('קולחין שניוני'!C22<>"",'איכות שפכים'!C22<>""),100%-('קולחין שניוני'!C22/'איכות שפכים'!C22), "") ->  | J22: =IF(AND('קולחין שניוני'!D22<>"",'איכות שפכים'!D22<>""),100%-('קולחין שניוני'!D22/'איכות שפכים'!D22), "") ->  | K22: =IF(AND('קולחין שניוני'!E22<>"",'איכות שפכים'!E22<>""),100%-('קולחין שניוני'!E22/'איכות שפכים'!E22), "") ->  | L22: =IF(AND('קולחין שניוני'!F22<>"",'איכות שפכים'!F22<>""),100%-('קולחין שניוני'!F22/'איכות שפכים'!F22), "") ->  | M22: =IF(AND('קולחין שניוני'!H22<>"",'איכות שפכים'!I22<>""),100%-('קולחין שניוני'!H22/'איכות שפכים'!I22), "") ->  | O22: =IF(Table!CR22<>"",Table!CR22,"") -> 714 | P22: 0.5496535797
A23: =IF(Table!A23<>"",Table!A23,"") -> 2024-11-17 | B23: =IF(Table!A23<>"",Table!A23,"") -> 2024-11-17 | C23: =ספיקות!J23 -> 1428 | D23: =IF(AND(C23<>"",'איכות שפכים'!C23<>""),C23*'איכות שפכים'!C23/1000, "") ->  | E23: =IF(AND(C23<>"",'איכות שפכים'!D23<>""),C23*'איכות שפכים'!D23/1000, "") ->  | F23: =IF(AND(C23<>"",'איכות שפכים'!E23<>""),C23*'איכות שפכים'!E23/1000, "") ->  | G23: =IF(AND(C23<>"",'איכות שפכים'!F23<>""),C23*'איכות שפכים'!F23/1000, "") ->  | H23: =IF(AND(C23<>"",'איכות שפכים'!I23<>""),C23*'איכות שפכים'!I23/1000, "") ->  | I23: =IF(AND('קולחין שניוני'!C23<>"",'איכות שפכים'!C23<>""),100%-('קולחין שניוני'!C23/'איכות שפכים'!C23), "") ->  | J23: =IF(AND('קולחין שניוני'!D23<>"",'איכות שפכים'!D23<>""),100%-('קולחין שניוני'!D23/'איכות שפכים'!D23), "") ->  | K23: =IF(AND('קולחין שניוני'!E23<>"",'איכות שפכים'!E23<>""),100%-('קולחין שניוני'!E23/'איכות שפכים'!E23), "") ->  | L23: =IF(AND('קולחין שניוני'!F23<>"",'איכות שפכים'!F23<>""),100%-('קולחין שניוני'!F23/'איכות שפכים'!F23), "") ->  | M23: =IF(AND('קולחין שניוני'!H23<>"",'איכות שפכים'!I23<>""),100%-('קולחין שניוני'!H23/'איכות שפכים'!I23), "") ->  | O23: =IF(Table!CR23<>"",Table!CR23,"") -> 1872 | P23: 1.31092437
A24: =IF(Table!A24<>"",Table!A24,"") -> 2024-11-18 | B24: =IF(Table!A24<>"",Table!A24,"") -> 2024-11-18 | C24: =ספיקות!J24 -> 1615 | D24: =IF(AND(C24<>"",'איכות שפכים'!C24<>""),C24*'איכות שפכים'!C24/1000, "") -> 801.04 | E24: =IF(AND(C24<>"",'איכות שפכים'!D24<>""),C24*'איכות שפכים'!D24/1000, "") -> 1837.87 | F24: =IF(AND(C24<>"",'איכות שפכים'!E24<>""),C24*'איכות שפכים'!E24/1000, "") -> 741.285 | G24: =IF(AND(C24<>"",'איכות שפכים'!F24<>""),C24*'איכות שפכים'!F24/1000, "") -> 75.7435 | H24: =IF(AND(C24<>"",'איכות שפכים'!I24<>""),C24*'איכות שפכים'!I24/1000, "") ->  | I24: =IF(AND('קולחין שניוני'!C24<>"",'איכות שפכים'!C24<>""),100%-('קולחין שניוני'!C24/'איכות שפכים'!C24), "") ->  | J24: =IF(AND('קולחין שניוני'!D24<>"",'איכות שפכים'!D24<>""),100%-('קולחין שניוני'!D24/'איכות שפכים'!D24), "") ->  | K24: =IF(AND('קולחין שניוני'!E24<>"",'איכות שפכים'!E24<>""),100%-('קולחין שניוני'!E24/'איכות שפכים'!E24), "") ->  | L24: =IF(AND('קולחין שניוני'!F24<>"",'איכות שפכים'!F24<>""),100%-('קולחין שניוני'!F24/'איכות שפכים'!F24), "") ->  | M24: =IF(AND('קולחין שניוני'!H24<>"",'איכות שפכים'!I24<>""),100%-('קולחין שניוני'!H24/'איכות שפכים'!I24), "") ->  | O24: =IF(Table!CR24<>"",Table!CR24,"") -> 1608 | P24: 0.9956656347 | Q24: 2.007390392
A25: =IF(Table!A25<>"",Table!A25,"") -> 2024-11-19 | B25: =IF(Table!A25<>"",Table!A25,"") -> 2024-11-19 | C25: =ספיקות!J25 -> 1427 | D25: =IF(AND(C25<>"",'איכות שפכים'!C25<>""),C25*'איכות שפכים'!C25/1000, "") ->  | E25: =IF(AND(C25<>"",'איכות שפכים'!D25<>""),C25*'איכות שפכים'!D25/1000, "") ->  | F25: =IF(AND(C25<>"",'איכות שפכים'!E25<>""),C25*'איכות שפכים'!E25/1000, "") ->  | G25: =IF(AND(C25<>"",'איכות שפכים'!F25<>""),C25*'איכות שפכים'!F25/1000, "") ->  | H25: =IF(AND(C25<>"",'איכות שפכים'!I25<>""),C25*'איכות שפכים'!I25/1000, "") ->  | I25: =IF(AND('קולחין שניוני'!C25<>"",'איכות שפכים'!C25<>""),100%-('קולחין שניוני'!C25/'איכות שפכים'!C25), "") ->  | J25: =IF(AND('קולחין שניוני'!D25<>"",'איכות שפכים'!D25<>""),100%-('קולחין שניוני'!D25/'איכות שפכים'!D25), "") ->  | K25: =IF(AND('קולחין שניוני'!E25<>"",'איכות שפכים'!E25<>""),100%-('קולחין שניוני'!E25/'איכות שפכים'!E25), "") ->  | L25: =IF(AND('קולחין שניוני'!F25<>"",'איכות שפכים'!F25<>""),100%-('קולחין שניוני'!F25/'איכות שפכים'!F25), "") ->  | M25: =IF(AND('קולחין שניוני'!H25<>"",'איכות שפכים'!I25<>""),100%-('קולחין שניוני'!H25/'איכות שפכים'!I25), "") ->  | O25: =IF(Table!CR25<>"",Table!CR25,"") -> 1422 | P25: 0.9964961458
A26: =IF(Table!A26<>"",Table!A26,"") -> 2024-11-20 | B26: =IF(Table!A26<>"",Table!A26,"") -> 2024-11-20 | C26: =ספיקות!J26 -> 1313 | D26: =IF(AND(C26<>"",'איכות שפכים'!C26<>""),C26*'איכות שפכים'!C26/1000, "") ->  | E26: =IF(AND(C26<>"",'איכות שפכים'!D26<>""),C26*'איכות שפכים'!D26/1000, "") ->  | F26: =IF(AND(C26<>"",'איכות שפכים'!E26<>""),C26*'איכות שפכים'!E26/1000, "") ->  | G26: =IF(AND(C26<>"",'איכות שפכים'!F26<>""),C26*'איכות שפכים'!F26/1000, "") ->  | H26: =IF(AND(C26<>"",'איכות שפכים'!I26<>""),C26*'איכות שפכים'!I26/1000, "") ->  | I26: =IF(AND('קולחין שניוני'!C26<>"",'איכות שפכים'!C26<>""),100%-('קולחין שניוני'!C26/'איכות שפכים'!C26), "") ->  | J26: =IF(AND('קולחין שניוני'!D26<>"",'איכות שפכים'!D26<>""),100%-('קולחין שניוני'!D26/'איכות שפכים'!D26), "") ->  | K26: =IF(AND('קולחין שניוני'!E26<>"",'איכות שפכים'!E26<>""),100%-('קולחין שניוני'!E26/'איכות שפכים'!E26), "") ->  | L26: =IF(AND('קולחין שניוני'!F26<>"",'איכות שפכים'!F26<>""),100%-('קולחין שניוני'!F26/'איכות שפכים'!F26), "") ->  | M26: =IF(AND('קולחין שניוני'!H26<>"",'איכות שפכים'!I26<>""),100%-('קולחין שניוני'!H26/'איכות שפכים'!I26), "") ->  | O26: =IF(Table!CR26<>"",Table!CR26,"") -> 1680 | P26: 1.279512567
A27: =IF(Table!A27<>"",Table!A27,"") -> 2024-11-21 | B27: =IF(Table!A27<>"",Table!A27,"") -> 2024-11-21 | C27: =ספיקות!J27 -> 1202 | D27: =IF(AND(C27<>"",'איכות שפכים'!C27<>""),C27*'איכות שפכים'!C27/1000, "") ->  | E27: =IF(AND(C27<>"",'איכות שפכים'!D27<>""),C27*'איכות שפכים'!D27/1000, "") ->  | F27: =IF(AND(C27<>"",'איכות שפכים'!E27<>""),C27*'איכות שפכים'!E27/1000, "") ->  | G27: =IF(AND(C27<>"",'איכות שפכים'!F27<>""),C27*'איכות שפכים'!F27/1000, "") ->  | H27: =IF(AND(C27<>"",'איכות שפכים'!I27<>""),C27*'איכות שפכים'!I27/1000, "") ->  | I27: =IF(AND('קולחין שניוני'!C27<>"",'איכות שפכים'!C27<>""),100%-('קולחין שניוני'!C27/'איכות שפכים'!C27), "") ->  | J27: =IF(AND('קולחין שניוני'!D27<>"",'איכות שפכים'!D27<>""),100%-('קולחין שניוני'!D27/'איכות שפכים'!D27), "") ->  | K27: =IF(AND('קולחין שניוני'!E27<>"",'איכות שפכים'!E27<>""),100%-('קולחין שניוני'!E27/'איכות שפכים'!E27), "") ->  | L27: =IF(AND('קולחין שניוני'!F27<>"",'איכות שפכים'!F27<>""),100%-('קולחין שניוני'!F27/'איכות שפכים'!F27), "") ->  | M27: =IF(AND('קולחין שניוני'!H27<>"",'איכות שפכים'!I27<>""),100%-('קולחין שניוני'!H27/'איכות שפכים'!I27), "") ->  | O27: =IF(Table!CR27<>"",Table!CR27,"") -> 1182 | P27: 0.9833610649
A28: =IF(Table!A28<>"",Table!A28,"") -> 2024-11-22 | B28: =IF(Table!A28<>"",Table!A28,"") -> 2024-11-22 | C28: =ספיקות!J28 -> 1357 | D28: =IF(AND(C28<>"",'איכות שפכים'!C28<>""),C28*'איכות שפכים'!C28/1000, "") ->  | E28: =IF(AND(C28<>"",'איכות שפכים'!D28<>""),C28*'איכות שפכים'!D28/1000, "") ->  | F28: =IF(AND(C28<>"",'איכות שפכים'!E28<>""),C28*'איכות שפכים'!E28/1000, "") ->  | G28: =IF(AND(C28<>"",'איכות שפכים'!F28<>""),C28*'איכות שפכים'!F28/1000, "") ->  | H28: =IF(AND(C28<>"",'איכות שפכים'!I28<>""),C28*'איכות שפכים'!I28/1000, "") ->  | I28: =IF(AND('קולחין שניוני'!C28<>"",'איכות שפכים'!C28<>""),100%-('קולחין שניוני'!C28/'איכות שפכים'!C28), "") ->  | J28: =IF(AND('קולחין שניוני'!D28<>"",'איכות שפכים'!D28<>""),100%-('קולחין שניוני'!D28/'איכות שפכים'!D28), "") ->  | K28: =IF(AND('קולחין שניוני'!E28<>"",'איכות שפכים'!E28<>""),100%-('קולחין שניוני'!E28/'איכות שפכים'!E28), "") ->  | L28: =IF(AND('קולחין שניוני'!F28<>"",'איכות שפכים'!F28<>""),100%-('קולחין שניוני'!F28/'איכות שפכים'!F28), "") ->  | M28: =IF(AND('קולחין שניוני'!H28<>"",'איכות שפכים'!I28<>""),100%-('קולחין שניוני'!H28/'איכות שפכים'!I28), "") ->  | O28: =IF(Table!CR28<>"",Table!CR28,"") -> 678 | P28: 0.4996315402
A29: =IF(Table!A29<>"",Table!A29,"") -> 2024-11-23 | B29: =IF(Table!A29<>"",Table!A29,"") -> 2024-11-23 | C29: =ספיקות!J29 -> 1290 | D29: =IF(AND(C29<>"",'איכות שפכים'!C29<>""),C29*'איכות שפכים'!C29/1000, "") ->  | E29: =IF(AND(C29<>"",'איכות שפכים'!D29<>""),C29*'איכות שפכים'!D29/1000, "") ->  | F29: =IF(AND(C29<>"",'איכות שפכים'!E29<>""),C29*'איכות שפכים'!E29/1000, "") ->  | G29: =IF(AND(C29<>"",'איכות שפכים'!F29<>""),C29*'איכות שפכים'!F29/1000, "") ->  | H29: =IF(AND(C29<>"",'איכות שפכים'!I29<>""),C29*'איכות שפכים'!I29/1000, "") ->  | I29: =IF(AND('קולחין שניוני'!C29<>"",'איכות שפכים'!C29<>""),100%-('קולחין שניוני'!C29/'איכות שפכים'!C29), "") ->  | J29: =IF(AND('קולחין שניוני'!D29<>"",'איכות שפכים'!D29<>""),100%-('קולחין שניוני'!D29/'איכות שפכים'!D29), "") ->  | K29: =IF(AND('קולחין שניוני'!E29<>"",'איכות שפכים'!E29<>""),100%-('קולחין שניוני'!E29/'איכות שפכים'!E29), "") ->  | L29: =IF(AND('קולחין שניוני'!F29<>"",'איכות שפכים'!F29<>""),100%-('קולחין שניוני'!F29/'איכות שפכים'!F29), "") ->  | M29: =IF(AND('קולחין שניוני'!H29<>"",'איכות שפכים'!I29<>""),100%-('קולחין שניוני'!H29/'איכות שפכים'!I29), "") ->  | O29: =IF(Table!CR29<>"",Table!CR29,"") -> 1560 | P29: 1.209302326
A30: =IF(Table!A30<>"",Table!A30,"") -> 2024-11-24 | B30: =IF(Table!A30<>"",Table!A30,"") -> 2024-11-24 | C30: =ספיקות!J30 -> 1194 | D30: =IF(AND(C30<>"",'איכות שפכים'!C30<>""),C30*'איכות שפכים'!C30/1000, "") ->  | E30: =IF(AND(C30<>"",'איכות שפכים'!D30<>""),C30*'איכות שפכים'!D30/1000, "") ->  | F30: =IF(AND(C30<>"",'איכות שפכים'!E30<>""),C30*'איכות שפכים'!E30/1000, "") ->  | G30: =IF(AND(C30<>"",'איכות שפכים'!F30<>""),C30*'איכות שפכים'!F30/1000, "") ->  | H30: =IF(AND(C30<>"",'איכות שפכים'!I30<>""),C30*'איכות שפכים'!I30/1000, "") ->  | I30: =IF(AND('קולחין שניוני'!C30<>"",'איכות שפכים'!C30<>""),100%-('קולחין שניוני'!C30/'איכות שפכים'!C30), "") ->  | J30: =IF(AND('קולחין שניוני'!D30<>"",'איכות שפכים'!D30<>""),100%-('קולחין שניוני'!D30/'איכות שפכים'!D30), "") ->  | K30: =IF(AND('קולחין שניוני'!E30<>"",'איכות שפכים'!E30<>""),100%-('קולחין שניוני'!E30/'איכות שפכים'!E30), "") ->  | L30: =IF(AND('קולחין שניוני'!F30<>"",'איכות שפכים'!F30<>""),100%-('קולחין שניוני'!F30/'איכות שפכים'!F30), "") ->  | M30: =IF(AND('קולחין שניוני'!H30<>"",'איכות שפכים'!I30<>""),100%-('קולחין שניוני'!H30/'איכות שפכים'!I30), "") ->  | O30: =IF(Table!CR30<>"",Table!CR30,"") -> 1272 | P30: 1.065326633
A31: =IF(Table!A31<>"",Table!A31,"") -> 2024-11-25 | B31: =IF(Table!A31<>"",Table!A31,"") -> 2024-11-25 | C31: =ספיקות!J31 -> 1130 | D31: =IF(AND(C31<>"",'איכות שפכים'!C31<>""),C31*'איכות שפכים'!C31/1000, "") ->  | E31: =IF(AND(C31<>"",'איכות שפכים'!D31<>""),C31*'איכות שפכים'!D31/1000, "") ->  | F31: =IF(AND(C31<>"",'איכות שפכים'!E31<>""),C31*'איכות שפכים'!E31/1000, "") ->  | G31: =IF(AND(C31<>"",'איכות שפכים'!F31<>""),C31*'איכות שפכים'!F31/1000, "") ->  | H31: =IF(AND(C31<>"",'איכות שפכים'!I31<>""),C31*'איכות שפכים'!I31/1000, "") ->  | I31: =IF(AND('קולחין שניוני'!C31<>"",'איכות שפכים'!C31<>""),100%-('קולחין שניוני'!C31/'איכות שפכים'!C31), "") ->  | J31: =IF(AND('קולחין שניוני'!D31<>"",'איכות שפכים'!D31<>""),100%-('קולחין שניוני'!D31/'איכות שפכים'!D31), "") ->  | K31: =IF(AND('קולחין שניוני'!E31<>"",'איכות שפכים'!E31<>""),100%-('קולחין שניוני'!E31/'איכות שפכים'!E31), "") ->  | L31: =IF(AND('קולחין שניוני'!F31<>"",'איכות שפכים'!F31<>""),100%-('קולחין שניוני'!F31/'איכות שפכים'!F31), "") ->  | M31: =IF(AND('קולחין שניוני'!H31<>"",'איכות שפכים'!I31<>""),100%-('קולחין שניוני'!H31/'איכות שפכים'!I31), "") ->  | O31: =IF(Table!CR31<>"",Table!CR31,"") -> 1578 | P31: 1.396460177
A32: =IF(Table!A32<>"",Table!A32,"") -> 2024-11-26 | B32: =IF(Table!A32<>"",Table!A32,"") -> 2024-11-26 | C32: =ספיקות!J32 -> 1266 | D32: =IF(AND(C32<>"",'איכות שפכים'!C32<>""),C32*'איכות שפכים'!C32/1000, "") ->  | E32: =IF(AND(C32<>"",'איכות שפכים'!D32<>""),C32*'איכות שפכים'!D32/1000, "") ->  | F32: =IF(AND(C32<>"",'איכות שפכים'!E32<>""),C32*'איכות שפכים'!E32/1000, "") ->  | G32: =IF(AND(C32<>"",'איכות שפכים'!F32<>""),C32*'איכות שפכים'!F32/1000, "") ->  | H32: =IF(AND(C32<>"",'איכות שפכים'!I32<>""),C32*'איכות שפכים'!I32/1000, "") ->  | I32: =IF(AND('קולחין שניוני'!C32<>"",'איכות שפכים'!C32<>""),100%-('קולחין שניוני'!C32/'איכות שפכים'!C32), "") ->  | J32: =IF(AND('קולחין שניוני'!D32<>"",'איכות שפכים'!D32<>""),100%-('קולחין שניוני'!D32/'איכות שפכים'!D32), "") ->  | K32: =IF(AND('קולחין שניוני'!E32<>"",'איכות שפכים'!E32<>""),100%-('קולחין שניוני'!E32/'איכות שפכים'!E32), "") ->  | L32: =IF(AND('קולחין שניוני'!F32<>"",'איכות שפכים'!F32<>""),100%-('קולחין שניוני'!F32/'איכות שפכים'!F32), "") ->  | M32: =IF(AND('קולחין שניוני'!H32<>"",'איכות שפכים'!I32<>""),100%-('קולחין שניוני'!H32/'איכות שפכים'!I32), "") ->  | O32: =IF(Table!CR32<>"",Table!CR32,"") -> 1440 | P32: 1.137440758
A33: =IF(Table!A33<>"",Table!A33,"") -> 2024-11-27 | B33: =IF(Table!A33<>"",Table!A33,"") -> 2024-11-27 | C33: =ספיקות!J33 -> 1164 | D33: =IF(AND(C33<>"",'איכות שפכים'!C33<>""),C33*'איכות שפכים'!C33/1000, "") ->  | E33: =IF(AND(C33<>"",'איכות שפכים'!D33<>""),C33*'איכות שפכים'!D33/1000, "") ->  | F33: =IF(AND(C33<>"",'איכות שפכים'!E33<>""),C33*'איכות שפכים'!E33/1000, "") ->  | G33: =IF(AND(C33<>"",'איכות שפכים'!F33<>""),C33*'איכות שפכים'!F33/1000, "") ->  | H33: =IF(AND(C33<>"",'איכות שפכים'!I33<>""),C33*'איכות שפכים'!I33/1000, "") ->  | I33: =IF(AND('קולחין שניוני'!C33<>"",'איכות שפכים'!C33<>""),100%-('קולחין שניוני'!C33/'איכות שפכים'!C33), "") ->  | J33: =IF(AND('קולחין שניוני'!D33<>"",'איכות שפכים'!D33<>""),100%-('קולחין שניוני'!D33/'איכות שפכים'!D33), "") ->  | K33: =IF(AND('קולחין שניוני'!E33<>"",'איכות שפכים'!E33<>""),100%-('קולחין שניוני'!E33/'איכות שפכים'!E33), "") ->  | L33: =IF(AND('קולחין שניוני'!F33<>"",'איכות שפכים'!F33<>""),100%-('קולחין שניוני'!F33/'איכות שפכים'!F33), "") ->  | M33: =IF(AND('קולחין שניוני'!H33<>"",'איכות שפכים'!I33<>""),100%-('קולחין שניוני'!H33/'איכות שפכים'!I33), "") ->  | O33: =IF(Table!CR33<>"",Table!CR33,"") -> 1488 | P33: 1.278350515
A34: =IF(Table!A34<>"",Table!A34,"") -> 2024-11-28 | B34: =IF(Table!A34<>"",Table!A34,"") -> 2024-11-28 | C34: =ספיקות!J34 -> 1189 | D34: =IF(AND(C34<>"",'איכות שפכים'!C34<>""),C34*'איכות שפכים'!C34/1000, "") ->  | E34: =IF(AND(C34<>"",'איכות שפכים'!D34<>""),C34*'איכות שפכים'!D34/1000, "") ->  | F34: =IF(AND(C34<>"",'איכות שפכים'!E34<>""),C34*'איכות שפכים'!E34/1000, "") ->  | G34: =IF(AND(C34<>"",'איכות שפכים'!F34<>""),C34*'איכות שפכים'!F34/1000, "") ->  | H34: =IF(AND(C34<>"",'איכות שפכים'!I34<>""),C34*'איכות שפכים'!I34/1000, "") ->  | I34: =IF(AND('קולחין שניוני'!C34<>"",'איכות שפכים'!C34<>""),100%-('קולחין שניוני'!C34/'איכות שפכים'!C34), "") ->  | J34: =IF(AND('קולחין שניוני'!D34<>"",'איכות שפכים'!D34<>""),100%-('קולחין שניוני'!D34/'איכות שפכים'!D34), "") ->  | K34: =IF(AND('קולחין שניוני'!E34<>"",'איכות שפכים'!E34<>""),100%-('קולחין שניוני'!E34/'איכות שפכים'!E34), "") ->  | L34: =IF(AND('קולחין שניוני'!F34<>"",'איכות שפכים'!F34<>""),100%-('קולחין שניוני'!F34/'איכות שפכים'!F34), "") ->  | M34: =IF(AND('קולחין שניוני'!H34<>"",'איכות שפכים'!I34<>""),100%-('קולחין שניוני'!H34/'איכות שפכים'!I34), "") ->  | O34: =IF(Table!CR34<>"",Table!CR34,"") -> 1182 | P34: 0.9941126997
A35: =IF(Table!A35<>"",Table!A35,"") -> 2024-11-29 | B35: =IF(Table!A35<>"",Table!A35,"") -> 2024-11-29 | C35: =ספיקות!J35 -> 1373 | D35: =IF(AND(C35<>"",'איכות שפכים'!C35<>""),C35*'איכות שפכים'!C35/1000, "") ->  | E35: =IF(AND(C35<>"",'איכות שפכים'!D35<>""),C35*'איכות שפכים'!D35/1000, "") ->  | F35: =IF(AND(C35<>"",'איכות שפכים'!E35<>""),C35*'איכות שפכים'!E35/1000, "") ->  | G35: =IF(AND(C35<>"",'איכות שפכים'!F35<>""),C35*'איכות שפכים'!F35/1000, "") ->  | H35: =IF(AND(C35<>"",'איכות שפכים'!I35<>""),C35*'איכות שפכים'!I35/1000, "") ->  | I35: =IF(AND('קולחין שניוני'!C35<>"",'איכות שפכים'!C35<>""),100%-('קולחין שניוני'!C35/'איכות שפכים'!C35), "") ->  | J35: =IF(AND('קולחין שניוני'!D35<>"",'איכות שפכים'!D35<>""),100%-('קולחין שניוני'!D35/'איכות שפכים'!D35), "") ->  | K35: =IF(AND('קולחין שניוני'!E35<>"",'איכות שפכים'!E35<>""),100%-('קולחין שניוני'!E35/'איכות שפכים'!E35), "") ->  | L35: =IF(AND('קולחין שניוני'!F35<>"",'איכות שפכים'!F35<>""),100%-('קולחין שניוני'!F35/'איכות שפכים'!F35), "") ->  | M35: =IF(AND('קולחין שניוני'!H35<>"",'איכות שפכים'!I35<>""),100%-('קולחין שניוני'!H35/'איכות שפכים'!I35), "") ->  | O35: =IF(Table!CR35<>"",Table!CR35,"") -> 696 | P35: 0.5069191551
A36: =IF(Table!A36<>"",Table!A36,"") -> 2024-11-30 | B36: =IF(Table!A36<>"",Table!A36,"") -> 2024-11-30 | C36: =ספיקות!J36 -> 1299 | D36: =IF(AND(C36<>"",'איכות שפכים'!C36<>""),C36*'איכות שפכים'!C36/1000, "") ->  | E36: =IF(AND(C36<>"",'איכות שפכים'!D36<>""),C36*'איכות שפכים'!D36/1000, "") ->  | F36: =IF(AND(C36<>"",'איכות שפכים'!E36<>""),C36*'איכות שפכים'!E36/1000, "") ->  | G36: =IF(AND(C36<>"",'איכות שפכים'!F36<>""),C36*'איכות שפכים'!F36/1000, "") ->  | H36: =IF(AND(C36<>"",'איכות שפכים'!I36<>""),C36*'איכות שפכים'!I36/1000, "") ->  | I36: =IF(AND('קולחין שניוני'!C36<>"",'איכות שפכים'!C36<>""),100%-('קולחין שניוני'!C36/'איכות שפכים'!C36), "") ->  | J36: =IF(AND('קולחין שניוני'!D36<>"",'איכות שפכים'!D36<>""),100%-('קולחין שניוני'!D36/'איכות שפכים'!D36), "") ->  | K36: =IF(AND('קולחין שניוני'!E36<>"",'איכות שפכים'!E36<>""),100%-('קולחין שניוני'!E36/'איכות שפכים'!E36), "") ->  | L36: =IF(AND('קולחין שניוני'!F36<>"",'איכות שפכים'!F36<>""),100%-('קולחין שניוני'!F36/'איכות שפכים'!F36), "") ->  | M36: =IF(AND('קולחין שניוני'!H36<>"",'איכות שפכים'!I36<>""),100%-('קולחין שניוני'!H36/'איכות שפכים'!I36), "") ->  | O36: =IF(Table!CR36<>"",Table!CR36,"") -> 1644 | P36: =IF(AND(O36<>"",C36<>""),O36/C36, "") -> 1.265588915 | Q36: =IF(AND(O36<>"",D36<>""),O36/D36, "") -> 
A37: =IF(Table!A37<>"",Table!A37,"") -> 2024-12-01 | B37: =IF(Table!A37<>"",Table!A37,"") -> 2024-12-01 | C37: =ספיקות!J37 ->  | D37: =IF(AND(C37<>"",'איכות שפכים'!C37<>""),C37*'איכות שפכים'!C37/1000, "") ->  | E37: =IF(AND(C37<>"",'איכות שפכים'!D37<>""),C37*'איכות שפכים'!D37/1000, "") ->  | F37: =IF(AND(C37<>"",'איכות שפכים'!E37<>""),C37*'איכות שפכים'!E37/1000, "") ->  | G37: =IF(AND(C37<>"",'איכות שפכים'!F37<>""),C37*'איכות שפכים'!F37/1000, "") ->  | H37: =IF(AND(C37<>"",'איכות שפכים'!I37<>""),C37*'איכות שפכים'!I37/1000, "") ->  | I37: =IF(AND('קולחין שניוני'!C37<>"",'איכות שפכים'!C37<>""),100%-('קולחין שניוני'!C37/'איכות שפכים'!C37), "") ->  | J37: =IF(AND('קולחין שניוני'!D37<>"",'איכות שפכים'!D37<>""),100%-('קולחין שניוני'!D37/'איכות שפכים'!D37), "") ->  | K37: =IF(AND('קולחין שניוני'!E37<>"",'איכות שפכים'!E37<>""),100%-('קולחין שניוני'!E37/'איכות שפכים'!E37), "") ->  | L37: =IF(AND('קולחין שניוני'!F37<>"",'איכות שפכים'!F37<>""),100%-('קולחין שניוני'!F37/'איכות שפכים'!F37), "") ->  | M37: =IF(AND('קולחין שניוני'!H37<>"",'איכות שפכים'!I37<>""),100%-('קולחין שניוני'!H37/'איכות שפכים'!I37), "") ->  | O37: =IF(Table!CR37<>"",Table!CR37,"") ->  | P37: =IF(AND(O37<>"",C37<>""),O37/C37, "") ->  | Q37: =IF(AND(O37<>"",D37<>""),O37/D37, "") -> 
A38: =ספיקות!A38 -> 2024-12-02 | B38: =ספיקות!B38 -> 2024-12-02 | D38: =IF(AND(C38<>"",'איכות שפכים'!C38<>""),C38*'איכות שפכים'!C38/1000, "") ->  | E38: =IF(AND(C38<>"",'איכות שפכים'!D38<>""),C38*'איכות שפכים'!D38/1000, "") ->  | F38: =IF(AND(C38<>"",'איכות שפכים'!E38<>""),C38*'איכות שפכים'!E38/1000, "") ->  | G38: =IF(AND(C38<>"",'איכות שפכים'!F38<>""),C38*'איכות שפכים'!F38/1000, "") ->  | H38: =IF(AND(C38<>"",'איכות שפכים'!I38<>""),C38*'איכות שפכים'!I38/1000, "") ->  | I38: =IF(AND('קולחין שניוני'!C38<>"",'איכות שפכים'!C38<>""),100%-('קולחין שניוני'!C38/'איכות שפכים'!C38), "") ->  | J38: =IF(AND('קולחין שניוני'!D38<>"",'איכות שפכים'!D38<>""),100%-('קולחין שניוני'!D38/'איכות שפכים'!D38), "") ->  | K38: =IF(AND('קולחין שניוני'!E38<>"",'איכות שפכים'!E38<>""),100%-('קולחין שניוני'!E38/'איכות שפכים'!E38), "") ->  | L38: =IF(AND('קולחין שניוני'!F38<>"",'איכות שפכים'!F38<>""),100%-('קולחין שניוני'!F38/'איכות שפכים'!F38), "") ->  | M38: =IF(AND('קולחין שניוני'!H38<>"",'איכות שפכים'!I38<>""),100%-('קולחין שניוני'!H38/'איכות שפכים'!I38), "") ->  | O38: =IF(Table!CP38<>"",Table!CP38,"") -> 
A39: סה"כ לחודש | C39: =SUM(C7:C38) -> 41436 | D39: =C39/1000*'איכות שפכים'!C39 -> 16408.656 | E39: =C39/1000*'איכות שפכים'!D39 -> 38452.608 | F39: =C39/1000*'איכות שפכים'!E39 -> 15600.654 | G39: =C39/1000*'איכות שפכים'!F39 -> 1693.6965 | H39: =C39/1000*'איכות שפכים'!I39 -> 265.1904 | N39: =(N38-N7)*6 -> 0 | O39: =SUM(O7:O37) -> 45180 | P39: =O39/C39 -> 1.090356212
A40: ממוצע | C40: =AVERAGE(C7:C38) -> 1381.2 | D40: =AVERAGE(D7:D38) -> 616.156 | E40: 1441.998 | F40: 584.8215 | G40: 63.259975 | H40: 9.3248 | I40: 0.9831081081 | J40: 0.9651810585 | K40: 0.9829931973 | M40: 0.1875 | O40: =AVERAGE(O7:O37) -> 1506 | P40: =AVERAGE(P7:P39) -> 1.091438169 | Q40: 3.306186431
A41: מקסימום | C41: =MAX(C7:C38) -> 1615 | D41: =MAX(D7:D38) -> 801.04 | E41: 1837.87 | F41: 741.285 | G41: 75.7435 | H41: 9.3248 | I41: 0.9831081081 | J41: 0.9651810585 | K41: 0.9829931973 | L41: 0 | M41: 0.1875 | O41: =MAX(O7:O37) -> 2142 | P41: =MAX(P7:P39) -> 1.424202128 | Q41: 4.60498247
A42: מינימום | C42: =MIN(C7:C38) -> 1130 | D42: =MIN(D7:D38) -> 431.272 | E42: 1046.126 | F42: 428.358 | G42: 50.77645 | H42: 9.3248 | I42: 0.9831081081 | J42: 0.9651810585 | K42: 0.9829931973 | L42: 0 | M42: 0.1875 | O42: =MIN(O7:O39) -> 678 | P42: =MIN(P7:P39) -> 0.4996315402 | Q42: 2.007390392

Sheet גרף אנרגיה עומסים

Sheet גרף ספיקות כניסה

Sheet Table
A2: מט"ש נובמבר 2024
D3: מזג אויר | F3: 1-חם מאוד | H3: 2-נאה | K3: 4-גשום | M3: 5-גשום מאוד | BR3: 1 | BW3: 2
A4: יחידת פעולה | D4: ספיקות | J4: מעבדה-שפכים | AF4: קולחין שניוני מילודע | AH4: מעבדה-קולחין שניוני | AT4: מעבדה-קולחין שלישוני | BN4: מעבדה+שטח -קולחין שלישוני | BR4: שטח-רציף ראקטור 1 | BT4: מעבדה-יחידת טיפול 1 | BW4: שטח-רציף ראקטור 2 | BY4: מעבדה-יחידת טיפול 2 | CB4: מעבדה-מעכל | CE4: בוצה יבשה | CO4: פינויים לאתר | CR4: צריכת אנרגיה | CS4: נפח SBR | CT4: נתוני תפעול
A5: תאריך | B5: יום בשבוע | C5: מזג אויר | D5: שפכים | F5: סינון | G5: שלישוני-השקיה | I5: מים גדול | J5: פעם בשבוע | R5: פעם בחודש | T5: דיגום כל חודש אי זוגי: ינואר, מרץ, מאי, יולי, ספטמבר, נובמבר | AA5: פעם בשלושה חודשים: ינואר, אפריל, יולי, אוקטובר | AF5: פעמיים בשבוע | AH5: פעמיים בשבוע | AK5: פעם בשבוע | AN5: פעם בחודש | AS5: פעם בשלושה חודשים: ינו, אפ, יול, אוק | AT5: פעמיים בשבוע | AX5: פעם בשבוע | BE5: פעמיים בחודש | BH5: פעם בחודש | BI5: פעם בשלושה חודשים: ינואר, אפריל, יולי, אוקטובר | BN5: מד עכירות נייד(חטף) | BO5: מד עכירות קבוע(רציף) | BP5: מד כלור כללי נייד | BQ5: מד כלור כללי קבוע | BR5: מד חמצן מומס | BT5: מ"מ כללי | BU5: מ"מ נדיף | BV5: שיקוע | BW5: מד חמצן מומס | BY5: מ"מ כללי | BZ5: מ"מ נדיף | CA5: שיקוע | CB5: פעם בשבוע | CD5: פעמיים בחודש | CE5: ספיקה מצטברת בוצה לייבוש | CG5: פעם בשבוע | CI5: פעם בחודש | CO5: טון בוצה יבשה | CP5: טון גבבה | CQ5: טון גרוסת | CR5: צריכה יומית
D6: ספיקה מצטברת | E6: ספיקה יומית | F6: ספיקה יומית | G6: ספיקה מצטברת | H6: ספיקה יומית | I6: ספיקה מצטברת | J6: BOD | K6: COD | L6: TSS | M6: NH4 | N6: OG | O6: CL | P6: PT | Q6: TKN | R6: NT | S6: שמן מנרלי | T6: VSS | U6: BOD מומס | V6: COD מומס | W6: DT | X6: סולפיד בתסנין | Y6: פנול | Z6: ציאניד | AA6: TDS | AB6: סולפאט | AC6: קשיות | AD6: אלקליניות | AE6: ICP | AF6: BOD | AG6: TSS | AH6: BOD | AI6: COD | AJ6: TSS | AK6: NH4 | AL6: NT | AM6: PT | AN6: DT | AO6: Cl | AP6: שמן מינרלי | AQ6: מוליכות | AR6: ICP | AS6: ציאניד | AT6: קולי | AU6: BOD | AV6: COD | AW6: TSS | AX6: NT | AY6: TKN | AZ6: NH4 | BA6: NO2 | BB6: NO3 | BC6: Na | BD6: CL | BE6: PT | BF6: בורון | BG6: מוליכות | BH6: שמן מינרלי | BI6: DT | BJ6: ציאניד | BK6: פלואוריד | BL6: SAR | BM6: ICP | BR6: נייד | BS6: קבוע | BW6: נייד | BX6: קבוע | CB6: TS% | CC6: VS% | CD6: SOUR | CF6: ספיקת בוצה יומית | CG6: TS% | CH6: VS% | CI6: קולי | CJ6: PT | CK6: NH4 | CL6: PH | CM6: NT | CN6: ICP
A7: 2024-11-01 | B7: 2024-10-04 | C7: 2 | D7: 8234433 | E7: 1526 | F7: 732 | G7: 61933 | H7: 732 | I7: 479 | CE7: 10330 | CF7: =(CE8-CE7) -> 0 | CR7: 1416 | CS7: 1440 | CT7: שטיפת מתקו כניסה כולל ערבוב , נקיון כללי במבנה משרדים ומסביב לחדר גנרטור ,
A8: 2024-11-02 | B8: 2024-10-05 | C8: 2 | D8: 8235959 | E8: 1440 | F8: 0 | G8: 62665 | H8: 0 | I8: 479 | CE8: 10330 | CF8: =(CE9-CE8) -> 0 | CR8: 786 | CS8: 1440
A9: 2024-11-03 | B9: 2024-10-06 | C9: 2 | D9: 8237399 | E9: 1555 | F9: 1425 | G9: 62665 | H9: 1425 | I9: 479 | BN9: 1.49 | BO9: 1.47 | BP9: 1.65 | BQ9: 1.62 | BW9: 1.3 | BX9: 1.3 | CA9: 370 | CE9: 10330 | CF9: 0 | CR9: 1962 | CS9: 1440 | CT9: נקיון כללי בכל המתקן חניה בכניסה חניה קדמית חניה אחורית וכבישים , כיסוח דשא איסוף אשפה ,
A10: 2024-11-04 | B10: 2024-10-07 | C10: 2 | D10: 8238954 | E10: 1457 | F10: 1360 | G10: 64090 | H10: 1360 | I10: 479 | J10: 296 | K10: 718 | L10: 294 | M10: 34.85 | N10: 122 | O10: 0 | P10: 6.4 | Q10: 56 | R10: 0 | S10: 10 | T10: 287 | U10: 109 | V10: 214 | W10: 8.2 | X10: 2.1 | Z10: 0.005 | AH10: 5 | AI10: 25 | AJ10: 5 | AK10: 2.73 | AL10: 5.9 | AM10: 5.2 | AN10: 0.05 | AO10: 230 | AP10: 10 | AQ10: 1.45 | AU10: 5 | AV10: 13 | AW10: 5 | AX10: 5.8 | AY10: 3.95 | AZ10: 1.85 | BB10: 1.85 | BC10: 139 | BD10: 229 | BE10: 5.17 | BF10: 0.2 | BG10: 1.46 | BH10: 0.3 | BN10: 1.44 | BO10: 1.45 | BP10: 1.49 | BQ10: 1.46 | BW10: 1 | BX10: 1 | CA10: 380 | CE10: 10330 | CF10: 41 | CG10: 18 | CH10: 12.6 | CJ10: 13204 | CK10: 1875 | CM10: 12464 | CR10: 1986 | CS10: 1440 | CT10: הפעלת מתקן בוצה שטיפה בסיום , טיפול שבועי מדחסי סינון ובוצה נקיוז מים בדיקת שמן וניקוי פילטר ,
A11: 2024-11-05 | B11: 2024-10-08 | C11: 2 | D11: 8240411 | E11: 1480 | F11: 1517 | G11: 65450 | H11: 1517 | I11: 479 | BN11: 1.64 | BO11: 1.6 | BP11: 1.47 | BQ11: 1.44 | BW11: 1.2 | BX11: 1.3 | CA11: 350 | CE11: 10371 | CF11: 47 | CR11: 2094 | CS11: 1440 | CT11: הפעלת מתקן בוצה שטיפה בסיום , שטיפת כבישים ליד מתקן בוצה ומתקן כניסה , הכנת קוגולונט כמות 200 ליטר ,
A12: 2024-11-06 | B12: 2024-10-09 | C12: 2 | D12: 8241891 | E12: 1470 | F12: 1321 | G12: 66967 | H12: 1321 | I12: 479 | AU12: 5 | AV12: 29 | AW12: 5 | BN12: 1.82 | BO12: 1.82 | BP12: 1.38 | BQ12: 1.33 | BW12: 1.4 | BX12: 1.4 | CA12: 360 | CE12: 10418 | CF12: 45 | CR12: 1980 | CS12: 1440 | CT12: הפעלת מתקן בוצה שטיפה בסיום , הארכת צינור קולחים 4\3 ב 30 מטר כדי לשטוף בכל מקום במתקן ,
A13: 2024-11-07 | B13: 2024-10-10 | C13: 2 | D13: 8243361 | E13: 1504 | F13: 1599 | G13: 68288 | H13: 1599 | I13: 479 | BN13: 1.49 | BO13: 1.47 | BP13: 1.65 | BQ13: 1.62 | BW13: 1.3 | BX13: 1.3 | CA13: 370 | CE13: 10463 | CF13: 48 | CR13: 2142 | CS13: 1440 | CT13: הפעלת מתקן בוצה ושטיפה בסיום , החלפת 2 מטפים מזנק 2," וגלגלון לא תקין לקראת ביקורת שנתית ציוד כיבוי אש מטללטין ,
A14: 2024-11-08 | B14: 2024-10-11 | C14: 2 | D14: 8244865 | E14: 1527 | F14: 700 | G14: 69887 | H14: 700 | I14: 479 | CE14: 10511 | CF14: 47 | CR14: 1494 | CS14: 1440 | CT14: הפעלת מתקן בוצה מילוי מכולה 32 מ"ק שטיפה יסודית בסיום , שטיפת מתקו כניסה ,
A15: 2024-11-09 | B15: 2024-10-12 | C15: 2 | D15: 8246392 | E15: 1516 | F15: 0 | G15: 70587 | H15: 0 | I15: 480 | CE15: 10558 | CF15: 0 | CR15: 972 | CS15: 1440
A16: 2024-11-10 | B16: 2024-10-13 | C16: 4 | D16: 8247908 | E16: 1548 | F16: 1296 | G16: 70587 | H16: 1296 | I16: 480 | BN16: 1.57 | BO16: 1.59 | BP16: 1.38 | BQ16: 1.37 | BW16: 0.8 | BX16: 0.9 | CA16: 340 | CE16: 10558 | CF16: 0 | CR16: 2016 | CS16: 1440 | CT16: ניקוי וכיול מדי חמצן מומס בריאקטורים , בדיקת רצועות ושמן לכל המפוחים והמשאבות במתקן תהליך ,
A17: 2024-11-11 | B17: 2024-10-14 | C17: 4 | D17: 8249456 | E17: 1469 | F17: 1122 | G17: 71883 | H17: 1122 | I17: 480 | Q17: 67 | AV17: 22 | AW17: 5 | AX17: 7 | AY17: 6.08 | AZ17: 4.76 | BA17: 0.1 | BB17: 0.82 | BC17: 143 | BD17: 229 | BG17: 1.47 | BN17: 1.23 | BO17: 1.24 | BP17: 1.45 | BQ17: 1.42 | BW17: 1.1 | BX17: 1 | CA17: 370 | CE17: 10558 | CF17: 0 | CR17: 1812 | CS17: 1440 | CT17: שחרור סתימה בצנרת דיגום כלור ועכירות וכיול מדי עכירות כניסה ויציאה , בכנת קוגולנט כמות 200 ליטר ,
A18: 2024-11-12 | B18: 2024-10-15 | C18: 2 | D18: 8250925 | E18: 1395 | F18: 1409 | G18: 73005 | H18: 1409 | I18: 480 | BN18: 1.34 | BO18: 1.33 | BP18: 1.52 | BQ18: 1.49 | BW18: 1.1 | BX18: 1.1 | CA18: 360 | CE18: 10558 | CF18: 0 | CO18: 24.8 | CR18: 1848 | CS18: 1440 | CT18: פינוי מכולת בוצה לקומוסטאור בבקעה , טיפול שבועי מדחסי סינון ובוצה נקיוז מים בדיקת שמן וניקוי פילטר ,
A19: 2024-11-13 | B19: 2024-10-16 | C19: 2 | D19: 8252320 | E19: 1337 | F19: 1165 | G19: 74414 | H19: 1165 | I19: 481 | AT19: 1 | AU19: 5 | AV19: 35 | AW19: 5 | BN19: 1.41 | BO19: 1.39 | BP19: 1.36 | BQ19: 1.33 | BW19: 0.7 | BX19: 0.7 | CA19: 350 | CE19: 10558 | CF19: 0 | CQ19: 2.54 | CR19: 1614 | CS19: 1440 | CT19: פינוי מכולת גרוסת לדודאים , הפעלה יזומה גנרטור חירום למשך 10 דקות , שטיפת מתקן כניסה ,
A20: 2024-11-14 | B20: 2024-10-17 | C20: 2 | D20: 8253657 | E20: 1278 | F20: 1304 | G20: 75579 | H20: 1304 | I20: 481 | BN20: 1.81 | BO20: 1.82 | BP20: 1.27 | BQ20: 1.27 | BW20: 0.7 | BX20: 0.7 | CA20: 360 | CE20: 10558 | CF20: 0 | CR20: 1806 | CS20: 1440 | CT20: סידור תקלה ברז יציאה מסנן מס 3 לא נפתח סולונוייד תקוע , נקיון כללי בחוות כימיקלים ושטיפת מאצרות ,
A21: 2024-11-15 | B21: 2024-10-18 | C21: 2 | D21: 8254935 | E21: 1388 | F21: 689 | G21: 76883 | H21: 689 | I21: 481 | CE21: 10558 | CF21: 0 | CR21: 1236 | CS21: 1440 | CT21: שטיפת מתקו כניסה כולל ערבוב , נקיון כללי במבנה משרדים ומסביב לחדר גנרטור ,
A22: 2024-11-16 | B22: 2024-10-19 | C22: 2 | D22: 8256323 | E22: 1299 | F22: 0 | G22: 77572 | H22: 0 | I22: 481 | CE22: 10558 | CF22: 0 | CR22: 714 | CS22: 1440
A23: 2024-11-17 | B23: 2024-10-20 | C23: 2 | D23: 8257622 | E23: 1428 | F23: 1346 | G23: 77572 | H23: 1346 | I23: 481 | BN23: 1.66 | BO23: 1.68 | BP23: 1.68 | BQ23: 1.65 | BW23: 0.6 | BX23: 0.6 | CA23: 370 | CE23: 10558 | CF23: 0 | CR23: 1872 | CS23: 1440 | CT23: התקנת וחיבור טיימר לשער חשמלי כדי שיעשה ריסט בלילה ולא יתקע השער כפי שקורה היום , חיבור פנס תאורת חוץ ליד השער מתקן כניסה ,
A24: 2024-11-18 | B24: 2024-10-21 | C24: 2 | D24: 8259050 | E24: 1615 | F24: 922 | G24: 78918 | H24: 922 | I24: 482 | J24: 496 | K24: 1138 | L24: 459 | M24: 46.9 | N24: 197 | Q24: 83 | S24: 10 | AT24: 1 | AU24: 5 | AV24: 36 | AW24: 5 | AX24: 8.6 | AY24: 7.07 | AZ24: 3.91 | BA24: 0.13 | BB24: 1.4 | BC24: 141 | BD24: 231 | BE24: 7.06 | BF24: 0.2 | BG24: 1.48 | BN24: 1.52 | BO24: 1.55 | BP24: 1.42 | BQ24: 1.42 | BW24: 0.4 | BX24: 0.4 | CA24: 360 | CE24: 10558 | CF24: 0 | CR24: 1608 | CS24: 1440 | CT24: העברת אביזרי הרמה לברנע לביוקורת חצי שנתית , בדיקת רצועות ושמן לכל המפוחים והמשאבות במתקן תהליך
A25: 2024-11-19 | B25: 2024-10-22 | C25: 2 | D25: 8260665 | E25: 1427 | F25: 989 | G25: 79840 | H25: 989 | I25: 482 | BN25: 1.42 | BO25: 1.44 | BP25: 1.41 | BQ25: 1.38 | BW25: 0.7 | BX25: 0.6 | CA25: 380 | CE25: 10558 | CF25: 0 | CR25: 1422 | CS25: 1440 | CT25: טיפול שבועי מדחסי סינון ובוצה נקיוז מים בדיקת שמן וניקוי פילטר , שטיפת מתקו כניסה כולל ערבוב ,
A26: 2024-11-20 | B26: 2024-10-23 | C26: 2 | D26: 8262092 | E26: 1313 | F26: 923 | G26: 80829 | H26: 923 | I26: 482 | AT26: 1 | AU26: 5 | AV26: 27 | AW26: 5 | BN26: 1.61 | BO26: 1.63 | BP26: 1.31 | BQ26: 1.29 | BW26: 0.6 | BX26: 0.6 | CA26: 390 | CE26: 10558 | CF26: 0 | CR26: 1680 | CS26: 1440 | CT26: ניקוי וכיול מדי חמצן מומס בריאקטורים , שחרור סתימה בצנרת דיגום כלור ועכירות וכיול מדי עכירות כניסה ויציאה
A27: 2024-11-21 | B27: 2024-10-24 | C27: 2 | D27: 8263405 | E27: 1202 | F27: 1134 | G27: 81752 | H27: 1134 | I27: 482 | BN27: 1.81 | BO27: 1.82 | BP27: 1.27 | BQ27: 1.27 | BW27: 0.5 | BX27: 0.5 | CA27: 400 | CE27: 10558 | CF27: 0 | CR27: 1182 | CS27: 1440 | CT27: טיפול תוקפתי בממיין חול ריקון הוצאת סמרטוטים ושטיפה יסודית , הפעלה יזומה גנרטור חירום למשך 10 דקות
A28: 2024-11-22 | B28: 2024-10-25 | C28: 2 | D28: 8264607 | E28: 1357 | F28: 542 | G28: 82886 | H28: 542 | I28: 482 | CE28: 10558 | CF28: 0 | CR28: 678 | CS28: 1440 | CT28: שטיפת מתקו כניסה כולל ערבוב , נקיון כללי במבנה משרדים ומסביב לחדר גנרטור ,
A29: 2024-11-23 | B29: 2024-10-26 | C29: 2 | D29: 8265964 | E29: 1290 | F29: 0 | G29: 83428 | H29: 0 | I29: 482 | CE29: 10558 | CF29: 0 | CR29: 1560 | CS29: 1440
A30: 2024-11-24 | B30: 2024-10-27 | C30: 2 | D30: 8267254 | E30: 1194 | F30: 990 | G30: 83428 | H30: 990 | I30: 482 | BN30: 1.91 | BO30: 1.93 | BP30: 1.81 | BQ30: 1.78 | BW30: 1 | BX30: 0.9 | CA30: 390 | CE30: 10558 | CF30: 0 | CR30: 1272 | CS30: 1440 | CT30: החלפת ארון כיבוי אש 2 אידרנטים 2" וברז 1" שלא נמצאו תקינים בביקורת שנתית ציוד כיבוי אש מטלטלין ,
A31: 2024-11-25 | B31: 2024-10-28 | C31: 2 | D31: 8268448 | E31: 1130 | F31: 674 | G31: 84418 | H31: 674 | I31: 482 | Q31: 74 | AT31: 1 | AU31: 5 | AV31: 22 | AW31: 5 | AX31: 10 | AY31: 8.1 | AZ31: 6.19 | BA31: 0.13 | BB31: 1.77 | BC31: 135 | BD31: 231 | BG31: 1.48 | BN31: 1.54 | BO31: 1.54 | BP31: 1.84 | BQ31: 1.84 | BW31: 0.9 | BX31: 0.9 | CA31: 400 | CE31: 10558 | CF31: 0 | CR31: 1578 | CS31: 1440 | CT31: בדיקת רצועות ושמן לכל המפוחים והמשאבות במתקן תהליך, כיסוח דשא איסוף אשפה , שטיפת מתקן כניסה ,
A32: 2024-11-26 | B32: 2024-10-29 | C32: 2 | D32: 8269578 | E32: 1266 | F32: 1096 | G32: 85092 | H32: 1096 | I32: 483 | BN32: 1.82 | BO32: 1.84 | BP32: 1.52 | BQ32: 1.51 | BW32: 0.8 | BX32: 0.8 | CA32: 390 | CE32: 10558 | CF32: 0 | CR32: 1440 | CS32: 1440 | CT32: ניקוי וכיול מדי חמצן מומס בריאקטורים , שחרור סתימה בצנרת דיגום כלור ועכירות וכיול מדי עכירות כניסה ויציאה
A33: 2024-11-27 | B33: 2024-10-30 | C33: 2 | D33: 8270844 | E33: 1164 | F33: 938 | G33: 86188 | H33: 938 | I33: 483 | AT33: 1 | AU33: 5 | AV33: 28 | AW33: 5 | BN33: 1.72 | BO33: 1.74 | BP33: 1.46 | BQ33: 1.46 | BW33: 0.7 | BX33: 0.6 | CA33: 410 | CE33: 10558 | CF33: 0 | CR33: 1488 | CS33: 1440 | CT33: טיפול שבועי מדחסי סינון ובוצה נקיוז מים בדיקת שמן וניקוי פילטר , שטיפת מתקו כניסה כולל ערבוב ,
A34: 2024-11-28 | B34: 2024-10-31 | C34: 2 | D34: 8272008 | E34: 1189 | F34: 1030 | G34: 87126 | H34: 1030 | I34: 483 | BN34: 1.68 | BO34: 1.71 | BP34: 1.39 | BQ34: 1.38 | BW34: 1 | BX34: 0.9 | CA34: 390 | CE34: 10558 | CF34: 0 | CR34: 1182 | CS34: 1440 | CT34: סידור תקלה צינור הזרקת כלור השקיה השתחרר כלור נשפך לתוך המאצרה שאיבת הכלור שנשפך לתוך המיכל ושטיפת מאצרה ,
A35: 2024-11-29 | B35: 2024-11-01 | C35: 2 | D35: 8273197 | E35: 1373 | F35: 652 | G35: 88156 | H35: 652 | I35: 483 | CE35: 10558 | CF35: 0 | CR35: 696 | CS35: 1440 | CT35: 5
A36: 2024-11-30 | B36: יום ש | C36: 2 | D36: 8274570 | E36: 1299 | F36: 0 | G36: 88808 | H36: 0 | I36: 484 | CE36: 10558 | CF36: 0 | CR36: 1644 | CS36: 1440
A37: 2024-12-01 | B37: יום א | D37: 8275869 | G37: 88808 | I37: 484 | CE37: 10558
A38: 2024-12-02
A39: סה"כ לחודש | D39: =IF(D38<>"",D38-D7,IF(D37<>"",D37-D7,IF(D36<>"",D36-D7,D35-D7))) -> 41436 | E39: =SUM(E7:E37) -> 41436 | F39: =SUM(F7:F38) -> 26875 | G39: =IF(G38<>"",G38-G7,IF(G37<>"",G37-G7,IF(G36<>"",G36-G7,G35-G7))) -> 26875 | H39: =SUM(H7:H37) -> 26875 | I39: =(I37-I7) -> 5 | CF39: =SUM(CF7:CF38) -> 228 | CO39: =SUM(CO7:CO38) -> 24.8 | CP39: =SUM(CP7:CP38) -> 0 | CQ39: =SUM(CQ7:CQ38) -> 2.54 | CR39: =SUM(CR7:CR38) -> 45180
A40: ממוצע | E40: =AVERAGE(E7:E37) -> 1381.2 | F40: =AVERAGE(F7:F35) -> 926.7241379 | H40: =AVERAGE(H7:H37) -> 895.8333333 | J40: =AVERAGE(J7:J37) -> 396 | K40: 928 | L40: 376.5 | M40: 40.875 | N40: 159.5 | O40: 0 | P40: 6.4 | Q40: =AVERAGE(Q7:Q37) -> 70 | R40: 0 | S40: 10 | U40: 109 | V40: 214 | W40: 8.2 | X40: 2.1 | Y40: 0 | Z40: 0.005 | AA40: 0 | AB40: 0 | AC40: 0 | AD40: 0 | AF40: =AVERAGE(AF7:AF37) ->  | AG40: =AVERAGE(AG7:AG37) ->  | AH40: 5 | AI40: 25 | AJ40: 5 | AK40: 2.73 | AL40: 5.9 | AM40: 5.2 | AN40: 0.05 | AO40: 230 | AP40: 10 | AQ40: 1.45 | AS40: 0 | AT40: 1 | AU40: 5 | AV40: 26.5 | AW40: 5 | AX40: 7.85 | AY40: 6.3 | AZ40: 4.1775 | BA40: 0.12 | BB40: 1.46 | BC40: 139.5 | BD40: 230 | BE40: 6.115 | BF40: 0.2 | BG40: 1.4725 | BH40: 0.3 | BI40: 0 | BJ40: 0 | BK40: 0 | BL40: 0 | BN40: =AVERAGE(BN7:BN39) -> 1.5965 | BO40: =AVERAGE(BO7:BO39) -> 1.603 | BP40: =AVERAGE(BP7:BP39) -> 1.4865 | BQ40: =AVERAGE(BQ7:BQ39) -> 1.4665 | BW40: 1.8 | BX40: 1.8 | BY40: =AVERAGE(BY7:BY37) ->  | CA40: 0 | CD40: 0 | CG40: 18 | CH40: 12.6 | CJ40: 13204 | CK40: 1875 | CL40: 0 | CM40: 12464 | CR40: 1407
A41: מקסימום | E41: =MAX(E7:E37) -> 1615 | F41: =MAX(F7:F35) -> 1599 | H41: =MAX(H7:H37) -> 1599 | J41: =MAX(J7:J37) -> 496 | K41: 1138 | L41: 459 | M41: 46.9 | N41: 197 | O41: 0 | P41: 6.4 | Q41: =MAX(Q7:Q37) -> 83 | R41: 0 | S41: 10 | U41: 109 | V41: 214 | W41: 8.2 | X41: 2.1 | Y41: 0 | Z41: 0.005 | AA41: 0 | AB41: 0 | AC41: 0 | AD41: 0 | AF41: =MAX(AF7:AF37) -> 0 | AG41: =MAX(AG7:AG37) -> 0 | AH41: 5 | AI41: 25 | AJ41: 5 | AK41: 2.73 | AL41: 5.9 | AM41: 5.2 | AN41: 0.05 | AO41: 230 | AP41: 10 | AQ41: 1.45 | AS41: 0 | AT41: 1 | AU41: 5 | AV41: 36 | AW41: 5 | AX41: 10 | AY41: 8.1 | AZ41: 6.19 | BA41: 0.13 | BB41: 1.85 | BC41: 143 | BD41: 231 | BE41: 7.06 | BF41: 0.2 | BG41: 1.48 | BH41: 0.3 | BI41: 0 | BJ41: 0 | BK41: 0 | BL41: 0 | BN41: =MAX(BN7:BN38) -> 1.91 | BO41: =MAX(BO7:BO37) -> 1.93 | BP41: 1.84 | BQ41: 1.84 | BR41: 0 | BS41: 0 | BT41: 0 | BU41: 0 | BV41: 0 | BW41: 1.4 | BX41: 1.4 | BY41: 0 | BZ41: 0 | CA41: 410 | CB41: 0 | CC41: 0 | CD41: 0 | CG41: 18 | CH41: 12.6 | CI41: 0 | CJ41: 13204 | CK41: 1875 | CL41: 0 | CM41: 12464 | CP41: 0 | CQ41: 2.54 | CR41: 2064
A42: מינימום | E42: =MIN(E7:E37) -> 1130 | F42: =MIN(F7:F35) -> 0 | H42: =MIN(H7:H37) -> 0 | J42: =MIN(J7:J37) -> 296 | K42: 718 | L42: 294 | M42: 34.85 | N42: 122 | O42: 0 | P42: 6.4 | Q42: =MIN(Q7:Q37) -> 56 | R42: 0 | S42: 10 | T42: 287 | U42: 109 | V42: 214 | W42: 8.2 | X42: 2.1 | Y42: 0 | Z42: 0.005 | AA42: 0 | AB42: 0 | AC42: 0 | AD42: 0 | AE42: 0 | AF42: =MIN(AF7:AF37) -> 0 | AG42: =MIN(AG7:AG37) -> 0 | AH42: 5 | AI42: 25 | AJ42: 5 | AK42: 2.73 | AL42: 5.9 | AM42: 5.2 | AN42: 0.05 | AO42: 230 | AP42: 10 | AQ42: 1.45 | AR42: =MIN(AR7:AR37) -> 0 | AS42: 0 | AT42: 1 | AU42: 5 | AV42: 13 | AW42: 5 | AX42: 5.8 | AY42: 3.95 | AZ42: 1.85 | BA42: 0.1 | BB42: 0.82 | BC42: 135 | BD42: 229 | BE42: 5.17 | BF42: 0.2 | BG42: 1.46 | BH42: 0.3 | BI42: 0 | BJ42: 0 | BK42: 0 | BL42: 0 | BM42: 0 | BN42: =MIN(BN7:BN38) -> 1.23 | BO42: 1.24 | BP42: 1.27 | BQ42: 1.27 | BR42: 0 | BS42: 0 | BT42: 0 | BU42: 0 | BV42: 0 | BW42: 0.4 | BX42: =MIN(BX7:BX37) -> 0.4 | BY42: 0 | BZ42: 0 | CA42: 340 | CB42: 0 | CC42: 0 | CD42: 0 | CG42: 18 | CH42: 12.6 | CI42: 0 | CJ42: 13204 | CK42: 1875 | CL42: 0 | CM42: 12464 | CN42: 0 | CP42: 0 | CQ42: 2.54 | CR42: =MIN(CR7:CR41) -> 678
